Department Family,Entity,Date of Payment,Expense Type,Expense Area,Supplier,Voluntary & Community Sector,SME Class,Sole Trader,D-U-N-S Number,Transaction number,PSPES Level 2,Narrative,Postal Code,Amount in Sterling,Grant?
Communities & Local Government,DCLG,01/07/2015,IT - Service Contracts,Finance & Corporate Services,FUJITSU SERVICES LTD,,Large,,423375062,5106213814,IT Managed / Outsourced Services,FY15-16 SAN Licensing LIVELINK App.,WA3 6GD,"1,629.83",
Communities & Local Government,DCLG,01/07/2015,IT - Service Contracts,Finance & Corporate Services,FUJITSU SERVICES LTD,,Large,,423375062,5106213815,IT Managed / Outsourced Services,FY15-16 SAN Licensing LIVELINK App.,WA3 6GD,"1,629.83",
Communities & Local Government,DCLG,01/07/2015,IT - Service Contracts,Finance & Corporate Services,VERIZON UK LTD,,Large,,346786171,5106213816,IT Managed / Outsourced Services,FY15-16 TESA Common Hosting 10125855,RG2 6DA,"19,629.96",
Communities & Local Government,DCLG,01/07/2015,IT - Service Contracts,Localism,AIRWAVE SOLUTIONS LTD,,Large,,232603469,5106213880,IT Managed / Outsourced Services,Phase A Scotland 2015/16,SL1 2EJ,"280,438.98",
Communities & Local Government,DCLG,01/07/2015,IT - Service Contracts,Localism,GROUNDWORK UK,Yes,,,739193758,5106213819,IT Managed / Outsourced Services,TUPE Costs,B1 2RR,"8,317.00",
Communities & Local Government,DCLG,01/07/2015,IT - Service Contracts,Localism,VERIZON UK LTD,,Large,,346786171,5106213816,IT Managed / Outsourced Services,Fire Common Hosting 14/15,RG2 6DA,"18,860.16",
Communities & Local Government,DCLG,01/07/2015,Mobile phone costs,Finance & Corporate Services,ORANGE (AIRTIME/LINE RENTAL),,Large,,210707540,2100255731,Telecoms,Monthly consolidated phone costs June 2015,S98 1DX,391.80,
Communities & Local Government,DCLG,01/07/2015,Research,Finance & Corporate Services,NATIONAL CENTRE FOR SOCIAL RESEARCH,,Large,,424047426,5106213829,Research,Research - English Housing Survey,EC1V 0AX,"69,071.33",
Communities & Local Government,DCLG,01/07/2015,Research,Neighbourhoods,BUILDING RESEARCH ESTABLISHMENT,,Large,,896495033,5106213809,Research,May 2015 Site Visit,WD25 9XX,"5,721.60",
Communities & Local Government,DCLG,01/07/2015,Research,Neighbourhoods,OVE ARUP & PARTNERS,,Large,,221940898,5106213824,Research,Research Project progress report about European Standards,W1P 6BQ,"22,023.60",
Communities & Local Government,DCLG,01/07/2015,Research,Neighbourhoods,OVE ARUP & PARTNERS,,Large,,221940898,5106213824,Research,Monitoring and Influencing Call-Off,W1P 6BQ,"7,522.92",
Communities & Local Government,DCLG,01/07/2015,Software Licences,Finance & Corporate Services,BYTES SOFTWARE SERVICES LTD,,Medium,,225273754,5106213813,Software,Software Licences,KT22 7TW,"1,685.58",
Communities & Local Government,DCLG,01/07/2015,Training,Finance & Corporate Services,BEHAVIOURAL INSIGHTS LTD,,Small,,,5106213812,Development and Training,Behavioural Exchange 2015: International,EC4A 1DE,953.00,
Communities & Local Government,DCLG,01/07/2015,Training,Neighbourhoods,ROYAL TOWN PLANNING INSTITUTE,,,,227231818,5106213820,Development and Training,RTPI South West training season ticket,EC3R 8DL,375.00,
Communities & Local Government,DCLG,01/07/2015,Utilisation of Compensation Provision,Neighbourhoods,ADUR DC,,,,227472891,5000297982,,PROPERTY SEARCHES NEW BURDENS PAYMENT - TINKLERS L,BN11 1HB,"51,598.00",
Communities & Local Government,DCLG,01/07/2015,Utilisation of Compensation Provision,Neighbourhoods,AMBER VALLEY BC,,,,,5000297983,,PROPERTY SEARCHES NEW BURDENS PAYMENT - TINKLERS L,DE5 3BT,"30,596.00",
Communities & Local Government,DCLG,01/07/2015,Utilisation of Compensation Provision,Neighbourhoods,ARUN DC,,,,211217668,5000297909,,PROPERTY SEARCHES NEW BURDENS PAYMENT - TINKLERS L,BN17 5LF,"81,980.00",
Communities & Local Government,DCLG,01/07/2015,Utilisation of Compensation Provision,Neighbourhoods,ASHFIELD DC,,,,235415296,5000297984,,PROPERTY SEARCHES NEW BURDENS PAYMENT - TINKLERS L,NG17 8DA,"46,749.00",
Communities & Local Government,DCLG,01/07/2015,Utilisation of Compensation Provision,Neighbourhoods,ASHFORD BC,,,,229467071,5000297910,,PROPERTY SEARCHES NEW BURDENS PAYMENT - TINKLERS L,TN23 1PL,"19,353.00",
Communities & Local Government,DCLG,01/07/2015,Utilisation of Compensation Provision,Neighbourhoods,BABERGH DC,,,,232618405,5000297911,,PROPERTY SEARCHES NEW BURDENS PAYMENT - TINKLERS L,IP7 6SJ,"45,061.00",
Communities & Local Government,DCLG,01/07/2015,Utilisation of Compensation Provision,Neighbourhoods,BARKING & DAGENHAM LB (HSG),,,,217142293,5000297912,,PROPERTY SEARCHES NEW BURDENS PAYMENT - TINKLERS L,RM10 7BY,"20,681.00",
Communities & Local Government,DCLG,01/07/2015,Utilisation of Compensation Provision,Neighbourhoods,BARNSLEY MBC,,,,211178595,5000297986,,PROPERTY SEARCHES NEW BURDENS PAYMENT - TINKLERS L,S70 2AQ,"186,483.00",
Communities & Local Government,DCLG,01/07/2015,Utilisation of Compensation Provision,Neighbourhoods,BASILDON BOROUGH COUNCIL,,,,,5000297987,,PROPERTY SEARCHES NEW BURDENS PAYMENT - TINKLERS L,SS14 0DF,"5,272.00",
Communities & Local Government,DCLG,01/07/2015,Utilisation of Compensation Provision,Neighbourhoods,BASSETLAW DC (HSG),,,,,5000297913,,PROPERTY SEARCHES NEW BURDENS PAYMENT - TINKLERS L,S80 2AH,"62,071.00",
Communities & Local Government,DCLG,01/07/2015,Utilisation of Compensation Provision,Neighbourhoods,BATH & NE SOMERSET DC (HSG),,,,214502499,5000297914,,PROPERTY SEARCHES NEW BURDENS PAYMENT - TINKLERS L,BA1 5AW,"6,402.00",
Communities & Local Government,DCLG,01/07/2015,Utilisation of Compensation Provision,Neighbourhoods,BEXLEY LB (HSG),,,,,5000297915,,PROPERTY SEARCHES NEW BURDENS PAYMENT - TINKLERS L,DA8 1TL,"97,111.00",
Communities & Local Government,DCLG,01/07/2015,Utilisation of Compensation Provision,Neighbourhoods,BLACKBURN WITH DARWEN BC,,,,,5000297988,,PROPERTY SEARCHES NEW BURDENS PAYMENT - TINKLERS L,BB1 7DY,"68,005.00",
Communities & Local Government,DCLG,01/07/2015,Utilisation of Compensation Provision,Neighbourhoods,BOLSOVER DC,,,,235516523,5000297989,,PROPERTY SEARCHES NEW BURDENS PAYMENT - TINKLERS L,S43 4JY,"41,435.00",
Communities & Local Government,DCLG,01/07/2015,Utilisation of Compensation Provision,Neighbourhoods,BOLTON MBC,,,,,5000297990,,PROPERTY SEARCHES NEW BURDENS PAYMENT - TINKLERS L,BL1 1RU,"133,079.00",
Communities & Local Government,DCLG,01/07/2015,Utilisation of Compensation Provision,Neighbourhoods,BRACKNELL FOREST DC,,,,236184867,5000297991,,PROPERTY SEARCHES NEW BURDENS PAYMENT - TINKLERS L,RG12 1AQ,"27,489.00",
Communities & Local Government,DCLG,01/07/2015,Utilisation of Compensation Provision,Neighbourhoods,BRADFORD MBC,,,,,5000297992,,PROPERTY SEARCHES NEW BURDENS PAYMENT - TINKLERS L,BD1 1HX,"185,796.00",
Communities & Local Government,DCLG,01/07/2015,Utilisation of Compensation Provision,Neighbourhoods,BRAINTREE DC,,,,226941730,5000297916,,PROPERTY SEARCHES NEW BURDENS PAYMENT - TINKLERS L,CM7 6HB,"102,352.00",
Communities & Local Government,DCLG,01/07/2015,Utilisation of Compensation Provision,Neighbourhoods,BRECKLAND DC,,,,232611384,5000297917,,PROPERTY SEARCHES NEW BURDENS PAYMENT - TINKLERS L,NR19 1EE,"37,386.00",
Communities & Local Government,DCLG,01/07/2015,Utilisation of Compensation Provision,Neighbourhoods,BRENT LB (HSG),,,,,5000297918,,PROPERTY SEARCHES NEW BURDENS PAYMENT - TINKLERS L,HA9 9HD,"27,694.00",
Communities & Local Government,DCLG,01/07/2015,Utilisation of Compensation Provision,Neighbourhoods,BRENTWOOD BC,,,,227473188,5000297993,,PROPERTY SEARCHES NEW BURDENS PAYMENT - TINKLERS L,CM15 8AY,"11,028.00",
Communities & Local Government,DCLG,01/07/2015,Utilisation of Compensation Provision,Neighbourhoods,BRIGHTON & HOVE CITY COUNCIL,,Large,,228455218,5000297994,,PROPERTY SEARCHES NEW BURDENS PAYMENT - TINKLERS L,BN3 2LS,"147,159.00",
Communities & Local Government,DCLG,01/07/2015,Utilisation of Compensation Provision,Neighbourhoods,BROADLAND DC,,Large,,219737785,5000297919,,PROPERTY SEARCHES NEW BURDENS PAYMENT - TINKLERS L,NR7 0DU,"43,517.00",
Communities & Local Government,DCLG,01/07/2015,Utilisation of Compensation Provision,Neighbourhoods,BROXBOURNE BC,,Public Bodies,,239931918,5000297995,,PROPERTY SEARCHES NEW BURDENS PAYMENT - TINKLERS L,EN8 9XG,"5,376.00",
Communities & Local Government,DCLG,01/07/2015,Utilisation of Compensation Provision,Neighbourhoods,BROXTOWE BC,,,,239877640,5000297996,,PROPERTY SEARCHES NEW BURDENS PAYMENT - TINKLERS L,NG9 1AB,"31,115.00",
Communities & Local Government,DCLG,01/07/2015,Utilisation of Compensation Provision,Neighbourhoods,BURNLEY BC,,,,229413281,5000297997,,PROPERTY SEARCHES NEW BURDENS PAYMENT - TINKLERS L,BB11 1JA,"84,991.00",
Communities & Local Government,DCLG,01/07/2015,Utilisation of Compensation Provision,Neighbourhoods,BURY MBC,,,,,5000297998,,PROPERTY SEARCHES NEW BURDENS PAYMENT - TINKLERS L,BL9 0SW,"117,242.00",
Communities & Local Government,DCLG,01/07/2015,Utilisation of Compensation Provision,Neighbourhoods,CALDERDALE MBC,,,,,5000297999,,PROPERTY SEARCHES NEW BURDENS PAYMENT - TINKLERS L,HX1 1YP,"133,635.00",
Communities & Local Government,DCLG,01/07/2015,Utilisation of Compensation Provision,Neighbourhoods,CAMDEN LB,,,,211651836,5000298000,,PROPERTY SEARCHES NEW BURDENS PAYMENT - TINKLERS L,WC1H 8NG,"35,658.00",
Communities & Local Government,DCLG,01/07/2015,Utilisation of Compensation Provision,Neighbourhoods,CANTERBURY CITY CNCL,,,,,5000297920,,PROPERTY SEARCHES NEW BURDENS PAYMENT - TINKLERS L,CT1 1YW,"53,867.00",
Communities & Local Government,DCLG,01/07/2015,Utilisation of Compensation Provision,Neighbourhoods,CHELMSFORD BC,,,,,5000298001,,PROPERTY SEARCHES NEW BURDENS PAYMENT - TINKLERS L,CM1 1JE,"53,917.00",
Communities & Local Government,DCLG,01/07/2015,Utilisation of Compensation Provision,Neighbourhoods,CHESHIRE EAST COUNCIL,,Large,,,5000298075,,PROPERTY SEARCHES NEW BURDENS PAYMENT - TINKLERS L,CW11 1HZ,"4,553.00",
Communities & Local Government,DCLG,01/07/2015,Utilisation of Compensation Provision,Neighbourhoods,CHESTERFIELD BC,,,,232102301,5000298002,,PROPERTY SEARCHES NEW BURDENS PAYMENT - TINKLERS L,S40 1LP,"66,045.00",
Communities & Local Government,DCLG,01/07/2015,Utilisation of Compensation Provision,Neighbourhoods,CHICHESTER DC,,,,739800998,5000297921,,PROPERTY SEARCHES NEW BURDENS PAYMENT - TINKLERS L,PO19 1TY,"26,225.00",
Communities & Local Government,DCLG,01/07/2015,Utilisation of Compensation Provision,Neighbourhoods,CITY OF LONDON (HSG),,,,217471460,5000297922,,PROPERTY SEARCHES NEW BURDENS PAYMENT - TINKLERS L,EC2P 2EJ,"5,852.00",
Communities & Local Government,DCLG,01/07/2015,Utilisation of Compensation Provision,Neighbourhoods,CITY OF WAKEFIELD MDC,,,,,5000298063,,PROPERTY SEARCHES NEW BURDENS PAYMENT - TINKLERS L,WF1 2QW,"43,662.00",
Communities & Local Government,DCLG,01/07/2015,Utilisation of Compensation Provision,Neighbourhoods,COLCHESTER BC,,,,,5000298003,,PROPERTY SEARCHES NEW BURDENS PAYMENT - TINKLERS L,CO3 3WG,"87,304.00",
Communities & Local Government,DCLG,01/07/2015,Utilisation of Compensation Provision,Neighbourhoods,CORBY BC,,,,,5000297923,,PROPERTY SEARCHES NEW BURDENS PAYMENT - TINKLERS L,NN17 1GD,"15,300.00",
Communities & Local Government,DCLG,01/07/2015,Utilisation of Compensation Provision,Neighbourhoods,CRAVEN DC (HSG),,,,,5000297924,,PROPERTY SEARCHES NEW BURDENS PAYMENT - TINKLERS L,BD23 1FJ,"15,847.00",
Communities & Local Government,DCLG,01/07/2015,Utilisation of Compensation Provision,Neighbourhoods,CRAWLEY BC,,,,211222500,5000297925,,PROPERTY SEARCHES NEW BURDENS PAYMENT - TINKLERS L,RH10 1UZ,"3,489.00",
Communities & Local Government,DCLG,01/07/2015,Utilisation of Compensation Provision,Neighbourhoods,CROYDON LB,,,,212419973,5000298004,,PROPERTY SEARCHES NEW BURDENS PAYMENT - TINKLERS L,CR9 3JS,"55,980.00",
Communities & Local Government,DCLG,01/07/2015,Utilisation of Compensation Provision,Neighbourhoods,DARTFORD BC,,,,225694942,5000297926,,PROPERTY SEARCHES NEW BURDENS PAYMENT - TINKLERS L,DA1 1DR,"47,178.00",
Communities & Local Government,DCLG,01/07/2015,Utilisation of Compensation Provision,Neighbourhoods,DERBYSHIRE DALES DC,,,,,5000297927,,PROPERTY SEARCHES NEW BURDENS PAYMENT - TINKLERS L,DE4 3NN,"24,280.00",
Communities & Local Government,DCLG,01/07/2015,Utilisation of Compensation Provision,Neighbourhoods,DONCASTER MBC,,,,,5000298005,,PROPERTY SEARCHES NEW BURDENS PAYMENT - TINKLERS L,DN1 3QA,"300,514.00",
Communities & Local Government,DCLG,01/07/2015,Utilisation of Compensation Provision,Neighbourhoods,DOVER DC,,,,,5000297928,,PROPERTY SEARCHES NEW BURDENS PAYMENT - TINKLERS L,CT16 3PD,"43,241.00",
Communities & Local Government,DCLG,01/07/2015,Utilisation of Compensation Provision,Neighbourhoods,EALING LB,,,,,5000298006,,PROPERTY SEARCHES NEW BURDENS PAYMENT - TINKLERS L,W5 2HL,"39,305.00",
Communities & Local Government,DCLG,01/07/2015,Utilisation of Compensation Provision,Neighbourhoods,EAST NORTHAMPTONSHIRE COUNCIL,,,,227475290,5000297929,,PROPERTY SEARCHES NEW BURDENS PAYMENT - TINKLERS L,NN14 4LZ,"22,168.00",
Communities & Local Government,DCLG,01/07/2015,Utilisation of Compensation Provision,Neighbourhoods,EASTBOURNE BC,,,,229896428,5000298007,,PROPERTY SEARCHES NEW BURDENS PAYMENT - TINKLERS L,BN21 4TW,"54,393.00",
Communities & Local Government,DCLG,01/07/2015,Utilisation of Compensation Provision,Neighbourhoods,ELMBRIDGE BC (HSG),,,,,5000297930,,PROPERTY SEARCHES NEW BURDENS PAYMENT - TINKLERS L,KT10 9SD,"77,717.00",
Communities & Local Government,DCLG,01/07/2015,Utilisation of Compensation Provision,Neighbourhoods,ENFIELD LB,,,,,5000298008,,PROPERTY SEARCHES NEW BURDENS PAYMENT - TINKLERS L,EN1 3XF,"55,256.00",
Communities & Local Government,DCLG,01/07/2015,Utilisation of Compensation Provision,Neighbourhoods,EPPING FOREST DC,,,,775876360,5000298009,,PROPERTY SEARCHES NEW BURDENS PAYMENT - TINKLERS L,CM16 4BZ,"8,058.00",
Communities & Local Government,DCLG,01/07/2015,Utilisation of Compensation Provision,Neighbourhoods,EPSOM & EWELL BC,,,,225423094,5000298010,,PROPERTY SEARCHES NEW BURDENS PAYMENT - TINKLERS L,KT18 5BY,"18,309.00",
Communities & Local Government,DCLG,01/07/2015,Utilisation of Compensation Provision,Neighbourhoods,EREWASH BC,,,,211209762,5000298011,,PROPERTY SEARCHES NEW BURDENS PAYMENT - TINKLERS L,DE7 5RP,"26,046.00",
Communities & Local Government,DCLG,01/07/2015,Utilisation of Compensation Provision,Neighbourhoods,FENLAND DC,,,,227476348,5000297931,,PROPERTY SEARCHES NEW BURDENS PAYMENT - TINKLERS L,PE15 8NQ,"32,394.00",
Communities & Local Government,DCLG,01/07/2015,Utilisation of Compensation Provision,Neighbourhoods,FOREST HEATH DISTRICT COUNCIL,,,,236678116,5000297932,,PROPERTY SEARCHES NEW BURDENS PAYMENT - TINKLERS L,IP28 7EY,"5,020.00",
Communities & Local Government,DCLG,01/07/2015,Utilisation of Compensation Provision,Neighbourhoods,GEDLING BC,,,,236180337,5000298012,,PROPERTY SEARCHES NEW BURDENS PAYMENT - TINKLERS L,NG5 6LU,"30,341.00",
Communities & Local Government,DCLG,01/07/2015,Utilisation of Compensation Provision,Neighbourhoods,GRAVESHAM BC,,,,236178612,5000298013,,PROPERTY SEARCHES NEW BURDENS PAYMENT - TINKLERS L,DA12 1AU,"30,367.00",
Communities & Local Government,DCLG,01/07/2015,Utilisation of Compensation Provision,Neighbourhoods,GREAT YARMOUTH BC,,,,292697372,5000298014,,PROPERTY SEARCHES NEW BURDENS PAYMENT - TINKLERS L,NR30 2QG,"42,439.00",
Communities & Local Government,DCLG,01/07/2015,Utilisation of Compensation Provision,Neighbourhoods,GREENWICH LB,,,,,5000298015,,PROPERTY SEARCHES NEW BURDENS PAYMENT - TINKLERS L,SE18 6HQ,"95,239.00",
Communities & Local Government,DCLG,01/07/2015,Utilisation of Compensation Provision,Neighbourhoods,GUILDFORD BC,,,,236663720,5000297933,,PROPERTY SEARCHES NEW BURDENS PAYMENT - TINKLERS L,GU2 5BB,"14,746.00",
Communities & Local Government,DCLG,01/07/2015,Utilisation of Compensation Provision,Neighbourhoods,HAMMERSMITH & FULHAM LB,,,,216929489,5000298017,,PROPERTY SEARCHES NEW BURDENS PAYMENT - TINKLERS L,W6 9JU,"43,807.00",
Communities & Local Government,DCLG,01/07/2015,Utilisation of Compensation Provision,Neighbourhoods,HARINGEY LB,,,,217471767,5000298018,,PROPERTY SEARCHES NEW BURDENS PAYMENT - TINKLERS L,N22 4TR,"29,051.00",
Communities & Local Government,DCLG,01/07/2015,Utilisation of Compensation Provision,Neighbourhoods,HARROW LB,,,,,5000298019,,PROPERTY SEARCHES NEW BURDENS PAYMENT - TINKLERS L,HA1 2UZ,"35,797.00",
Communities & Local Government,DCLG,01/07/2015,Utilisation of Compensation Provision,Neighbourhoods,HASTINGS BC,,,,,5000298020,,PROPERTY SEARCHES NEW BURDENS PAYMENT - TINKLERS L,TN34 3WN,"45,990.00",
Communities & Local Government,DCLG,01/07/2015,Utilisation of Compensation Provision,Neighbourhoods,HAVANT BC,,,,211047543,5000298021,,PROPERTY SEARCHES NEW BURDENS PAYMENT - TINKLERS L,PO9 2AX,"3,582.00",
Communities & Local Government,DCLG,01/07/2015,Utilisation of Compensation Provision,Neighbourhoods,HAVERING LB,,,,211209770,5000298022,,PROPERTY SEARCHES NEW BURDENS PAYMENT - TINKLERS L,RM1 3BB,"29,183.00",
Communities & Local Government,DCLG,01/07/2015,Utilisation of Compensation Provision,Neighbourhoods,HIGH PEAK BC,,,,239967771,5000297934,,PROPERTY SEARCHES NEW BURDENS PAYMENT - TINKLERS L,SK17 6EL,"20,311.00",
Communities & Local Government,DCLG,01/07/2015,Utilisation of Compensation Provision,Neighbourhoods,HILLINGDON LB,,,,211198585,5000298023,,PROPERTY SEARCHES NEW BURDENS PAYMENT - TINKLERS L,UB8 1UW,"24,132.00",
Communities & Local Government,DCLG,01/07/2015,Utilisation of Compensation Provision,Neighbourhoods,HORSHAM DC,,,,229776588,5000297935,,PROPERTY SEARCHES NEW BURDENS PAYMENT - TINKLERS L,RH12 1RL,"11,493.00",
Communities & Local Government,DCLG,01/07/2015,Utilisation of Compensation Provision,Neighbourhoods,HOUNSLOW LB,,Public Bodies,,210388999,5000298024,,PROPERTY SEARCHES NEW BURDENS PAYMENT - TINKLERS L,TW3 4DN,"90,793.00",
Communities & Local Government,DCLG,01/07/2015,Utilisation of Compensation Provision,Neighbourhoods,HUNTINGDONSHIRE DC,,,,235999216,5000297936,,PROPERTY SEARCHES NEW BURDENS PAYMENT - TINKLERS L,PE18 6TN,"19,346.00",
Communities & Local Government,DCLG,01/07/2015,Utilisation of Compensation Provision,Neighbourhoods,HYNDBURN BC,,,,,5000298025,,PROPERTY SEARCHES NEW BURDENS PAYMENT - TINKLERS L,BB5 1EZ,"40,603.00",
Communities & Local Government,DCLG,01/07/2015,Utilisation of Compensation Provision,Neighbourhoods,IPSWICH BC,,,,226861391,5000298026,,PROPERTY SEARCHES NEW BURDENS PAYMENT - TINKLERS L,IP1 2DE,"48,081.00",
Communities & Local Government,DCLG,01/07/2015,Utilisation of Compensation Provision,Neighbourhoods,ISLINGTON LB,,,,225716729,5000298027,,PROPERTY SEARCHES NEW BURDENS PAYMENT - TINKLERS L,N1 1XR,"39,888.00",
Communities & Local Government,DCLG,01/07/2015,Utilisation of Compensation Provision,Neighbourhoods,KETTERING BC,,,,211271796,5000298029,,PROPERTY SEARCHES NEW BURDENS PAYMENT - TINKLERS L,NN15 7QX,"16,727.00",
Communities & Local Government,DCLG,01/07/2015,Utilisation of Compensation Provision,Neighbourhoods,KINGS LYNN & WEST NORFOLK BC,,,,236417671,5000297937,,PROPERTY SEARCHES NEW BURDENS PAYMENT - TINKLERS L,PE30 1EX,"47,561.00",
Communities & Local Government,DCLG,01/07/2015,Utilisation of Compensation Provision,Neighbourhoods,KINGSTON UPON THAMES (HSG),,,,211379941,5000297938,,PROPERTY SEARCHES NEW BURDENS PAYMENT - TINKLERS L,KT1 1EU,"78,167.00",
Communities & Local Government,DCLG,01/07/2015,Utilisation of Compensation Provision,Neighbourhoods,KIRKLEES COUNCIL (HSG),,,,,5000297939,,PROPERTY SEARCHES NEW BURDENS PAYMENT - TINKLERS L,HD1 2YU,"210,646.00",
Communities & Local Government,DCLG,01/07/2015,Utilisation of Compensation Provision,Neighbourhoods,LEEDS CITY CNCL,,Micro,,,5000298031,,PROPERTY SEARCHES NEW BURDENS PAYMENT - TINKLERS L,LS1 1JF,"328,706.00",
Communities & Local Government,DCLG,01/07/2015,Utilisation of Compensation Provision,Neighbourhoods,LEWES DC,,,,213090082,5000297940,,PROPERTY SEARCHES NEW BURDENS PAYMENT - TINKLERS L,BN7 1AB,"44,511.00",
Communities & Local Government,DCLG,01/07/2015,Utilisation of Compensation Provision,Neighbourhoods,LEWISHAM LB (HSG),,Large,,235653300,5000297941,,PROPERTY SEARCHES NEW BURDENS PAYMENT - TINKLERS L,SE6 4RU,"101,704.00",
Communities & Local Government,DCLG,01/07/2015,Utilisation of Compensation Provision,Neighbourhoods,LONDON BOROUGH OF BARNET,,,,211049507,5000297985,,PROPERTY SEARCHES NEW BURDENS PAYMENT - TINKLERS L,NN1 1NP,"38,387.00",
Communities & Local Government,DCLG,01/07/2015,Utilisation of Compensation Provision,Neighbourhoods,LONDON BOROUGH OF HACKNEY,,,,225221597,5000298016,,PROPERTY SEARCHES NEW BURDENS PAYMENT - TINKLERS L,E8 4RU,"29,440.00",
Communities & Local Government,DCLG,01/07/2015,Utilisation of Compensation Provision,Neighbourhoods,LONDON BOROUGH OF LAMBETH,,,,228216479,5000298030,,PROPERTY SEARCHES NEW BURDENS PAYMENT - TINKLERS L,SW2 1RL,"53,532.00",
Communities & Local Government,DCLG,01/07/2015,Utilisation of Compensation Provision,Neighbourhoods,LONDON BOROUGH OF NEWHAM,,,,211381004,5000298034,,PROPERTY SEARCHES NEW BURDENS PAYMENT - TINKLERS L,E16 2QU,"30,769.00",
Communities & Local Government,DCLG,01/07/2015,Utilisation of Compensation Provision,Neighbourhoods,LONDON BOROUGH OF REDBRIDGE,,,,211341417,5000298043,,PROPERTY SEARCHES NEW BURDENS PAYMENT - TINKLERS L,IG1 1NN,"32,677.00",
Communities & Local Government,DCLG,01/07/2015,Utilisation of Compensation Provision,Neighbourhoods,MAIDSTONE BC,,Public Bodies,,293004214,5000297942,,PROPERTY SEARCHES NEW BURDENS PAYMENT - TINKLERS L,ME15 6JQ,"47,826.00",
Communities & Local Government,DCLG,01/07/2015,Utilisation of Compensation Provision,Neighbourhoods,MALDON DC,,,,424668663,5000297943,,PROPERTY SEARCHES NEW BURDENS PAYMENT - TINKLERS L,CM9 7DL,"17,504.00",
Communities & Local Government,DCLG,01/07/2015,Utilisation of Compensation Provision,Neighbourhoods,MANCHESTER CITY CNCL (HSG),,,,211241393,5000297944,,PROPERTY SEARCHES NEW BURDENS PAYMENT - TINKLERS L,M60 2JR,"74,792.00",
Communities & Local Government,DCLG,01/07/2015,Utilisation of Compensation Provision,Neighbourhoods,MANSFIELD DC,,,,237922968,5000298032,,PROPERTY SEARCHES NEW BURDENS PAYMENT - TINKLERS L,NG19 7BH,"66,897.00",
Communities & Local Government,DCLG,01/07/2015,Utilisation of Compensation Provision,Neighbourhoods,MEDWAY TOWNS D C (HSG),,,,,5000297945,,PROPERTY SEARCHES NEW BURDENS PAYMENT - TINKLERS L,ME4 4TR,"103,668.00",
Communities & Local Government,DCLG,01/07/2015,Utilisation of Compensation Provision,Neighbourhoods,MENDIP DISTRICT COUNCIL,,,,,5000297946,,PROPERTY SEARCHES NEW BURDENS PAYMENT - TINKLERS L,BA4 5BA,"31,447.00",
Communities & Local Government,DCLG,01/07/2015,Utilisation of Compensation Provision,Neighbourhoods,MERTON LB,,,,,5000298033,,PROPERTY SEARCHES NEW BURDENS PAYMENT - TINKLERS L,SM4 5DX,"47,643.00",
Communities & Local Government,DCLG,01/07/2015,Utilisation of Compensation Provision,Neighbourhoods,MID SUFFOLK DISTRICK COUNCIL,,,,223387239,5000297947,,PROPERTY SEARCHES NEW BURDENS PAYMENT - TINKLERS L,IP6 8DL,"59,436.00",
Communities & Local Government,DCLG,01/07/2015,Utilisation of Compensation Provision,Neighbourhoods,MID SUSSEX DC,,,,236675989,5000297948,,PROPERTY SEARCHES NEW BURDENS PAYMENT - TINKLERS L,RH16 1SS,"8,584.00",
Communities & Local Government,DCLG,01/07/2015,Utilisation of Compensation Provision,Neighbourhoods,MOLE VALLEY DC,,,,225385772,5000297949,,PROPERTY SEARCHES NEW BURDENS PAYMENT - TINKLERS L,RH4 1SJ,"23,797.00",
Communities & Local Government,DCLG,01/07/2015,Utilisation of Compensation Provision,Neighbourhoods,NEWARK & SHERWOOD DC (HSG),,,,236186755,5000297950,,PROPERTY SEARCHES NEW BURDENS PAYMENT - TINKLERS L,NG23 5QX,"32,191.00",
Communities & Local Government,DCLG,01/07/2015,Utilisation of Compensation Provision,Neighbourhoods,NORTH DORSET DC,,,,236185005,5000297951,,PROPERTY SEARCHES NEW BURDENS PAYMENT - TINKLERS L,DT11 7LL,"6,368.00",
Communities & Local Government,DCLG,01/07/2015,Utilisation of Compensation Provision,Neighbourhoods,NORTH EAST DERBYSHIRE DC,,,,238879308,5000298035,,PROPERTY SEARCHES NEW BURDENS PAYMENT - TINKLERS L,S40 1LF,"55,271.00",
Communities & Local Government,DCLG,01/07/2015,Utilisation of Compensation Provision,Neighbourhoods,NORTH LINCOLNSHIRE DC (HSG),,Public Bodies,,424005502,5000297952,,PROPERTY SEARCHES NEW BURDENS PAYMENT - TINKLERS L,DN16 1AB,"87,432.00",
Communities & Local Government,DCLG,01/07/2015,Utilisation of Compensation Provision,Neighbourhoods,NORTH NORFOLK DC,,,,239975964,5000297953,,PROPERTY SEARCHES NEW BURDENS PAYMENT - TINKLERS L,NR27 9EJ,"31,012.00",
Communities & Local Government,DCLG,01/07/2015,Utilisation of Compensation Provision,Neighbourhoods,NORWICH CITY CNCL,,,,235981297,5000298036,,PROPERTY SEARCHES NEW BURDENS PAYMENT - TINKLERS L,NR2 1NH,"51,867.00",
Communities & Local Government,DCLG,01/07/2015,Utilisation of Compensation Provision,Neighbourhoods,NOTTINGHAM CITY COUNCIL,,,,214495447,5000298037,,PROPERTY SEARCHES NEW BURDENS PAYMENT - TINKLERS L,NG2 3NG,"83,504.00",
Communities & Local Government,DCLG,01/07/2015,Utilisation of Compensation Provision,Neighbourhoods,OLDHAM MBC,,,,213015574,5000298038,,PROPERTY SEARCHES NEW BURDENS PAYMENT - TINKLERS L,OL1 1UH,"59,130.00",
Communities & Local Government,DCLG,01/07/2015,Utilisation of Compensation Provision,Neighbourhoods,PENDLE BC,,,,548605328,5000298039,,PROPERTY SEARCHES NEW BURDENS PAYMENT - TINKLERS L,BB9 OLX,"33,399.00",
Communities & Local Government,DCLG,01/07/2015,Utilisation of Compensation Provision,Neighbourhoods,PETERBOROUGH CITY CNCL,,,,,5000298040,,PROPERTY SEARCHES NEW BURDENS PAYMENT - TINKLERS L,PE1 1HG,"40,397.00",
Communities & Local Government,DCLG,01/07/2015,Utilisation of Compensation Provision,Neighbourhoods,PORTSMOUTH CITY COUNCIL,,Large,,211183082,5000298041,,PROPERTY SEARCHES NEW BURDENS PAYMENT - TINKLERS L,PO1 2AR,"3,656.00",
Communities & Local Government,DCLG,01/07/2015,Utilisation of Compensation Provision,Neighbourhoods,READING BC,,,,210220399,5000298042,,PROPERTY SEARCHES NEW BURDENS PAYMENT - TINKLERS L,RG1 7TD,"6,724.00",
Communities & Local Government,DCLG,01/07/2015,Utilisation of Compensation Provision,Neighbourhoods,REIGATE & BANSTEAD BC,,,,211313515,5000298044,,PROPERTY SEARCHES NEW BURDENS PAYMENT - TINKLERS L,RH2 OSH,"24,003.00",
Communities & Local Government,DCLG,01/07/2015,Utilisation of Compensation Provision,Neighbourhoods,RIBBLE VALLEY BC,,,,232617894,5000297954,,PROPERTY SEARCHES NEW BURDENS PAYMENT - TINKLERS L,BB7 2RA,"44,523.00",
Communities & Local Government,DCLG,01/07/2015,Utilisation of Compensation Provision,Neighbourhoods,RICHMOND UPON THAMES LB,,,,228868535,5000298045,,PROPERTY SEARCHES NEW BURDENS PAYMENT - TINKLERS L,TW1 3BZ,"68,872.00",
Communities & Local Government,DCLG,01/07/2015,Utilisation of Compensation Provision,Neighbourhoods,ROCHDALE MBC,,,,,5000298046,,PROPERTY SEARCHES NEW BURDENS PAYMENT - TINKLERS L,OL16 1YG,"50,462.00",
Communities & Local Government,DCLG,01/07/2015,Utilisation of Compensation Provision,Neighbourhoods,ROSSENDALE BC,,,,237654020,5000298047,,PROPERTY SEARCHES NEW BURDENS PAYMENT - TINKLERS L,OL13 0BB,"24,315.00",
Communities & Local Government,DCLG,01/07/2015,Utilisation of Compensation Provision,Neighbourhoods,ROTHER DC (HSG),,,,,5000297955,,PROPERTY SEARCHES NEW BURDENS PAYMENT - TINKLERS L,TN39 3JX,"48,403.00",
Communities & Local Government,DCLG,01/07/2015,Utilisation of Compensation Provision,Neighbourhoods,ROTHERHAM MBC,,,,211266937,5000298048,,PROPERTY SEARCHES NEW BURDENS PAYMENT - TINKLERS L,S60 1AE,"234,110.00",
Communities & Local Government,DCLG,01/07/2015,Utilisation of Compensation Provision,Neighbourhoods,ROYAL BOROUGH OF KENSINGTON & CHELS,,,,211124466,5000298028,,PROPERTY SEARCHES NEW BURDENS PAYMENT - TINKLERS L,W8 7NX,"59,964.00",
Communities & Local Government,DCLG,01/07/2015,Utilisation of Compensation Provision,Neighbourhoods,RUNNYMEDE BOROUGH COUNCIL,,,,232225722,5000298049,,PROPERTY SEARCHES NEW BURDENS PAYMENT - TINKLERS L,KT15 2AH,"46,659.00",
Communities & Local Government,DCLG,01/07/2015,Utilisation of Compensation Provision,Neighbourhoods,RUSHCLIFFE BOROUGH COUNCIL,,,,,5000297956,,PROPERTY SEARCHES NEW BURDENS PAYMENT - TINKLERS L,NG2 5FE,"42,563.00",
Communities & Local Government,DCLG,01/07/2015,Utilisation of Compensation Provision,Neighbourhoods,RUSHMOOR BC,,,,232607606,5000298050,,PROPERTY SEARCHES NEW BURDENS PAYMENT - TINKLERS L,GU14 7JU,"5,137.00",
Communities & Local Government,DCLG,01/07/2015,Utilisation of Compensation Provision,Neighbourhoods,RUTLAND CC,,,,,5000298051,,PROPERTY SEARCHES NEW BURDENS PAYMENT - TINKLERS L,LE15 6HP,"28,315.00",
Communities & Local Government,DCLG,01/07/2015,Utilisation of Compensation Provision,Neighbourhoods,SALFORD CITY CNCL,,,,213180073,5000298052,,PROPERTY SEARCHES NEW BURDENS PAYMENT - TINKLERS L,M27 5AW,"33,107.00",
Communities & Local Government,DCLG,01/07/2015,Utilisation of Compensation Provision,Neighbourhoods,SEDGEMOOR DC,,,,211204011,5000297957,,PROPERTY SEARCHES NEW BURDENS PAYMENT - TINKLERS L,TA6 3AR,"11,857.00",
Communities & Local Government,DCLG,01/07/2015,Utilisation of Compensation Provision,Neighbourhoods,SELBY DC,,,,239816721,5000297958,,PROPERTY SEARCHES NEW BURDENS PAYMENT - TINKLERS L,YO8 9FT,"3,568.00",
Communities & Local Government,DCLG,01/07/2015,Utilisation of Compensation Provision,Neighbourhoods,SHEPWAY DISTRICT COUNCIL,,,,235550878,5000297959,,PROPERTY SEARCHES NEW BURDENS PAYMENT - TINKLERS L,CT20 2QY,"43,172.00",
Communities & Local Government,DCLG,01/07/2015,Utilisation of Compensation Provision,Neighbourhoods,SLOUGH BOROUGH COUNCIL,,,,211027123,5000298053,,PROPERTY SEARCHES NEW BURDENS PAYMENT - TINKLERS L,SL1 3UF,"59,335.00",
Communities & Local Government,DCLG,01/07/2015,Utilisation of Compensation Provision,Neighbourhoods,SOUTH BUCKS DC (HSG),,,,,5000297960,,PROPERTY SEARCHES NEW BURDENS PAYMENT - TINKLERS L,UB9 4LH,"13,466.00",
Communities & Local Government,DCLG,01/07/2015,Utilisation of Compensation Provision,Neighbourhoods,SOUTH CAMBRIDGESHIRE DC,,,,236369484,5000297961,,PROPERTY SEARCHES NEW BURDENS PAYMENT - TINKLERS L,CB23 6EA,"4,181.00",
Communities & Local Government,DCLG,01/07/2015,Utilisation of Compensation Provision,Neighbourhoods,SOUTH HOLLAND,,,,236445383,5000297962,,PROPERTY SEARCHES NEW BURDENS PAYMENT - TINKLERS L,PE11 2XE,"26,871.00",
Communities & Local Government,DCLG,01/07/2015,Utilisation of Compensation Provision,Neighbourhoods,SOUTH KESTEVEN DC (HSG),,,,227470747,5000297963,,PROPERTY SEARCHES NEW BURDENS PAYMENT - TINKLERS L,NG31 6PZ,"13,269.00",
Communities & Local Government,DCLG,01/07/2015,Utilisation of Compensation Provision,Neighbourhoods,SOUTH NORFOLK DC,,,,232605717,5000297964,,PROPERTY SEARCHES NEW BURDENS PAYMENT - TINKLERS L,NR15 2XE,"37,538.00",
Communities & Local Government,DCLG,01/07/2015,Utilisation of Compensation Provision,Neighbourhoods,SOUTH SOMERSET DC,,,,239850811,5000297965,,PROPERTY SEARCHES NEW BURDENS PAYMENT - TINKLERS L,BA20 2DS,"17,875.00",
Communities & Local Government,DCLG,01/07/2015,Utilisation of Compensation Provision,Neighbourhoods,SOUTHAMPTON CITY CNCL,,,,216927475,5000298054,,PROPERTY SEARCHES NEW BURDENS PAYMENT - TINKLERS L,SO14 7LY,"3,801.00",
Communities & Local Government,DCLG,01/07/2015,Utilisation of Compensation Provision,Neighbourhoods,SOUTHWARK LB,,,,,5000298055,,PROPERTY SEARCHES NEW BURDENS PAYMENT - TINKLERS L,SE1 2QH,"59,765.00",
Communities & Local Government,DCLG,01/07/2015,Utilisation of Compensation Provision,Neighbourhoods,SPELTHORNE BOROUGH COUNCIL,,,,211177332,5000297966,,PROPERTY SEARCHES NEW BURDENS PAYMENT - TINKLERS L,TW18 1XB,"43,552.00",
Communities & Local Government,DCLG,01/07/2015,Utilisation of Compensation Provision,Neighbourhoods,ST EDMUNDSBURY BOROUGH COUNCIL,,,,212503653,5000297967,,PROPERTY SEARCHES NEW BURDENS PAYMENT - TINKLERS L,IP33 3YU,"37,301.00",
Communities & Local Government,DCLG,01/07/2015,Utilisation of Compensation Provision,Neighbourhoods,STOCKPORT MBC,,,,228706248,5000298056,,PROPERTY SEARCHES NEW BURDENS PAYMENT - TINKLERS L,SK1 3XE,"46,078.00",
Communities & Local Government,DCLG,01/07/2015,Utilisation of Compensation Provision,Neighbourhoods,SUFFOLK COASTAL DC (HSG),,,,239933203,5000297968,,PROPERTY SEARCHES NEW BURDENS PAYMENT - TINKLERS L,IP12 1AU,"18,983.00",
Communities & Local Government,DCLG,01/07/2015,Utilisation of Compensation Provision,Neighbourhoods,SURREY HEATH BC,,,,236445441,5000298057,,PROPERTY SEARCHES NEW BURDENS PAYMENT - TINKLERS L,GU15 3HD,"12,517.00",
Communities & Local Government,DCLG,01/07/2015,Utilisation of Compensation Provision,Neighbourhoods,SUTTON LB,,,,,5000298058,,PROPERTY SEARCHES NEW BURDENS PAYMENT - TINKLERS L,SM1 1EA,"11,257.00",
Communities & Local Government,DCLG,01/07/2015,Utilisation of Compensation Provision,Neighbourhoods,SWALE BC,,,,239842768,5000298059,,PROPERTY SEARCHES NEW BURDENS PAYMENT - TINKLERS L,ME10 3HT,"68,426.00",
Communities & Local Government,DCLG,01/07/2015,Utilisation of Compensation Provision,Neighbourhoods,TAMESIDE MBC,,,,212635875,5000298060,,PROPERTY SEARCHES NEW BURDENS PAYMENT - TINKLERS L,OL6 6DL,"90,441.00",
Communities & Local Government,DCLG,01/07/2015,Utilisation of Compensation Provision,Neighbourhoods,TANDRIDGE DC,,,,225481076,5000297969,,PROPERTY SEARCHES NEW BURDENS PAYMENT - TINKLERS L,RH8 0BT,"3,746.00",
Communities & Local Government,DCLG,01/07/2015,Utilisation of Compensation Provision,Neighbourhoods,TAUNTON DEANE BC,,,,236185294,5000297970,,PROPERTY SEARCHES NEW BURDENS PAYMENT - TINKLERS L,TA1 1HE,"12,093.00",
Communities & Local Government,DCLG,01/07/2015,Utilisation of Compensation Provision,Neighbourhoods,TENDRING DC,,,,,5000297971,,PROPERTY SEARCHES NEW BURDENS PAYMENT - TINKLERS L,CO15 1SE,"106,158.00",
Communities & Local Government,DCLG,01/07/2015,Utilisation of Compensation Provision,Neighbourhoods,THANET DC,,,,232309369,5000297972,,PROPERTY SEARCHES NEW BURDENS PAYMENT - TINKLERS L,CT8 1XZ,"34,157.00",
Communities & Local Government,DCLG,01/07/2015,Utilisation of Compensation Provision,Neighbourhoods,THREE RIVERS DC,,,,,5000298061,,PROPERTY SEARCHES NEW BURDENS PAYMENT - TINKLERS L,WD3 1RL,"2,822.00",
Communities & Local Government,DCLG,01/07/2015,Utilisation of Compensation Provision,Neighbourhoods,TOWER HAMLETS LB (HSG),,,,231315144,5000297973,,PROPERTY SEARCHES NEW BURDENS PAYMENT - TINKLERS L,E14 2BG,"32,549.00",
Communities & Local Government,DCLG,01/07/2015,Utilisation of Compensation Provision,Neighbourhoods,TRAFFORD MBC,,,,,5000298062,,PROPERTY SEARCHES NEW BURDENS PAYMENT - TINKLERS L,M32 0TH,"52,249.00",
Communities & Local Government,DCLG,01/07/2015,Utilisation of Compensation Provision,Neighbourhoods,UTTLESFORD DC,,,,424423242,5000297974,,PROPERTY SEARCHES NEW BURDENS PAYMENT - TINKLERS L,CB11 4ER,"7,884.00",
Communities & Local Government,DCLG,01/07/2015,Utilisation of Compensation Provision,Neighbourhoods,WALTHAM FOREST LB,,,,,5000298064,,PROPERTY SEARCHES NEW BURDENS PAYMENT - TINKLERS L,E17 4JA,"27,873.00",
Communities & Local Government,DCLG,01/07/2015,Utilisation of Compensation Provision,Neighbourhoods,WANDSWORTH LB,,,,,5000298065,,PROPERTY SEARCHES NEW BURDENS PAYMENT - TINKLERS L,SW18 2PU,"91,084.00",
Communities & Local Government,DCLG,01/07/2015,Utilisation of Compensation Provision,Neighbourhoods,WARRINGTON BC,,,,,5000298066,,PROPERTY SEARCHES NEW BURDENS PAYMENT - TINKLERS L,WA1 1BN,"38,812.00",
Communities & Local Government,DCLG,01/07/2015,Utilisation of Compensation Provision,Neighbourhoods,WATFORD COUNCIL,,,,215498572,5000298067,,PROPERTY SEARCHES NEW BURDENS PAYMENT - TINKLERS L,WD17 3EX,"3,087.00",
Communities & Local Government,DCLG,01/07/2015,Utilisation of Compensation Provision,Neighbourhoods,WAVENEY DISTRICT COUNCIL,,Large,,229740980,5000297975,,PROPERTY SEARCHES NEW BURDENS PAYMENT - TINKLERS L,NR32 1HS,"24,924.00",
Communities & Local Government,DCLG,01/07/2015,Utilisation of Compensation Provision,Neighbourhoods,WAVERLEY BC V177,,,,,5000297976,,PROPERTY SEARCHES NEW BURDENS PAYMENT - TINKLERS L,GU7 1HR,"7,436.00",
Communities & Local Government,DCLG,01/07/2015,Utilisation of Compensation Provision,Neighbourhoods,WEALDEN DC,,,,232688697,5000297977,,PROPERTY SEARCHES NEW BURDENS PAYMENT - TINKLERS L,BN22 9LN,"34,977.00",
Communities & Local Government,DCLG,01/07/2015,Utilisation of Compensation Provision,Neighbourhoods,WELLINGBOROUGH BOROUGH COUNCIL,,Large,,230851581,5000298068,,PROPERTY SEARCHES NEW BURDENS PAYMENT - TINKLERS L,NN8 1BN,"5,323.00",
Communities & Local Government,DCLG,01/07/2015,Utilisation of Compensation Provision,Neighbourhoods,WEST DORSET DC,,,,424295350,5000297978,,PROPERTY SEARCHES NEW BURDENS PAYMENT - TINKLERS L,DT1 1UZ,"9,999.00",
Communities & Local Government,DCLG,01/07/2015,Utilisation of Compensation Provision,Neighbourhoods,WEST LINDSEY DC,,,,227471026,5000297979,,PROPERTY SEARCHES NEW BURDENS PAYMENT - TINKLERS L,DN21 2NA,"37,667.00",
Communities & Local Government,DCLG,01/07/2015,Utilisation of Compensation Provision,Neighbourhoods,WESTMINSTER CITY CNCL,,,,229845706,5000298069,,PROPERTY SEARCHES NEW BURDENS PAYMENT - TINKLERS L,SW1E 6QP,"62,080.00",
Communities & Local Government,DCLG,01/07/2015,Utilisation of Compensation Provision,Neighbourhoods,WIGAN MBC,,Public Bodies,,,5000298070,,PROPERTY SEARCHES NEW BURDENS PAYMENT - TINKLERS L,WN1 1AZ,"107,448.00",
Communities & Local Government,DCLG,01/07/2015,Utilisation of Compensation Provision,Neighbourhoods,WILTSHIRE COUNCIL,,,,211341656,5000298074,,PROPERTY SEARCHES NEW BURDENS PAYMENT - TINKLERS L,BA14 4DS,"19,158.00",
Communities & Local Government,DCLG,01/07/2015,Utilisation of Compensation Provision,Neighbourhoods,WINDSOR & MAIDENHEAD (HSG),,,,227411998,5000297980,,PROPERTY SEARCHES NEW BURDENS PAYMENT - TINKLERS L,SL6 1RF,"31,601.00",
Communities & Local Government,DCLG,01/07/2015,Utilisation of Compensation Provision,Neighbourhoods,WOKING BC,,,,211163449,5000298071,,PROPERTY SEARCHES NEW BURDENS PAYMENT - TINKLERS L,GU21 1YL,"45,936.00",
Communities & Local Government,DCLG,01/07/2015,Utilisation of Compensation Provision,Neighbourhoods,WOKINGHAM DC,,,,,5000298072,,PROPERTY SEARCHES NEW BURDENS PAYMENT - TINKLERS L,RG11 1WJ,"11,931.00",
Communities & Local Government,DCLG,01/07/2015,Utilisation of Compensation Provision,Neighbourhoods,WORTHING BC,,,,236429734,5000298073,,PROPERTY SEARCHES NEW BURDENS PAYMENT - TINKLERS L,BN11 1HB,"93,591.00",
Communities & Local Government,DCLG,01/07/2015,Utilisation of Compensation Provision,Neighbourhoods,WYCOMBE DC,,Medium,,232683771,5000297981,,PROPERTY SEARCHES NEW BURDENS PAYMENT - TINKLERS L,HP11 1BB,"8,932.00",
Communities & Local Government,DCLG,01/07/2015,Work In Progress Pre-Cert 40373 Spend,Neighbourhoods,ASTON UNIVERSITY,,Large,,,7600012964,,Revenue Grant To Be Paid,B4 7ET,"5,693.75",Yes
Communities & Local Government,DCLG,01/07/2015,Work In Progress Pre-Cert 40373 Spend,Neighbourhoods,ASTON UNIVERSITY,,Large,,,7600012967,,Revenue Grant To Be Paid,B4 7ET,"14,583.78",Yes
Communities & Local Government,DCLG,01/07/2015,Work In Progress Pre-Cert 40373 Spend,Neighbourhoods,CREATIVE ENGLAND LTD,,Medium,,,7600012970,,Revenue Grant To Be Paid,BS1 5SP,"68,536.60",Yes
Communities & Local Government,DCLG,01/07/2015,Work In Progress Pre-Cert 40373 Spend,Neighbourhoods,EAST MIDLANDS BUSINESS LTD,,Medium,,,7600012971,,Revenue Grant To Be Paid,LE19 1RJ,"255,922.23",Yes
Communities & Local Government,DCLG,01/07/2015,Work In Progress Pre-Cert 40373 Spend,Neighbourhoods,ONE EAST MIDLANDS,,,,,7600012974,,Revenue Grant To Be Paid,NG1 3FB,"4,716.26",Yes
Communities & Local Government,DCLG,01/07/2015,Work In Progress Pre-Cert 40373 Spend,Neighbourhoods,SOLIHULL METROPOLITAN BC,,Large,,,7600012965,,Revenue Grant To Be Paid,B91 3QS,"1,403.61",Yes
Communities & Local Government,DCLG,01/07/2015,Work In Progress Pre-Cert 40373 Spend,Neighbourhoods,SOLIHULL METROPOLITAN BC,,Large,,,7600012969,,Revenue Grant To Be Paid,B91 3QS,"4,225.36",Yes
Communities & Local Government,DCLG,01/07/2015,Work In Progress Pre-Cert 40373 Spend,Neighbourhoods,SOLIHULL METROPOLITAN BC,,Large,,,7600012972,,Revenue Grant To Be Paid,B91 3QS,"4,715.83",Yes
Communities & Local Government,DCLG,01/07/2015,Work In Progress Pre-Cert 40373 Spend,Neighbourhoods,UNIVERSITY OF THE WEST OF ENGLAND,,,,,7600012973,,Revenue Grant To Be Paid,BS16 1QY,"41,103.74",Yes
Communities & Local Government,DCLG,01/07/2015,Work In Progress Pre-Cert 40373 Spend,Neighbourhoods,UNIVERSITY OF WOLVERHAMPTON,,Large,,,7600012966,,Revenue Grant To Be Paid,WV1 1SB,"99,293.18",Yes
Communities & Local Government,DCLG,01/07/2015,Work In Progress Pre-Cert 40467 Spend,Neighbourhoods,MARLIN PROPERTIES (CORNWALL) LTD,,,,,7600012968,,Capital Grant To Be Paid,TR3 6RT,"20,971.72",Yes
Communities & Local Government,DCLG,02/07/2015,Agency Staff,Finance & Corporate Services,SQUARE ONE RESOURCES LTD,,Medium,,491410288,5106213860,Contingent Labour,SAP specialist support until Closedown,EC2A 2AD,"2,858.82",
Communities & Local Government,DCLG,02/07/2015,Current Grants to Non Profit Bodies,Neighbourhoods,CEL GROUP,,Medium,,394794614,5106213843,Technical Services,Home Improvement Agency,WA2 0YL,"76,568.23",Yes
Communities & Local Government,DCLG,02/07/2015,IT - Service Contracts,Finance & Corporate Services,DAISY CORPORATE SERVICES LTD,,Large,,221481042,5106213842,IT Managed / Outsourced Services,PAMU Office Moves Project Q4 14/15,BB9 5SR,"9,924.75",
Communities & Local Government,DCLG,02/07/2015,IT - Service Contracts,Finance & Corporate Services,FUJITSU SERVICES LTD,,Large,,423375062,5106213858,IT Managed / Outsourced Services,DCLG NR Orders Q4 FY 2014/15,WA3 6GD,"1,350.00",
Communities & Local Government,DCLG,02/07/2015,IT - Service Contracts,Finance & Corporate Services,MARKLOGIC CORPORATION,,Large,,,5106213873,IT Managed / Outsourced Services,ML System Development & Set Up,CA 94070,"27,787.50",
Communities & Local Government,DCLG,02/07/2015,IT - Service Contracts,Localism,FUJITSU SERVICES LTD,,Large,,423375062,5106213867,IT Managed / Outsourced Services,NRF0216 Transfer Network Shares,WA3 6GD,"2,748.00",
Communities & Local Government,DCLG,02/07/2015,Legal Fees,Finance & Corporate Services,DAVITT JONES BOULD LTD (OFFICE ACC),,Medium,,,5106213852,Legal,Legal Advice,TA1 4EB,3.00,
Communities & Local Government,DCLG,02/07/2015,Legal Fees,Finance & Corporate Services,DAVITT JONES BOULD LTD (OFFICE ACC),,Medium,,,5106213852,Legal,Legal Advice,TA1 4EB,801.36,
Communities & Local Government,DCLG,02/07/2015,Legal Fees,Finance & Corporate Services,DAVITT JONES BOULD LTD (OFFICE ACC),,Medium,,,5106213854,Legal,Legal Advice,TA1 4EB,"2,894.76",
Communities & Local Government,DCLG,02/07/2015,Legal Fees,Finance & Corporate Services,DAVITT JONES BOULD LTD (OFFICE ACC),,Medium,,,5106213857,Legal,Legal Advice,TA1 4EB,"1,284.48",
Communities & Local Government,DCLG,02/07/2015,Legal Fees,Finance & Corporate Services,DAVITT JONES BOULD LTD (OFFICE ACC),,Medium,,,5106213877,Legal,Legal Advice,TA1 4EB,"1,517.88",
Communities & Local Government,DCLG,02/07/2015,Photocopying,Finance & Corporate Services,BOUYGUES E&S FM UK LTD,,Large,,,5106213848,Business Support,Reprographic Services - 2 MS,SE1 7NQ,"3,543.84",
Communities & Local Government,DCLG,02/07/2015,Photocopying,Finance & Corporate Services,BOUYGUES E&S FM UK LTD,,Large,,,5106213848,Business Support,Reprographic Services - 2 MS 0% VAT,SE1 7NQ,808.59,
Communities & Local Government,DCLG,02/07/2015,Professional services,Finance & Corporate Services,E C HARRIS LLP,,Large,,,5106213798,Construction Service Providers,PAMU Com 152 Transformation Phase 2,N1 9AB,"18,600.00",
Communities & Local Government,DCLG,02/07/2015,Research,Finance & Corporate Services,DTZ DEBENHAM TIE LEUNG,,Large,,215585409,5106213875,Research,Research - The Productive use of Local Authority Assets ,B4 6AJ,"14,616.00",
Communities & Local Government,DCLG,02/07/2015,Research,Finance & Corporate Services,DTZ DEBENHAM TIE LEUNG,,Large,,215585409,5106213876,Research,Research - The Productive use of Local Authority Assets ,B4 6AJ,"-14,616.00",
Communities & Local Government,DCLG,02/07/2015,Research,Finance & Corporate Services,ECORYS UK LTD,,Medium,,,5106213870,Research,Research - Troubled Families,B1 2RA,"20,179.20",
Communities & Local Government,DCLG,02/07/2015,Steady State Service Provision,Finance & Corporate Services,CGI IT UK LIMITED,,Large,,239881618,5106213863,Business Process Outsourcing Services,Payroll Services & Licences 14/15,CF31 9AP,"7,372.77",
Communities & Local Government,DCLG,02/07/2015,Steady State Service Provision,Finance & Corporate Services,VODAFONE UK(FSSD USE ONLY),,Large,,397467572,5106213821,Business Process Outsourcing Services,PSN WAN Services FY15/16,RG14 5FF,"-10,689.40",
Communities & Local Government,DCLG,02/07/2015,Steady State Service Provision,Finance & Corporate Services,VODAFONE UK(FSSD USE ONLY),,Large,,397467572,5106213849,Business Process Outsourcing Services,PSN WAN Services FY15/16,RG14 5FF,"-2,700.00",
Communities & Local Government,DCLG,02/07/2015,Steady State Service Provision,Finance & Corporate Services,VODAFONE UK(FSSD USE ONLY),,Large,,397467572,5106213864,Business Process Outsourcing Services,PSN WAN Services FY15/16,RG14 5FF,"18,502.61",
Communities & Local Government,DCLG,02/07/2015,Steady State Service Provision,Finance & Corporate Services,VODAFONE UK(FSSD USE ONLY),,Large,,397467572,5106213866,Business Process Outsourcing Services,PSN WAN Services FY15/16,RG14 5FF,"34,939.18",
Communities & Local Government,DCLG,02/07/2015,Training,Finance & Corporate Services,LONDON DEVELOPMENT EVENTS LTD,,Micro,,671356058,5106213882,Development and Training,Residential Funding Conference,SW15 2RP,499.00,
Communities & Local Government,DCLG,02/07/2015,Web Services,"Strategy, Communications and Private Office",DEXTROUS WEB LTD,,Micro,,211267270,5106213871,ICT Services,DCLG Intranet Hosting & Support,N1 7NG,874.18,
Communities & Local Government,DCLG,02/07/2015,Work In Progress Pre-Cert 40373 Spend,Neighbourhoods,ENERGY SAVING TRUST,,,,,7600012976,,Revenue Grant To Be Paid,SW1H 9BP,"84,336.62",Yes
Communities & Local Government,DCLG,02/07/2015,Work In Progress Pre-Cert 40373 Spend,Neighbourhoods,GLE ENTERPRISE PARTNERS,,,,,7600012977,,Revenue Grant Clawback Offset,LS7 4HZ,"-6,998.53",Yes
Communities & Local Government,DCLG,02/07/2015,Work In Progress Pre-Cert 40373 Spend,Neighbourhoods,GLE ENTERPRISE PARTNERS,,,,,7600012977,,Revenue Grant To Be Paid,LS7 4HZ,"14,079.13",Yes
Communities & Local Government,DCLG,02/07/2015,Work In Progress Pre-Cert 40373 Spend,Neighbourhoods,GLE ENTERPRISE PARTNERS,,,,,7600012978,,Revenue Grant Clawback Offset,LS7 4HZ,"-21,003.71",Yes
Communities & Local Government,DCLG,02/07/2015,Work In Progress Pre-Cert 40373 Spend,Neighbourhoods,GLE ENTERPRISE PARTNERS,,,,,7600012978,,Revenue Grant To Be Paid,LS7 4HZ,"23,495.25",Yes
Communities & Local Government,DCLG,02/07/2015,Work In Progress Pre-Cert 40467 Spend,Neighbourhoods,COUNCIL OF THE ISLES OF SCILLY,,,,,7600012975,,Capital Grant To Be Paid,TR21 0LW,"77,168.35",Yes
Communities & Local Government,DCLG,02/07/2015,Work In Progress Pre-Cert 40467 Spend,Neighbourhoods,ENERGY SAVING TRUST,,,,,7600012976,,Capital Grant Clawback Offset,SW1H 9BP,"-57,832.20",Yes
Communities & Local Government,DCLG,02/07/2015,Work In Progress Pre-Cert 40467 Spend,Neighbourhoods,ENERGY SAVING TRUST,,,,,7600012976,,Capital Grant To Be Paid,SW1H 9BP,"15,530.49",Yes
Communities & Local Government,DCLG,03/07/2015,Agency Staff,Finance & Corporate Services,BROOK STREET UK LTD,,Large,,364940028,5106213910,Contingent Labour,Support worker for staff interim measure,PE1 1SY,714.56,
Communities & Local Government,DCLG,03/07/2015,Agency Staff,Finance & Corporate Services,CAPITA BUS. SERV. LTD (CON LAB),,Large,,,5106213894,Contingent Labour,Interim Manager,DL1 9HB,"2,937.72",
Communities & Local Government,DCLG,03/07/2015,Agency Staff,Neighbourhoods,CAPITA BUS. SERV. LTD (CON LAB),,Large,,,5106213892,Contingent Labour,Interim Manager,DL1 9HB,"1,217.05",
Communities & Local Government,DCLG,03/07/2015,Agency Staff,Neighbourhoods,CAPITA BUS. SERV. LTD (CON LAB),,Large,,,5106213893,Contingent Labour,Interim Manager,DL1 9HB,"4,093.00",
Communities & Local Government,DCLG,03/07/2015,Agency Staff,Neighbourhoods,CAPITA BUS. SERV. LTD (CON LAB),,Large,,,5106213896,Contingent Labour,ERDF: Quality Assurance Officer,DL1 9HB,"1,334.52",
Communities & Local Government,DCLG,03/07/2015,Agency Staff,Neighbourhoods,CAPITA BUS. SERV. LTD (CON LAB),,Large,,,5106213898,Contingent Labour,Interim Manager,DL1 9HB,"2,329.88",
Communities & Local Government,DCLG,03/07/2015,Agency Staff,Neighbourhoods,CAPITA BUS. SERV. LTD (CON LAB),,Large,,,5106213900,Contingent Labour,Interim Manager,DL1 9HB,"7,602.01",
Communities & Local Government,DCLG,03/07/2015,Agency Staff,Neighbourhoods,CAPITA BUS. SERV. LTD (CON LAB),,Large,,,5106213901,Contingent Labour,Official Travel and Subsistence,DL1 9HB,359.58,
Communities & Local Government,DCLG,03/07/2015,Agency Staff,Neighbourhoods,CAPITA BUS. SERV. LTD (CON LAB),,Large,,,5106213901,Contingent Labour,Interim Manager,DL1 9HB,"3,797.04",
Communities & Local Government,DCLG,03/07/2015,Agency Staff,Neighbourhoods,CAPITA BUS. SERV. LTD (CON LAB),,Large,,,5106213903,Contingent Labour,Interim Manager,DL1 9HB,"1,963.44",
Communities & Local Government,DCLG,03/07/2015,Agency Staff,Neighbourhoods,CAPITA BUS. SERV. LTD (CON LAB),,Large,,,5106213904,Contingent Labour,Official Travel and Subsistence,DL1 9HB,"1,406.45",
Communities & Local Government,DCLG,03/07/2015,Agency Staff,Neighbourhoods,CAPITA BUS. SERV. LTD (CON LAB),,Large,,,5106213908,Contingent Labour,Interim Manager,DL1 9HB,"2,575.92",
Communities & Local Government,DCLG,03/07/2015,Agency Staff,Neighbourhoods,CAPITA BUS. SERV. LTD (CON LAB),,Large,,,5106213909,Contingent Labour,Interim Manager,DL1 9HB,"2,628.14",
Communities & Local Government,DCLG,03/07/2015,Current (non AEF) Grants to Local Authorities,Localism,BURNLEY BC,,Large,,229413281,2100255787,,Deliver participation projects in selected areas,BB11 1JA,"40,000.00",Yes
Communities & Local Government,DCLG,03/07/2015,Current (non AEF) Grants to Local Authorities,Neighbourhoods,SOUTH YORKS PENSIONS AUTHORITY,,,,232568295,2100255799,,Rechargeable Pension Apr15 Invoice No. 1100027287,S70 2PQ,355.67,Yes
Communities & Local Government,DCLG,03/07/2015,Current (non AEF) Grants to Local Authorities,Neighbourhoods,SOUTH YORKS PENSIONS AUTHORITY,,,,232568295,2100255800,,Rechargeable Pension Apr15 Invoice No. 1100027073,S70 2PQ,354.99,Yes
Communities & Local Government,DCLG,03/07/2015,Current Grants to Non Profit Bodies,Neighbourhoods,CENTRE FOR ENGINEERING & MANUF EXCE,,,,,2100255410,,Capital Grant To Be Paid,RM13 8EU,"116,608.00",Yes
Communities & Local Government,DCLG,03/07/2015,Grant in Aid to NDPBs (non budget),Neighbourhoods,EBBSFLEET DEVELOPMENT CORPORATION,,,,,2100255801,,Budget contribution for Ebbsfleet Dev Corporation,SW1P 4DF,"291,185.00",Yes
Communities & Local Government,DCLG,03/07/2015,IT - Service Contracts,Localism,AIRWAVE SOLUTIONS LTD,,Large,,232603469,5106213912,IT Managed / Outsourced Services,Phase B Wales 2015/16,SL1 2EJ,"32,498.16",
Communities & Local Government,DCLG,03/07/2015,IT - Service Contracts,Localism,INFORMED SOLUTIONS LTD,,Small,,346179542,5106213914,IT Managed / Outsourced Services,Bug Fixes to existing Application,WA14 4PA,"1,400.00",
Communities & Local Government,DCLG,03/07/2015,IT - Service Contracts,Localism,LOCALITY,,Medium,,347998312,5106213917,IT Managed / Outsourced Services,Performance fee - Our Place,N1 6DR,"35,000.00",
Communities & Local Government,DCLG,03/07/2015,IT - Service Contracts,Localism,VERIZON UK LTD,,Large,,346786171,5106213902,IT Managed / Outsourced Services,FY15-16 IRS Dedicated Hosting 10126249,RG2 6DA,"3,411.07",
Communities & Local Government,DCLG,03/07/2015,Legal Fees,Finance & Corporate Services,DAVITT JONES BOULD LTD (OFFICE ACC),,Medium,,,5106213888,Legal,Legal Advice,TA1 4EB,984.12,
Communities & Local Government,DCLG,03/07/2015,Printing,"Strategy, Communications and Private Office",WILLIAMS LEA LIMITED,,Large,,393456413,5106213889,Printing Services,Year 3 Print services (0% VAT),NR3 1PD,849.48,
Communities & Local Government,DCLG,03/07/2015,Professional services,Localism,GOVT ACTUARYS DEPARTMENT,,Public Bodies,,217789766,5106213949,Financial,Budget 14/15,EC4A 1AB,"64,989.32",
Communities & Local Government,DCLG,03/07/2015,Professional services,Localism,GOVT ACTUARYS DEPARTMENT,,Public Bodies,,217789766,5106213950,Financial,Budget 14/15,EC4A 1AB,"-64,989.32",
Communities & Local Government,DCLG,03/07/2015,Professional services,Neighbourhoods,EXELIN LTD,,Small,,,5106213905,Financial,Machinery Assessment,TA6 6DF,"2,640.00",
Communities & Local Government,DCLG,03/07/2015,Recruitment,Finance & Corporate Services,HM REVENUE & CUSTOMS,,Public Bodies,,365117972,5106213887,Business Process Outsourcing Services,Security for new starters,BN12 4XH,"27,867.00",
Communities & Local Government,DCLG,03/07/2015,Recruitment,Finance & Corporate Services,OFFICE FOR NATIONAL STATISTICS,,Public Bodies,,232101196,5106213851,Business Process Outsourcing Services,Recruitment Charges,NP10 8XG,"2,400.00",
Communities & Local Government,DCLG,03/07/2015,Steady State Service Provision,Localism,LOCALITY,,Medium,,347998312,5106213808,Business Process Outsourcing Services,Neighbourhood Planning & CRTB,N1 6DR,"35,175.01",
Communities & Local Government,DCLG,03/07/2015,Training,Finance & Corporate Services,LOCAL GOVERNMENT ASSOCIATION,,Public Bodies,,763817103,5106213899,Development and Training,LGA Annual Conference & Exhibition 2015,SW1P 3HZ,495.00,
Communities & Local Government,DCLG,03/07/2015,Work In Progress Pre-Cert 40373 Spend,Neighbourhoods,CATALYST SCIENCE DISCOVERY CENTRE,,,,,2100255805,,Revenue Grant To Be Paid,WA8 0DF,"8,735.79",Yes
Communities & Local Government,DCLG,03/07/2015,Work In Progress Pre-Cert 40373 Spend,Neighbourhoods,KEY FUND INVESTMENTS LTD,,Small,,,7600012984,,Revenue Grant To Be Paid,S9 3TY,"1,824.18",Yes
Communities & Local Government,DCLG,03/07/2015,Work In Progress Pre-Cert 40373 Spend,Neighbourhoods,KEY FUND INVESTMENTS LTD,,Small,,,7600012985,,Revenue Grant To Be Paid,S9 3TY,"1,999.73",Yes
Communities & Local Government,DCLG,03/07/2015,Work In Progress Pre-Cert 40467 Spend,Neighbourhoods,EAST RIDING OF YORKSHIRE COUNCIL,,,,,7600012981,,Capital Grant To Be Paid,HU17 9BA,"350,723.08",Yes
Communities & Local Government,DCLG,03/07/2015,Work In Progress Pre-Cert 40467 Spend,Neighbourhoods,JARRANG LTD,,,,,7600012980,,Capital Grant To Be Paid,TR11 4SZ,"15,344.74",Yes
Communities & Local Government,DCLG,03/07/2015,Work In Progress Pre-Cert 40467 Spend,Neighbourhoods,KEY FUND INVESTMENTS LTD,,Small,,,7600012982,,Capital Grant To Be Paid,S9 3TY,"311,640.02",Yes
Communities & Local Government,DCLG,03/07/2015,Work In Progress Pre-Cert 40467 Spend,Neighbourhoods,KEY FUND INVESTMENTS LTD,,Small,,,7600012984,,Capital Grant To Be Paid,S9 3TY,"361,605.77",Yes
Communities & Local Government,DCLG,03/07/2015,Work In Progress Pre-Cert 40467 Spend,Neighbourhoods,KEY FUND INVESTMENTS LTD,,Small,,,7600012985,,Capital Grant To Be Paid,S9 3TY,"181,790.01",Yes
Communities & Local Government,DCLG,03/07/2015,Work In Progress Pre-Cert 40467 Spend,Neighbourhoods,KEY FUND INVESTMENTS LTD,,Small,,,7600012986,,Capital Grant To Be Paid,S9 3TY,"224,175.00",Yes
Communities & Local Government,DCLG,03/07/2015,Work In Progress Pre-Cert 40467 Spend,Neighbourhoods,MARK PRODUCT LTD,,,,,7600012979,,Capital Grant To Be Paid,TR10 9DU,"8,012.53",Yes
Communities & Local Government,DCLG,03/07/2015,Work In Progress Pre-Cert 40467 Spend,Neighbourhoods,SOUTH YORKS PASSENGER TRANS EXEC,,,,,7600012983,,Capital Grant To Be Paid,S1 2BQ,"1,067,096.96",Yes
Communities & Local Government,DCLG,06/07/2015,Advertising,"Strategy, Communications and Private Office",CARAT LTD,,Large,,211589882,5106212922,Advertising,Digital search adv for How to Rent,NW1 3BF,-530.05,
Communities & Local Government,DCLG,06/07/2015,Advertising,"Strategy, Communications and Private Office",CARAT LTD,,Large,,211589882,5106212922,Advertising,Non vateable - How to rent,NW1 3BF,-0.40,
Communities & Local Government,DCLG,06/07/2015,Advertising,"Strategy, Communications and Private Office",CARAT LTD,,Large,,211589882,5106212928,Advertising,Asbof Fee,NW1 3BF,-0.82,
Communities & Local Government,DCLG,06/07/2015,Advertising,"Strategy, Communications and Private Office",CARAT LTD,,Large,,211589882,5106212928,Advertising,Right to Buy - Media Buying,NW1 3BF,"-1,069.61",
Communities & Local Government,DCLG,06/07/2015,Advertising,"Strategy, Communications and Private Office",CARAT LTD,,Large,,211589882,5106213955,Advertising,Asbof Fee,NW1 3BF,83.26,
Communities & Local Government,DCLG,06/07/2015,Advertising,"Strategy, Communications and Private Office",CARAT LTD,,Large,,211589882,5106213955,Advertising,Right to Buy - Media Buying,NW1 3BF,"104,397.13",
Communities & Local Government,DCLG,06/07/2015,Agency Staff,Finance & Corporate Services,ALLEN LANE FINANCIAL RECRUITMENT,,Medium,Yes,738603443,5106213951,Contingent Labour,Interim Accountant (Ext 02),,"3,036.86",
Communities & Local Government,DCLG,06/07/2015,Agency Staff,Finance & Corporate Services,ALLEN LANE FINANCIAL RECRUITMENT,,Medium,Yes,738603443,5106213952,Contingent Labour,Interim Accountant (Ext 02),,"3,036.86",
Communities & Local Government,DCLG,06/07/2015,Agency Staff,Finance & Corporate Services,BROOK STREET UK LTD,,Large,,364940028,5106213919,Contingent Labour,Support worker for staff interim measure,PE1 1SY,374.28,
Communities & Local Government,DCLG,06/07/2015,Cap Grants to Local Authorities (DEL),Neighbourhoods,SUNDERLAND CITY COUNCIL,,,,215599312,2100255783,,1st of a series of phased payments 2015-16,SR2 7DN,"1,672,739.00",Yes
Communities & Local Government,DCLG,06/07/2015,IT - Service Contracts,Finance & Corporate Services,MARKLOGIC CORPORATION,,Large,,,5106213992,IT Managed / Outsourced Services,ML System Development & Set Up,CA 94070,"-23,760.00",
Communities & Local Government,DCLG,06/07/2015,IT - Service Contracts,Localism,AIRWAVE SOLUTIONS LTD,,Large,,232603469,5106213921,IT Managed / Outsourced Services,Phase A England 2015/16,SL1 2EJ,"1,022,461.09",
Communities & Local Government,DCLG,06/07/2015,IT - Service Contracts,Localism,AIRWAVE SOLUTIONS LTD,,Large,,232603469,5106213922,IT Managed / Outsourced Services,Phase C England (MDT1A) 2015/16,SL1 2EJ,"109,970.66",
Communities & Local Government,DCLG,06/07/2015,IT - Service Contracts,Localism,AIRWAVE SOLUTIONS LTD,,Large,,232603469,5106213924,IT Managed / Outsourced Services,Phase B England 2015/16,SL1 2EJ,"258,997.35",
Communities & Local Government,DCLG,06/07/2015,IT - Service Contracts,Localism,AIRWAVE SOLUTIONS LTD,,Large,,232603469,5106213926,IT Managed / Outsourced Services,Phase A Scotland 2015/16,SL1 2EJ,"282,521.19",
Communities & Local Government,DCLG,06/07/2015,IT - Service Contracts,Localism,AIRWAVE SOLUTIONS LTD,,Large,,232603469,5106213928,IT Managed / Outsourced Services,Phase B Wales 2015/16,SL1 2EJ,"32,578.55",
Communities & Local Government,DCLG,06/07/2015,IT - Service Contracts,Localism,AIRWAVE SOLUTIONS LTD,,Large,,232603469,5106213929,IT Managed / Outsourced Services,Phase A Wales 2015/16,SL1 2EJ,"142,432.14",
Communities & Local Government,DCLG,06/07/2015,IT - Service Contracts,Localism,AIRWAVE SOLUTIONS LTD,,Large,,232603469,5106213930,IT Managed / Outsourced Services,Phase B Scotland 2015/16,SL1 2EJ,"25,062.46",
Communities & Local Government,DCLG,06/07/2015,IT - Software Maintenance,Finance & Corporate Services,MARKLOGIC CORPORATION,,Large,,,5106213993,IT Managed / Outsourced Services,ML 2nd Year Support & Maintenance,CA 94070,"23,760.00",
Communities & Local Government,DCLG,06/07/2015,Office Supplies,Localism,BANNER BUSINESS SUPPLIES LTD,,Large,,236638362,5106213954,Office Supplies,0401843 - Rapesco report file A4,S9 1XU,44.76,
Communities & Local Government,DCLG,06/07/2015,Office Supplies,Localism,BANNER BUSINESS SUPPLIES LTD,,Large,,236638362,5106213954,Office Supplies,0621165 - mobile revolver magnetic board,S9 1XU,447.15,
Communities & Local Government,DCLG,06/07/2015,Office Supplies,Localism,BANNER BUSINESS SUPPLIES LTD,,Large,,236638362,5106213954,Office Supplies,0622222 magnetic drawing pins,S9 1XU,66.82,
Communities & Local Government,DCLG,06/07/2015,Online Database Information Retrieval,Finance & Corporate Services,SCRAPERWIKI LTD,,Micro,,,5106213944,ICT Services,Software Licence,L3 5RF,"3,600.00",
Communities & Local Government,DCLG,06/07/2015,Printing,"Strategy, Communications and Private Office",WILLIAMS LEA LIMITED,,Large,,393456413,5106213918,Printing Services,Year 3 Print services,NR3 1PD,"1,959.58",
Communities & Local Government,DCLG,06/07/2015,Professional services,Finance & Corporate Services,DAWES & FRASER CONSULTING LTD,,Small,,,5106213938,Financial,Contract and Technical Support (Jun-Dec),SE20 7BS,"6,162.00",
Communities & Local Government,DCLG,06/07/2015,Professional services,Finance & Corporate Services,DAWES & FRASER CONSULTING LTD,,Small,,,5106213938,Financial,Expenses (Jun-Dec),SE20 7BS,294.06,
Communities & Local Government,DCLG,06/07/2015,Professional services,Localism,GOVT ACTUARYS DEPARTMENT,,Public Bodies,,217789766,5106213906,Financial,Budget 15/16,EC4A 1AB,"25,495.01",
Communities & Local Government,DCLG,06/07/2015,Subscriptions,Finance & Corporate Services,CAMBRIDGE UNIVERSITY,,Large,,232343629,5106213932,Subscriptions and Admissions,Training Course,CB2 1QA,"2,940.00",
Communities & Local Government,DCLG,06/07/2015,Work In Progress Pre-Cert 40373 Spend,Neighbourhoods,ARKWRIGHT SOCIETY LTD,,Small,,,7600012988,,Revenue Grant To Be Paid,DE4 3RQ,252.58,Yes
Communities & Local Government,DCLG,06/07/2015,Work In Progress Pre-Cert 40373 Spend,Neighbourhoods,BRAUNSTONE FOUNDATION,,Small,,,7600012989,,Revenue Grant To Be Paid,LE3 1HR,"82,288.77",Yes
Communities & Local Government,DCLG,06/07/2015,Work In Progress Pre-Cert 40467 Spend,Neighbourhoods,ARKWRIGHT SOCIETY LTD,,Small,,,7600012988,,Capital Grant To Be Paid,DE4 3RQ,"2,489.24",Yes
Communities & Local Government,DCLG,07/07/2015,Courier Services,Finance & Corporate Services,INTERSERVE (FACILITIES MANAGEMENT),,Large,,364834825,5106213986,Office Solutions,Rivergate Mail 2015-16,BS32 4NH,"1,519.43",
Communities & Local Government,DCLG,07/07/2015,Domestic Services,Finance & Corporate Services,INTERSERVE (FACILITIES MANAGEMENT),,Large,,364834825,5106213986,Building Operation,TQH Cleaning 2015-16,BS32 4NH,"9,032.52",
Communities & Local Government,DCLG,07/07/2015,Domestic Services,Finance & Corporate Services,INTERSERVE (FACILITIES MANAGEMENT),,Large,,364834825,5106213986,Building Operation,Rivergate Cleaning 2015-16,BS32 4NH,"5,167.99",
Communities & Local Government,DCLG,07/07/2015,Domestic Services,Finance & Corporate Services,INTERSERVE (FACILITIES MANAGEMENT),,Large,,364834825,5106213986,Building Operation,Citygate Cleaning 2015-16,BS32 4NH,"3,090.56",
Communities & Local Government,DCLG,07/07/2015,Domestic Services,Finance & Corporate Services,INTERSERVE (FACILITIES MANAGEMENT),,Large,,364834825,5106213986,Building Operation,5SSP Cleaning 2015-16,BS32 4NH,"6,906.82",
Communities & Local Government,DCLG,07/07/2015,Domestic Services,Finance & Corporate Services,INTERSERVE (FACILITIES MANAGEMENT),,Large,,364834825,5106213986,Building Operation,High Trees Cleaning 2015-16,BS32 4NH,"2,216.98",
Communities & Local Government,DCLG,07/07/2015,Facilities Management (ISD use only),Finance & Corporate Services,INTERSERVE (FACILITIES MANAGEMENT),,Large,,364834825,5106213986,Property Occupation,PQ Offsite Man fee subject to recalc,BS32 4NH,"2,378.47",
Communities & Local Government,DCLG,07/07/2015,Facilities Management (ISD use only),Finance & Corporate Services,INTERSERVE (FACILITIES MANAGEMENT),,Large,,364834825,5106213986,Property Occupation,TQH Off Site Management 2015-16,BS32 4NH,"11,188.06",
Communities & Local Government,DCLG,07/07/2015,Facilities Management (ISD use only),Finance & Corporate Services,INTERSERVE (FACILITIES MANAGEMENT),,Large,,364834825,5106213986,Property Occupation,TQH On Site Management,BS32 4NH,"3,181.33",
Communities & Local Government,DCLG,07/07/2015,Facilities Management (ISD use only),Finance & Corporate Services,INTERSERVE (FACILITIES MANAGEMENT),,Large,,364834825,5106213986,Property Occupation,TQH Reception 2015-16,BS32 4NH,"1,663.29",
Communities & Local Government,DCLG,07/07/2015,Facilities Management (ISD use only),Finance & Corporate Services,INTERSERVE (FACILITIES MANAGEMENT),,Large,,364834825,5106213986,Property Occupation,Rivergate Off Site Mange 2015-16,BS32 4NH,"5,100.59",
Communities & Local Government,DCLG,07/07/2015,Facilities Management (ISD use only),Finance & Corporate Services,INTERSERVE (FACILITIES MANAGEMENT),,Large,,364834825,5106213986,Property Occupation,Rivergate Reception 2015-16,BS32 4NH,"1,653.74",
Communities & Local Government,DCLG,07/07/2015,Facilities Management (ISD use only),Finance & Corporate Services,INTERSERVE (FACILITIES MANAGEMENT),,Large,,364834825,5106213986,Property Occupation,Citygate Off Site Management 2015-16,BS32 4NH,"4,185.84",
Communities & Local Government,DCLG,07/07/2015,Facilities Management (ISD use only),Finance & Corporate Services,INTERSERVE (FACILITIES MANAGEMENT),,Large,,364834825,5106213986,Property Occupation,Citygate On Site Management 2015-16,BS32 4NH,"2,529.53",
Communities & Local Government,DCLG,07/07/2015,Facilities Management (ISD use only),Finance & Corporate Services,INTERSERVE (FACILITIES MANAGEMENT),,Large,,364834825,5106213986,Property Occupation,Citygate Reception 2015-16,BS32 4NH,"1,612.33",
Communities & Local Government,DCLG,07/07/2015,Facilities Management (ISD use only),Finance & Corporate Services,INTERSERVE (FACILITIES MANAGEMENT),,Large,,364834825,5106213986,Property Occupation,5SPP Reception 2015-16,BS32 4NH,"2,854.01",
Communities & Local Government,DCLG,07/07/2015,Facilities Management (ISD use only),Finance & Corporate Services,INTERSERVE (FACILITIES MANAGEMENT),,Large,,364834825,5106213986,Property Occupation,5SSP Off Site Management 2015-16,BS32 4NH,"4,137.06",
Communities & Local Government,DCLG,07/07/2015,Facilities Management (ISD use only),Finance & Corporate Services,INTERSERVE (FACILITIES MANAGEMENT),,Large,,364834825,5106213986,Property Occupation,5SSP On Site Management 2015-16,BS32 4NH,"3,032.33",
Communities & Local Government,DCLG,07/07/2015,Facilities Management (ISD use only),Finance & Corporate Services,INTERSERVE (FACILITIES MANAGEMENT),,Large,,364834825,5106213986,Property Occupation,High Trees Offsite Management 2015-16,BS32 4NH,"1,247.30",
Communities & Local Government,DCLG,07/07/2015,Fixed Maintenance,Finance & Corporate Services,INTERSERVE (FACILITIES MANAGEMENT),,Large,,364834825,5106213986,Property Occupation,TQH Maintenance 2015-16,BS32 4NH,"6,027.81",
Communities & Local Government,DCLG,07/07/2015,Fixed Maintenance,Finance & Corporate Services,INTERSERVE (FACILITIES MANAGEMENT),,Large,,364834825,5106213986,Property Occupation,Rivergate Maintenance 2015-16,BS32 4NH,"3,840.85",
Communities & Local Government,DCLG,07/07/2015,Fixed Maintenance,Finance & Corporate Services,INTERSERVE (FACILITIES MANAGEMENT),,Large,,364834825,5106213986,Property Occupation,Citygate Maintenance 2015-16,BS32 4NH,"3,637.07",
Communities & Local Government,DCLG,07/07/2015,Fixed Maintenance,Finance & Corporate Services,INTERSERVE (FACILITIES MANAGEMENT),,Large,,364834825,5106213986,Property Occupation,5SSP Maintenance 2015-16,BS32 4NH,"10,952.47",
Communities & Local Government,DCLG,07/07/2015,Fixed Maintenance,Finance & Corporate Services,INTERSERVE (FACILITIES MANAGEMENT),,Large,,364834825,5106213986,Property Occupation,High Trees Maintenance 2015-16,BS32 4NH,"5,437.63",
Communities & Local Government,DCLG,07/07/2015,Grant in Aid to NDPBs (non budget),Finance & Corporate Services,VALUATION TRIBUNAL SERVICE,,,,211218366,2100255878,,GIA to VTS - for Non Domestic Rates Appeals,E1 8EU,"523,984.00",Yes
Communities & Local Government,DCLG,07/07/2015,IT - Service Contracts,Finance & Corporate Services,FUJITSU SERVICES LTD,,Large,,423375062,5106213982,IT Managed / Outsourced Services,FY 15/16 NR New Requirements,WA3 6GD,997.00,
Communities & Local Government,DCLG,07/07/2015,IT - Service Contracts,Finance & Corporate Services,ICASEWORK LTD,,Large,,,5106213939,IT Managed / Outsourced Services,enquiries & correspondence management service charge ,NW5 1LZ,"4,600.00",
Communities & Local Government,DCLG,07/07/2015,IT - Service Contracts,Localism,AIRWAVE SOLUTIONS LTD,,Large,,232603469,5106213977,IT Managed / Outsourced Services,Phase A England 2015/16,SL1 2EJ,"204,899.64",
Communities & Local Government,DCLG,07/07/2015,IT - Service Contracts,Localism,AIRWAVE SOLUTIONS LTD,,Large,,232603469,5106213977,IT Managed / Outsourced Services,Phase A Wales 2015/16,SL1 2EJ,"23,392.94",
Communities & Local Government,DCLG,07/07/2015,IT - Service Contracts,Localism,AIRWAVE SOLUTIONS LTD,,Large,,232603469,5106213977,IT Managed / Outsourced Services,Phase A Scotland 2015/16,SL1 2EJ,"53,550.12",
Communities & Local Government,DCLG,07/07/2015,IT - Service Contracts,Localism,AIRWAVE SOLUTIONS LTD,,Large,,232603469,5106213978,IT Managed / Outsourced Services,Phase A England 2015/16,SL1 2EJ,"3,362.25",
Communities & Local Government,DCLG,07/07/2015,IT - Service Contracts,Localism,AIRWAVE SOLUTIONS LTD,,Large,,232603469,5106213987,IT Managed / Outsourced Services,Phase A England 2015/16,SL1 2EJ,"-31,567.49",
Communities & Local Government,DCLG,07/07/2015,IT - Service Contracts,Localism,AIRWAVE SOLUTIONS LTD,,Large,,232603469,5106213987,IT Managed / Outsourced Services,Phase A Wales 2015/16,SL1 2EJ,"-3,247.90",
Communities & Local Government,DCLG,07/07/2015,IT - Service Contracts,Localism,AIRWAVE SOLUTIONS LTD,,Large,,232603469,5106213987,IT Managed / Outsourced Services,Phase A Scotland 2015/16,SL1 2EJ,"-9,215.42",
Communities & Local Government,DCLG,07/07/2015,IT - Service Contracts,Localism,AIRWAVE SOLUTIONS LTD,,Large,,232603469,5106213988,IT Managed / Outsourced Services,Phase A England 2015/16,SL1 2EJ,"-8,157.54",
Communities & Local Government,DCLG,07/07/2015,IT - Service Contracts,Localism,AIRWAVE SOLUTIONS LTD,,Large,,232603469,5106213988,IT Managed / Outsourced Services,Phase A Wales 2015/16,SL1 2EJ,-931.33,
Communities & Local Government,DCLG,07/07/2015,IT - Service Contracts,Localism,AIRWAVE SOLUTIONS LTD,,Large,,232603469,5106213988,IT Managed / Outsourced Services,Phase A Scotland 2015/16,SL1 2EJ,"-2,131.96",
Communities & Local Government,DCLG,07/07/2015,IT - Service Contracts,Localism,AIRWAVE SOLUTIONS LTD,,Large,,232603469,5106213990,IT Managed / Outsourced Services,Phase A England 2015/16,SL1 2EJ,"-6,530.48",
Communities & Local Government,DCLG,07/07/2015,IT - Service Contracts,Localism,AIRWAVE SOLUTIONS LTD,,Large,,232603469,5106213990,IT Managed / Outsourced Services,Phase A Wales 2015/16,SL1 2EJ,"-4,762.54",
Communities & Local Government,DCLG,07/07/2015,IT - Service Contracts,Localism,AIRWAVE SOLUTIONS LTD,,Large,,232603469,5106213990,IT Managed / Outsourced Services,Phase A Scotland 2015/16,SL1 2EJ,"-12,418.64",
Communities & Local Government,DCLG,07/07/2015,IT - Service Contracts,Neighbourhoods,DEXTROUS WEB LTD,,Micro,,211267270,5106213811,IT Managed / Outsourced Services,Hosting support and RAMP,N1 7NG,868.80,
Communities & Local Government,DCLG,07/07/2015,IT - Service Contracts,Neighbourhoods,LOCKHEED MARTIN BUSINESS TECH SOLUT,,Large,,399909910,5106213933,IT Managed / Outsourced Services,IT Services,PA4 9LH,"9,375.00",
Communities & Local Government,DCLG,07/07/2015,IT - Service Contracts,Neighbourhoods,LOCKHEED MARTIN BUSINESS TECH SOLUT,,Large,,399909910,5106213934,IT Managed / Outsourced Services,IT Services,PA4 9LH,"7,530.00",
Communities & Local Government,DCLG,07/07/2015,IT - Software Maintenance,Finance & Corporate Services,COMPAREX UK LTD,,Large,,,5106213972,IT Managed / Outsourced Services,Symantec NetBackup support renewal 1yr,HA1 3EL,"22,238.28",
Communities & Local Government,DCLG,07/07/2015,IT - Software Maintenance,Finance & Corporate Services,COMPUTACENTER (UK) LTD,,Large,,226023463,5106213989,IT Managed / Outsourced Services,NetBackup SAP agent license support 1 YR,AL10 9TW,"1,483.87",
Communities & Local Government,DCLG,07/07/2015,IT Consultancy,Troubled Families,STATIONERY OFFICE LTD,,Large,,779375633,5106213907,Consultancy,Discovery Phase Wks TF System Devopment,NR3 1PD,"27,210.00",
Communities & Local Government,DCLG,07/07/2015,Photocopying,Finance & Corporate Services,INTERSERVE (FACILITIES MANAGEMENT),,Large,,364834825,5106213986,Business Support,TQH Repro 2015-16,BS32 4NH,"6,529.09",
Communities & Local Government,DCLG,07/07/2015,Photocopying,Finance & Corporate Services,INTERSERVE (FACILITIES MANAGEMENT),,Large,,364834825,5106213986,Business Support,5SSP Repro 2015-16,BS32 4NH,353.08,
Communities & Local Government,DCLG,07/07/2015,Photocopying,Finance & Corporate Services,INTERSERVE (FACILITIES MANAGEMENT),,Large,,364834825,5106213986,Business Support,High Trees Repro 2015-16,BS32 4NH,126.33,
Communities & Local Government,DCLG,07/07/2015,Professional services,Finance & Corporate Services,E C HARRIS LLP,,Large,,,5106213980,Construction Service Providers,PAMU Com 153 TFM S&C Mngr & PM Support,N1 9AB,"8,846.40",
Communities & Local Government,DCLG,07/07/2015,Professional services,Finance & Corporate Services,E C HARRIS LLP,,Large,,,5106213983,Construction Service Providers,PAMU Com 153 TFM S&C Mngr & PM Support,N1 9AB,"4,421.80",
Communities & Local Government,DCLG,07/07/2015,Professional services,Localism,GOVT ACTUARYS DEPARTMENT,,Public Bodies,,217789766,5106213979,Financial,Budget 15/16,EC4A 1AB,"21,009.97",
Communities & Local Government,DCLG,07/07/2015,Publicity,"Strategy, Communications and Private Office",PRESS ASSOCIATION,,Large,,217191704,5106213943,Advertising,PRESS ASSOCIATION (PA) 2014-17,DN14 7YH,"1,325.74",
Communities & Local Government,DCLG,07/07/2015,Research,Neighbourhoods,INNOVATE AT PRP LTD,,Large,,,5106213997,Research,Confirmation of Research Proposal,KT7 0QJ,"8,238.00",
Communities & Local Government,DCLG,07/07/2015,Security,Finance & Corporate Services,INTERSERVE (FACILITIES MANAGEMENT),,Large,,364834825,5106213986,Security,TQH Security 2015-16,BS32 4NH,"9,286.58",
Communities & Local Government,DCLG,07/07/2015,Security,Finance & Corporate Services,INTERSERVE (FACILITIES MANAGEMENT),,Large,,364834825,5106213986,Security,Rivergate Security 2015-16,BS32 4NH,"6,764.25",
Communities & Local Government,DCLG,07/07/2015,Security,Finance & Corporate Services,INTERSERVE (FACILITIES MANAGEMENT),,Large,,364834825,5106213986,Security,Citygate Security 2015-16,BS32 4NH,"2,546.81",
Communities & Local Government,DCLG,07/07/2015,Security,Finance & Corporate Services,INTERSERVE (FACILITIES MANAGEMENT),,Large,,364834825,5106213986,Security,5SSP Security 2015-16,BS32 4NH,"4,816.46",
Communities & Local Government,DCLG,07/07/2015,Security,Finance & Corporate Services,INTERSERVE (FACILITIES MANAGEMENT),,Large,,364834825,5106213986,Security,High Trees Security 2015-16,BS32 4NH,"4,270.93",
Communities & Local Government,DCLG,07/07/2015,Steady State Service Provision,Finance & Corporate Services,VODAFONE LTD FORMELY CABLE & WIREL,,Large,,239869688,5106214001,Business Process Outsourcing Services,Internet Access Line ,MK3 5JP,582.58,
Communities & Local Government,DCLG,07/07/2015,Steady State Service Provision,Finance & Corporate Services,VODAFONE UK(FSSD USE ONLY),,Large,,397467572,5106213984,Business Process Outsourcing Services,PSN WAN Services FY15/16,RG14 5FF,"41,963.77",
Communities & Local Government,DCLG,07/07/2015,Training,Finance & Corporate Services,ACT NOW TRAINING LTD,,Micro,,732511501,5106213942,Development and Training,BSC Certificate in FOI 4 Nov 15,WF12 9QE,"1,850.00",
Communities & Local Government,DCLG,07/07/2015,Training,Finance & Corporate Services,KAPLAN HAWKSMERE,,Large,,736068862,5106213975,Development and Training,Financial Management on VAT Charges,EC1V 1NY,110.90,
Communities & Local Government,DCLG,07/07/2015,Training,Finance & Corporate Services,KAPLAN HAWKSMERE,,Large,,736068862,5106213975,Development and Training,Financial Management and Tax Compliance,EC1V 1NY,"1,558.68",
Communities & Local Government,DCLG,07/07/2015,Waste Disposal and pest control,Finance & Corporate Services,INTERSERVE (FACILITIES MANAGEMENT),,Large,,364834825,5106213986,Waste Management Services,TQH Waste 2015-16,BS32 4NH,"1,301.76",
Communities & Local Government,DCLG,07/07/2015,Waste Disposal and pest control,Finance & Corporate Services,INTERSERVE (FACILITIES MANAGEMENT),,Large,,364834825,5106213986,Waste Management Services,Rivergate Waste 2015-16,BS32 4NH,917.18,
Communities & Local Government,DCLG,07/07/2015,Waste Disposal and pest control,Finance & Corporate Services,INTERSERVE (FACILITIES MANAGEMENT),,Large,,364834825,5106213986,Waste Management Services,Citygate Waste 2015-16,BS32 4NH,881.29,
Communities & Local Government,DCLG,07/07/2015,Waste Disposal and pest control,Finance & Corporate Services,INTERSERVE (FACILITIES MANAGEMENT),,Large,,364834825,5106213986,Waste Management Services,5SSP Waste 2015-16,BS32 4NH,871.17,
Communities & Local Government,DCLG,07/07/2015,Waste Disposal and pest control,Finance & Corporate Services,INTERSERVE (FACILITIES MANAGEMENT),,Large,,364834825,5106213986,Waste Management Services,High Trees Waste 2015-16,BS32 4NH,271.36,
Communities & Local Government,DCLG,07/07/2015,Work In Progress Pre-Cert 40373 Spend,Neighbourhoods,BRECKLAND COUNCIL,,,,,7600012995,,Revenue Grant To Be Paid,NR19 1EE,"113,040.28",Yes
Communities & Local Government,DCLG,07/07/2015,Work In Progress Pre-Cert 40373 Spend,Neighbourhoods,CORNWALL COLLEGE,,,,,7600012999,,Revenue Grant Clawback Offset,TR15 3RD,-981.20,Yes
Communities & Local Government,DCLG,07/07/2015,Work In Progress Pre-Cert 40373 Spend,Neighbourhoods,CORNWALL COLLEGE,,,,,7600012999,,Revenue Grant To Be Paid,TR15 3RD,"21,629.98",Yes
Communities & Local Government,DCLG,07/07/2015,Work In Progress Pre-Cert 40373 Spend,Neighbourhoods,EVALU8 TRANSPORT INNOVATIONS LTD,,,,,7600012991,,Revenue Grant To Be Paid,AL10 9AB,"14,281.32",Yes
Communities & Local Government,DCLG,07/07/2015,Work In Progress Pre-Cert 40373 Spend,Neighbourhoods,EVALU8 TRANSPORT INNOVATIONS LTD,,,,,7600012992,,Revenue Grant Clawback Offset,AL10 9AB,"-13,938.52",Yes
Communities & Local Government,DCLG,07/07/2015,Work In Progress Pre-Cert 40373 Spend,Neighbourhoods,GENERATOR,,Micro,,,7600012998,,Revenue Grant To Be Paid,NE1 2PQ,"12,663.72",Yes
Communities & Local Government,DCLG,07/07/2015,Work In Progress Pre-Cert 40373 Spend,Neighbourhoods,LANCASHIRE COUNTY COUNCIL,,Large,,,7600012993,,Revenue Grant To Be Paid,PR1 0LD,"10,380.03",Yes
Communities & Local Government,DCLG,07/07/2015,Work In Progress Pre-Cert 40373 Spend,Neighbourhoods,LANCASHIRE COUNTY COUNCIL,,Large,,,7600013002,,Revenue Grant To Be Paid,PR1 0LD,"7,931.87",Yes
Communities & Local Government,DCLG,07/07/2015,Work In Progress Pre-Cert 40373 Spend,Neighbourhoods,LANCASHIRE COUNTY COUNCIL,,Large,,,7600013003,,Revenue Grant To Be Paid,PR1 0LD,"7,170.90",Yes
Communities & Local Government,DCLG,07/07/2015,Work In Progress Pre-Cert 40373 Spend,Neighbourhoods,LANCASHIRE COUNTY COUNCIL,,Large,,,7600013004,,Revenue Grant To Be Paid,PR1 0LD,"7,787.70",Yes
Communities & Local Government,DCLG,07/07/2015,Work In Progress Pre-Cert 40373 Spend,Neighbourhoods,LIVERPOOL JOHN MOORES UNIVERSITY,,,,,7600013005,,Revenue Grant To Be Paid,L3 2AJ,"7,967.02",Yes
Communities & Local Government,DCLG,07/07/2015,Work In Progress Pre-Cert 40373 Spend,Neighbourhoods,LIVERPOOL JOHN MOORES UNIVERSITY,,,,,7600013006,,Revenue Grant To Be Paid,L3 2AJ,"41,520.44",Yes
Communities & Local Government,DCLG,07/07/2015,Work In Progress Pre-Cert 40373 Spend,Neighbourhoods,NORTH EAST AUTOMOTIVE ALLIANCE (NEA,,Micro,,,7600013008,,Revenue Grant To Be Paid,SR5 3HD,"1,869.61",Yes
Communities & Local Government,DCLG,07/07/2015,Work In Progress Pre-Cert 40373 Spend,Neighbourhoods,NORTHUM'LAND BUSINESS SERVICES LTD,,,,,7600013000,,Revenue Grant To Be Paid,NE63 8QZ,"126,760.73",Yes
Communities & Local Government,DCLG,07/07/2015,Work In Progress Pre-Cert 40373 Spend,Neighbourhoods,RTC NORTH LTD,,,,,7600012996,,Revenue Grant To Be Paid,SR5 3HD,"100,195.06",Yes
Communities & Local Government,DCLG,07/07/2015,Work In Progress Pre-Cert 40373 Spend,Neighbourhoods,UNIVERSITY OF EXETER,,,,,7600012994,,Revenue Grant To Be Paid,EX4 4QJ,"725,436.85",Yes
Communities & Local Government,DCLG,07/07/2015,Work In Progress Pre-Cert 40373 Spend,Neighbourhoods,UNIVERSITY OF EXETER,,,,,7600012997,,Revenue Grant To Be Paid,EX4 4QJ,"403,033.10",Yes
Communities & Local Government,DCLG,07/07/2015,Work In Progress Pre-Cert 40373 Spend,Neighbourhoods,YTKO LIMITED,,,,,7600013001,,Revenue Grant To Be Paid,CB4 2QH,"67,015.94",Yes
Communities & Local Government,DCLG,07/07/2015,Work In Progress Pre-Cert 40373 Spend,Neighbourhoods,YTKO LIMITED,,,,,7600013007,,Revenue Grant To Be Paid,CB4 2QH,"75,264.66",Yes
Communities & Local Government,DCLG,07/07/2015,Work In Progress Pre-Cert 40467 Spend,Neighbourhoods,ALDER HEY CHILDRENS NHS FOUND'N TRU,,Large,,,7600012990,,Capital Grant To Be Paid,L12 2AP,"71,879.15",Yes
Communities & Local Government,DCLG,07/07/2015,Work In Progress Pre-Cert 40467 Spend,Neighbourhoods,BRECKLAND COUNCIL,,,,,7600012995,,Capital Grant To Be Paid,NR19 1EE,"233,726.66",Yes
Communities & Local Government,DCLG,07/07/2015,Work In Progress Pre-Cert 40467 Spend,Neighbourhoods,CORNWALL COLLEGE,,,,,7600012999,,Capital Grant To Be Paid,TR15 3RD,"12,541.21",Yes
Communities & Local Government,DCLG,07/07/2015,Work In Progress Pre-Cert 40467 Spend,Neighbourhoods,EVALU8 TRANSPORT INNOVATIONS LTD,,,,,7600012991,,Capital Grant To Be Paid,AL10 9AB,293.84,Yes
Communities & Local Government,DCLG,07/07/2015,Work In Progress Pre-Cert 40467 Spend,Neighbourhoods,EVALU8 TRANSPORT INNOVATIONS LTD,,,,,7600012992,,Capital Grant Clawback Offset,AL10 9AB,-636.64,Yes
Communities & Local Government,DCLG,07/07/2015,Work In Progress Pre-Cert 40467 Spend,Neighbourhoods,UNIVERSITY OF EXETER,,,,,7600012997,,Capital Grant To Be Paid,EX4 4QJ,"3,486.34",Yes
Communities & Local Government,DCLG,07/07/2015,Work In Progress Pre-Cert 40467 Spend,Neighbourhoods,WIRRAL CHAMBER OF COMMERCE,,,,,7600013009,,Capital Grant To Be Paid,CH41 1FN,"114,341.91",Yes
Communities & Local Government,DCLG,08/07/2015,Agency Staff,Finance & Corporate Services,INTERQUEST GROUP UK LIMITED,,Large,,423935241,5106214015,Contingent Labour,SAP specialist support until Closedown,EC1N 8UA,531.90,
Communities & Local Government,DCLG,08/07/2015,Agency Staff,Finance & Corporate Services,SQUARE ONE RESOURCES LTD,,Medium,,491410288,5106214018,Contingent Labour,SAP specialist support until Closedown,EC2A 2AD,"1,143.53",
Communities & Local Government,DCLG,08/07/2015,Courier Services,Finance & Corporate Services,INTERSERVE (FACILITIES MANAGEMENT),,Large,,364834825,5106214017,Office Solutions,DfECC/0028 Franking Mach CityGate 14-15,BS32 4NH,372.02,
Communities & Local Government,DCLG,08/07/2015,Domestic Services,Finance & Corporate Services,INTERSERVE (FACILITIES MANAGEMENT),,Large,,364834825,5106214017,Building Operation,DFECC/0128 Cleaning Requirement 5SSP,BS32 4NH,"1,798.35",
Communities & Local Government,DCLG,08/07/2015,Facilities Management (ISD use only),Finance & Corporate Services,INTERSERVE (FACILITIES MANAGEMENT),,Large,,364834825,5106214017,Property Occupation,DFECC/0104 Project Manager,BS32 4NH,"3,053.83",
Communities & Local Government,DCLG,08/07/2015,Facilities Management (ISD use only),Finance & Corporate Services,INTERSERVE (FACILITIES MANAGEMENT),,Large,,364834825,5106214017,Property Occupation,DFECC/0058 Pension Auto Enrol TQH,BS32 4NH,143.24,
Communities & Local Government,DCLG,08/07/2015,Facilities Management (ISD use only),Finance & Corporate Services,INTERSERVE (FACILITIES MANAGEMENT),,Large,,364834825,5106214017,Property Occupation,DFECC/0097 FHS Structure TQH 2014-15,BS32 4NH,416.85,
Communities & Local Government,DCLG,08/07/2015,Facilities Management (ISD use only),Finance & Corporate Services,INTERSERVE (FACILITIES MANAGEMENT),,Large,,364834825,5106214017,Property Occupation,DFECC/0126 FTL Applicn TQH 14-15,BS32 4NH,866.18,
Communities & Local Government,DCLG,08/07/2015,Facilities Management (ISD use only),Finance & Corporate Services,INTERSERVE (FACILITIES MANAGEMENT),,Large,,364834825,5106214017,Property Occupation,DfECC/0042 Cust Serv Man (TQH) 14-15,BS32 4NH,"3,552.75",
Communities & Local Government,DCLG,08/07/2015,Facilities Management (ISD use only),Finance & Corporate Services,INTERSERVE (FACILITIES MANAGEMENT),,Large,,364834825,5106214017,Property Occupation,DfECC/0066 Facilities-TQH-14-15,BS32 4NH,"30,710.61",
Communities & Local Government,DCLG,08/07/2015,Facilities Management (ISD use only),Finance & Corporate Services,INTERSERVE (FACILITIES MANAGEMENT),,Large,,364834825,5106214017,Property Occupation,DfECC/0074 Year 2 Contract Inflation TQH,BS32 4NH,251.85,
Communities & Local Government,DCLG,08/07/2015,Facilities Management (ISD use only),Finance & Corporate Services,INTERSERVE (FACILITIES MANAGEMENT),,Large,,364834825,5106214017,Property Occupation,DFECC/0035 Min Wage Increase Hemel,BS32 4NH,10.04,
Communities & Local Government,DCLG,08/07/2015,Facilities Management (ISD use only),Finance & Corporate Services,INTERSERVE (FACILITIES MANAGEMENT),,Large,,364834825,5106214017,Property Occupation,DFECC/0058 Pension Auto Enrol Hemel,BS32 4NH,62.40,
Communities & Local Government,DCLG,08/07/2015,Facilities Management (ISD use only),Finance & Corporate Services,INTERSERVE (FACILITIES MANAGEMENT),,Large,,364834825,5106214017,Property Occupation,DFECC/0097 FHS Structure Hemel 2014-15,BS32 4NH,57.52,
Communities & Local Government,DCLG,08/07/2015,Facilities Management (ISD use only),Finance & Corporate Services,INTERSERVE (FACILITIES MANAGEMENT),,Large,,364834825,5106214017,Property Occupation,DfECC/0045 IB TUPE - Hemel 14-15,BS32 4NH,70.03,
Communities & Local Government,DCLG,08/07/2015,Facilities Management (ISD use only),Finance & Corporate Services,INTERSERVE (FACILITIES MANAGEMENT),,Large,,364834825,5106214017,Property Occupation,DfECC/0074 Year 2 Contract Inflation HH,BS32 4NH,4.79,
Communities & Local Government,DCLG,08/07/2015,Facilities Management (ISD use only),Finance & Corporate Services,INTERSERVE (FACILITIES MANAGEMENT),,Large,,364834825,5106214017,Property Occupation,DFECC/0058 Pension Auto Enrol Rivergate,BS32 4NH,494.46,
Communities & Local Government,DCLG,08/07/2015,Facilities Management (ISD use only),Finance & Corporate Services,INTERSERVE (FACILITIES MANAGEMENT),,Large,,364834825,5106214017,Property Occupation,DFECC/0097 FHS Structure Rivergate 14-15,BS32 4NH,206.42,
Communities & Local Government,DCLG,08/07/2015,Facilities Management (ISD use only),Finance & Corporate Services,INTERSERVE (FACILITIES MANAGEMENT),,Large,,364834825,5106214017,Property Occupation,DFECC/0126 FTL Applicn Rivergate 14-15,BS32 4NH,551.00,
Communities & Local Government,DCLG,08/07/2015,Facilities Management (ISD use only),Finance & Corporate Services,INTERSERVE (FACILITIES MANAGEMENT),,Large,,364834825,5106214017,Property Occupation,DfECC/0066 Facilities-2 Rivergate- 14-15,BS32 4NH,"13,327.80",
Communities & Local Government,DCLG,08/07/2015,Facilities Management (ISD use only),Finance & Corporate Services,INTERSERVE (FACILITIES MANAGEMENT),,Large,,364834825,5106214017,Property Occupation,DFECC/0035 Min Wage Increase Citygate,BS32 4NH,25.09,
Communities & Local Government,DCLG,08/07/2015,Facilities Management (ISD use only),Finance & Corporate Services,INTERSERVE (FACILITIES MANAGEMENT),,Large,,364834825,5106214017,Property Occupation,DFECC/0058 Pension Auto Enrol Citygate,BS32 4NH,105.37,
Communities & Local Government,DCLG,08/07/2015,Facilities Management (ISD use only),Finance & Corporate Services,INTERSERVE (FACILITIES MANAGEMENT),,Large,,364834825,5106214017,Property Occupation,DFECC/0097 FHS Structure Citygate 2014-,BS32 4NH,193.05,
Communities & Local Government,DCLG,08/07/2015,Facilities Management (ISD use only),Finance & Corporate Services,INTERSERVE (FACILITIES MANAGEMENT),,Large,,364834825,5106214017,Property Occupation,DfECC/0045 IB TUPE - CityGate14-15,BS32 4NH,235.03,
Communities & Local Government,DCLG,08/07/2015,Facilities Management (ISD use only),Finance & Corporate Services,INTERSERVE (FACILITIES MANAGEMENT),,Large,,364834825,5106214017,Property Occupation,DfECC/0074 Year 2 Contract Inflation CG,BS32 4NH,12.89,
Communities & Local Government,DCLG,08/07/2015,Facilities Management (ISD use only),Finance & Corporate Services,INTERSERVE (FACILITIES MANAGEMENT),,Large,,364834825,5106214017,Property Occupation,DFECC/0058 Pension Auto Enrol 5SPP,BS32 4NH,183.25,
Communities & Local Government,DCLG,08/07/2015,Facilities Management (ISD use only),Finance & Corporate Services,INTERSERVE (FACILITIES MANAGEMENT),,Large,,364834825,5106214017,Property Occupation,DFECC/0097 FHS Structure 5SSP 2014-15,BS32 4NH,190.80,
Communities & Local Government,DCLG,08/07/2015,Facilities Management (ISD use only),Finance & Corporate Services,INTERSERVE (FACILITIES MANAGEMENT),,Large,,364834825,5106214017,Property Occupation,DFECC00106 Reception&Mail Rm Staff 5SPP,BS32 4NH,"5,510.35",
Communities & Local Government,DCLG,08/07/2015,Facilities Management (ISD use only),Finance & Corporate Services,INTERSERVE (FACILITIES MANAGEMENT),,Large,,364834825,5106214017,Property Occupation,DfECC/0045 IB TUPE - 5SPP 14-15,BS32 4NH,232.30,
Communities & Local Government,DCLG,08/07/2015,Facilities Management (ISD use only),Finance & Corporate Services,INTERSERVE (FACILITIES MANAGEMENT),,Large,,364834825,5106214017,Property Occupation,DfECC/0074 Year 2 Contract Inflation SPP,BS32 4NH,17.13,
Communities & Local Government,DCLG,08/07/2015,Fixed Maintenance,Finance & Corporate Services,INTERSERVE (FACILITIES MANAGEMENT),,Large,,364834825,5106214017,Property Occupation,DfECC/0011 Semi Comp Maint - Hemel 14-15,BS32 4NH,200.06,
Communities & Local Government,DCLG,08/07/2015,Fixed Maintenance,Finance & Corporate Services,INTERSERVE (FACILITIES MANAGEMENT),,Large,,364834825,5106214017,Property Occupation,DfECC/0011Semi Comp Maint-CityGate 14-15,BS32 4NH,132.47,
Communities & Local Government,DCLG,08/07/2015,Fixed Maintenance,Finance & Corporate Services,INTERSERVE (FACILITIES MANAGEMENT),,Large,,364834825,5106214017,Property Occupation,DfECC/0011 Semi Comp Maint- 5SPP 14-15,BS32 4NH,444.09,
Communities & Local Government,DCLG,08/07/2015,Fixed Maintenance,Finance & Corporate Services,INTERSERVE (FACILITIES MANAGEMENT),,Large,,364834825,5106214031,Property Occupation,WIP Recovery - Eland,BS32 4NH,-344.79,
Communities & Local Government,DCLG,08/07/2015,Grant in Aid to NDPBs (non budget),Finance & Corporate Services,COMMISSION LOCAL ADMINISTRATION,,,,215271508,2100255786,,CLAE running costs for July 2015,SW1P 4QP,"870,000.00",Yes
Communities & Local Government,DCLG,08/07/2015,Grant in Aid to NDPBs (non budget),Neighbourhoods,HOMES & COMMUNITIES AGENCY,,Public Bodies,,215576860,2100255904,,Monthly HCA Grant in Aid Claim - July 2015,NE11 0NA,"39,000,000.00",Yes
Communities & Local Government,DCLG,08/07/2015,IT - Software Maintenance,Finance & Corporate Services,METHODS CONSULTING LTD,,Medium,,505275578,5106214013,IT Managed / Outsourced Services,PIMS Application Support 17mths,WC2H 8AD,"24,000.00",
Communities & Local Government,DCLG,08/07/2015,IT Consultancy,Finance & Corporate Services,INFO-ASSURE LTD,,Small,,,5106214006,Consultancy,LOGASnet Data Mart Security Accreditatio,GU14 0LX,"5,629.50",
Communities & Local Government,DCLG,08/07/2015,IT Consultancy,Finance & Corporate Services,INFO-ASSURE LTD,,Small,,,5106214007,Consultancy,LOGASnet Data Mart Security Accreditatio,GU14 0LX,"6,046.50",
Communities & Local Government,DCLG,08/07/2015,Legal Fees,Neighbourhoods,BOND DICKINSON LLP,,Large,,,5106213996,Legal,Legal Advice,NE1 3DX,"3,780.00",
Communities & Local Government,DCLG,08/07/2015,Medals,Localism,ROYAL MINT,,Public Bodies,,211722976,5106214025,Learning and Development Materials,FireFighter Medals for LS Good Conduct,CF72 8YT,327.60,
Communities & Local Government,DCLG,08/07/2015,Medals,Localism,ROYAL MINT,,Public Bodies,,211722976,5106214026,Learning and Development Materials,FireFighter Medals for LS Good Conduct,CF72 8YT,302.40,
Communities & Local Government,DCLG,08/07/2015,Medals,Localism,ROYAL MINT,,Public Bodies,,211722976,5106214027,Learning and Development Materials,FireFighter Medals for LS Good Conduct,CF72 8YT,504.00,
Communities & Local Government,DCLG,08/07/2015,Medals,Localism,ROYAL MINT,,Public Bodies,,211722976,5106214028,Learning and Development Materials,FireFighter Medals for LS Good Conduct,CF72 8YT,428.40,
Communities & Local Government,DCLG,08/07/2015,Medals,Localism,ROYAL MINT,,Public Bodies,,211722976,5106214029,Learning and Development Materials,FireFighter Medals for LS Good Conduct,CF72 8YT,403.20,
Communities & Local Government,DCLG,08/07/2015,Office machinery consumables,Localism,X M A LTD,,Large,,298484148,5106213968,Office Supplies,Delweekly Longbow Hp 5500 Black (C9730A),NG11 7EP,110.18,
Communities & Local Government,DCLG,08/07/2015,Office machinery consumables,Localism,X M A LTD,,Large,,298484148,5106213968,Office Supplies,Delweekly Longbow Hp Colour Lj5500 Col S,NG11 7EP,59.39,
Communities & Local Government,DCLG,08/07/2015,Office machinery consumables,Localism,X M A LTD,,Large,,298484148,5106213968,Office Supplies,Delweekly Longbow Hp L/J 5500 Print Cart,NG11 7EP,59.39,
Communities & Local Government,DCLG,08/07/2015,Office machinery consumables,Localism,X M A LTD,,Large,,298484148,5106213968,Office Supplies,Delweekly Longbow Hp Lj5500 Smartprint C,NG11 7EP,59.40,
Communities & Local Government,DCLG,08/07/2015,Photocopying,Finance & Corporate Services,INTERSERVE (FACILITIES MANAGEMENT),,Large,,364834825,5106214017,Business Support,DfECC/0041Prov of repro equip (TQH)14-15,BS32 4NH,"9,040.17",
Communities & Local Government,DCLG,08/07/2015,Physical Storage,Finance & Corporate Services,IRON MOUNTAIN (UK) LIMITED,,Large,,501338354,5106214037,Warehousing and Storage,Offsite storage - tapes,EH54 7DF,157.93,
Communities & Local Government,DCLG,08/07/2015,Physical Storage,Finance & Corporate Services,IRON MOUNTAIN (UK) LIMITED,,Large,,501338354,5106214037,Warehousing and Storage,Offsite storage - tapes 2014-15,EH54 7DF,287.43,
Communities & Local Government,DCLG,08/07/2015,Professional services,Localism,VALUATION OFFICE AGENCY,,Public Bodies,,215253886,2100255905,Environmental Services,Payment for July 2015 work on NNDR and Council Tax,W1B 5BU,"13,308,333.00",
Communities & Local Government,DCLG,08/07/2015,Research,Neighbourhoods,SWEETT (UK) LTD,,,,,5106214040,Research,Contract meetings and progress reporting,WC1X 8AQ,"56,118.00",
Communities & Local Government,DCLG,08/07/2015,Steady State Service Provision,Finance & Corporate Services,MINISTRY OF JUSTICE,,,,211860841,5106214033,Business Process Outsourcing Services,HR CASEWORK,NP10 8ZF,"16,678.80",
Communities & Local Government,DCLG,08/07/2015,Steady State Service Provision,Localism,LOCALITY,,Medium,,347998312,5106213970,Business Process Outsourcing Services,Lot 1 Advice Service and Network,N1 6DR,"51,209.62",
Communities & Local Government,DCLG,08/07/2015,Steady State Service Provision,Localism,LOCALITY,,Medium,,347998312,5106214032,Business Process Outsourcing Services,Payment by Results Year 3,N1 6DR,"14,000.00",
Communities & Local Government,DCLG,08/07/2015,Steady State Service Provision,Neighbourhoods,TRIBAL EDUCATION-MANAGEMENT FEES,,Large,,221445146,5106214042,Business Process Outsourcing Services,Year 3 Grant Administration,BS2 8RR,"8,186.50",
Communities & Local Government,DCLG,08/07/2015,Work In Progress Pre-Cert 40373 Spend,Neighbourhoods,COMMUNITY FOUNDATION FOR LEEDS,Yes,Micro,,,7600013010,,Revenue Grant To Be Paid,LS1 2TE,"1,534.95",Yes
Communities & Local Government,DCLG,08/07/2015,Work In Progress Pre-Cert 40373 Spend,Neighbourhoods,COMMUNITY FOUNDATION FOR LEEDS,Yes,Micro,,,7600013011,,Revenue Grant To Be Paid,LS1 2TE,"3,493.62",Yes
Communities & Local Government,DCLG,08/07/2015,Work In Progress Pre-Cert 40373 Spend,Neighbourhoods,COMMUNITY FOUNDATION FOR LEEDS,Yes,Micro,,,7600013016,,Revenue Grant To Be Paid,LS1 2TE,"4,403.30",Yes
Communities & Local Government,DCLG,08/07/2015,Work In Progress Pre-Cert 40373 Spend,Neighbourhoods,COMMUNITY FOUNDATION FOR LEEDS,Yes,Micro,,,7600013017,,Revenue Grant To Be Paid,LS1 2TE,"10,477.20",Yes
Communities & Local Government,DCLG,08/07/2015,Work In Progress Pre-Cert 40373 Spend,Neighbourhoods,COMMUNITY FOUNDATION FOR LEEDS,Yes,Micro,,,7600013028,,Revenue Grant To Be Paid,LS1 2TE,"4,124.58",Yes
Communities & Local Government,DCLG,08/07/2015,Work In Progress Pre-Cert 40373 Spend,Neighbourhoods,COMMUNITY FOUNDATION FOR LEEDS,Yes,Micro,,,7600013029,,Revenue Grant To Be Paid,LS1 2TE,"4,768.14",Yes
Communities & Local Government,DCLG,08/07/2015,Work In Progress Pre-Cert 40373 Spend,Neighbourhoods,COMMUNITY FOUNDATION FOR LEEDS,Yes,Micro,,,7600013030,,Revenue Grant To Be Paid,LS1 2TE,"1,676.75",Yes
Communities & Local Government,DCLG,08/07/2015,Work In Progress Pre-Cert 40373 Spend,Neighbourhoods,EAST RIDING OF YORKSHIRE COUNCIL,,,,,7600013014,,Revenue Grant To Be Paid,HU17 9BA,"48,253.52",Yes
Communities & Local Government,DCLG,08/07/2015,Work In Progress Pre-Cert 40373 Spend,Neighbourhoods,UNITY PROPERTY SERVICES LTD,,,,,7600013012,,Revenue Grant To Be Paid,LS7 1HY,"1,245.03",Yes
Communities & Local Government,DCLG,08/07/2015,Work In Progress Pre-Cert 40373 Spend,Neighbourhoods,UNITY PROPERTY SERVICES LTD,,,,,7600013013,,Revenue Grant To Be Paid,LS7 1HY,"2,913.09",Yes
Communities & Local Government,DCLG,08/07/2015,Work In Progress Pre-Cert 40467 Spend,Neighbourhoods,CARNELL MANAGMENT SERVICES LTD,,,,,7600013015,,Capital Grant To Be Paid,WF2 7AW,"94,975.59",Yes
Communities & Local Government,DCLG,08/07/2015,Work In Progress Pre-Cert 40467 Spend,Neighbourhoods,CARNELL MANAGMENT SERVICES LTD,,,,,7600013025,,Capital Grant To Be Paid,WF2 7AW,"165,217.79",Yes
Communities & Local Government,DCLG,08/07/2015,Work In Progress Pre-Cert 40467 Spend,Neighbourhoods,EAST RIDING OF YORKSHIRE COUNCIL,,,,,7600013014,,Capital Grant To Be Paid,HU17 9BA,"833,116.99",Yes
Communities & Local Government,DCLG,08/07/2015,Work In Progress Pre-Cert 40467 Spend,Neighbourhoods,HOMES & COMMUNITIES AGENCY,,Large,,,7600013026,,Capital Grant To Be Paid,NE11 0NA,"319,674.45",Yes
Communities & Local Government,DCLG,08/07/2015,Work In Progress Pre-Cert 40467 Spend,Neighbourhoods,SOCIAL ENTERPRISE LOAN FUND,,Small,,,2300002283,,Recovery of payment,SW8 2LN,"-50,000.00",Yes
Communities & Local Government,DCLG,08/07/2015,Work In Progress Pre-Cert 40467 Spend,Neighbourhoods,SOCIAL ENTERPRISE LOAN FUND,,Small,,,2300002284,,Recovery of payment,SW8 2LN,"-31,000.00",Yes
Communities & Local Government,DCLG,08/07/2015,Work In Progress Pre-Cert 40467 Spend,Neighbourhoods,UNITY PROPERTY SERVICES LTD,,,,,7600013012,,Capital Grant To Be Paid,LS7 1HY,"8,621.81",Yes
Communities & Local Government,DCLG,08/07/2015,Work In Progress Pre-Cert 40467 Spend,Neighbourhoods,UNITY PROPERTY SERVICES LTD,,,,,7600013013,,Capital Grant To Be Paid,LS7 1HY,"20,578.64",Yes
Communities & Local Government,DCLG,08/07/2015,Work In Progress Pre-Cert 40467 Spend,Neighbourhoods,WYKELAND PROPERTIES LTD,,,,,7600013018,,Capital Grant To Be Paid,HU1 1UU,"19,486.24",Yes
Communities & Local Government,DCLG,08/07/2015,Work In Progress Pre-Cert 40467 Spend,Neighbourhoods,WYKELAND PROPERTIES LTD,,,,,7600013019,,Capital Grant To Be Paid,HU1 1UU,"82,605.82",Yes
Communities & Local Government,DCLG,08/07/2015,Work In Progress Pre-Cert 40467 Spend,Neighbourhoods,WYKELAND PROPERTIES LTD,,,,,7600013020,,Capital Grant To Be Paid,HU1 1UU,"2,924.72",Yes
Communities & Local Government,DCLG,08/07/2015,Work In Progress Pre-Cert 40467 Spend,Neighbourhoods,WYKELAND PROPERTIES LTD,,,,,7600013021,,Capital Grant To Be Paid,HU1 1UU,"4,191.30",Yes
Communities & Local Government,DCLG,08/07/2015,Work In Progress Pre-Cert 40467 Spend,Neighbourhoods,WYKELAND PROPERTIES LTD,,,,,7600013022,,Capital Grant To Be Paid,HU1 1UU,"13,172.35",Yes
Communities & Local Government,DCLG,08/07/2015,Work In Progress Pre-Cert 40467 Spend,Neighbourhoods,WYKELAND PROPERTIES LTD,,,,,7600013023,,Capital Grant To Be Paid,HU1 1UU,"11,118.08",Yes
Communities & Local Government,DCLG,08/07/2015,Work In Progress Pre-Cert 40467 Spend,Neighbourhoods,WYKELAND PROPERTIES LTD,,,,,7600013024,,Capital Grant To Be Paid,HU1 1UU,"6,013.99",Yes
Communities & Local Government,DCLG,08/07/2015,Work In Progress Pre-Cert 40467 Spend,Neighbourhoods,WYKELAND PROPERTIES LTD,,,,,7600013027,,Capital Grant To Be Paid,HU1 1UU,"20,149.24",Yes
Communities & Local Government,DCLG,09/07/2015,Agency Staff,"Strategy, Communications and Private Office",*BROOK STREET BUREAU,,Large,,509700118,5106214068,Contingent Labour,Temp staff,AL1 4JB,291.98,
Communities & Local Government,DCLG,09/07/2015,Agency Staff,"Strategy, Communications and Private Office",*BROOK STREET BUREAU,,Large,,509700118,5106214069,Contingent Labour,Temp staff,AL1 4JB,716.84,
Communities & Local Government,DCLG,09/07/2015,Agency Staff,"Strategy, Communications and Private Office",BROOK STREET BUREAU,,Large,,215794799,5106214070,Contingent Labour,Temp staff,WD1 2BP,449.14,
Communities & Local Government,DCLG,09/07/2015,Agency Staff,"Strategy, Communications and Private Office",BROOK STREET BUREAU,,Large,,215794799,5106214071,Contingent Labour,Temp staff,WD1 2BP,535.92,
Communities & Local Government,DCLG,09/07/2015,Current (non AEF) Grants to Local Authorities,Localism,BEDFORDSHIRE POLICE AUTH,,,,210335070,2600061970,,CT REFERENDUM,MK43 9AX,"111,200.00",Yes
Communities & Local Government,DCLG,09/07/2015,Current (non AEF) Grants to Local Authorities,Neighbourhoods,BIRMINGHAM CITY CNCL,,,,213780559,5000298472,,Preventing Homelessness Grant (LAs),B2 2AJ,"70,000.00",Yes
Communities & Local Government,DCLG,09/07/2015,Current (non AEF) Grants to Local Authorities,Neighbourhoods,BLACKBURN WITH DARWEN BC,,,,,5000298476,,Preventing Homelessness Grant (LAs),BB1 7DY,"66,388.00",Yes
Communities & Local Government,DCLG,09/07/2015,Current (non AEF) Grants to Local Authorities,Neighbourhoods,BOSTON BC,,,,236417713,5000298103,,Preventing Homelessness Grant (LAs),PE21 8QR,"301,367.00",Yes
Communities & Local Government,DCLG,09/07/2015,Current (non AEF) Grants to Local Authorities,Neighbourhoods,BRADFORD MBC,,,,,5000298491,,Preventing Homelessness Grant (LAs),BD1 1HX,"50,000.00",Yes
Communities & Local Government,DCLG,09/07/2015,Current (non AEF) Grants to Local Authorities,Neighbourhoods,BRIGHTON & HOVE CITY COUNCIL,,Large,,228455218,5000298496,,Preventing Homelessness Grant (LAs),BN3 2LS,"70,349.00",Yes
Communities & Local Government,DCLG,09/07/2015,Current (non AEF) Grants to Local Authorities,Neighbourhoods,BRISTOL CITY CNCL (HSG),,,,211103882,5000298113,,Preventing Homelessness Grant (LAs),BS99 7BL,"60,000.00",Yes
Communities & Local Government,DCLG,09/07/2015,Current (non AEF) Grants to Local Authorities,Neighbourhoods,BROMLEY LB,,,,211331954,5000298499,,Preventing Homelessness Grant (LAs),BR1 3UH,"60,610.00",Yes
Communities & Local Government,DCLG,09/07/2015,Current (non AEF) Grants to Local Authorities,Neighbourhoods,CAMBRIDGE CITY COUNCIL,,,,210357534,5000298512,,Preventing Homelessness Grant (LAs),CB2 3NA,"69,821.00",Yes
Communities & Local Government,DCLG,09/07/2015,Current (non AEF) Grants to Local Authorities,Neighbourhoods,CHESHIRE EAST COUNCIL,,Large,,,5000298845,,Preventing Homelessness Grant (LAs),CW11 1HZ,"82,000.00",Yes
Communities & Local Government,DCLG,09/07/2015,Current (non AEF) Grants to Local Authorities,Neighbourhoods,CHESHIRE WEST & CHESTER UA,,Large,,215584383,5000298848,,Preventing Homelessness Grant (LAs),CH1 2NP,"75,000.00",Yes
Communities & Local Government,DCLG,09/07/2015,Current (non AEF) Grants to Local Authorities,Neighbourhoods,CITY OF SUNDERLAND (HSG),,,,215599312,5000298136,,Preventing Homelessness Grant (LAs),SR2 7DN,"21,621.00",Yes
Communities & Local Government,DCLG,09/07/2015,Current (non AEF) Grants to Local Authorities,Neighbourhoods,COLCHESTER BC,,,,,5000298529,,Preventing Homelessness Grant (LAs),CO3 3WG,"65,000.00",Yes
Communities & Local Government,DCLG,09/07/2015,Current (non AEF) Grants to Local Authorities,Neighbourhoods,CORNWALL UNITARY AUTHORITY,,,,211334404,5000298855,,Preventing Homelessness Grant (LAs),TR1 3AY,"71,280.00",Yes
Communities & Local Government,DCLG,09/07/2015,Current (non AEF) Grants to Local Authorities,Neighbourhoods,COVENTRY CITY CNCL,,,,210384802,5000298532,,Preventing Homelessness Grant (LAs),CV1 2QL,"65,100.00",Yes
Communities & Local Government,DCLG,09/07/2015,Current (non AEF) Grants to Local Authorities,Neighbourhoods,DERBY CITY CNCL,,,,229641378,5000298541,,Preventing Homelessness Grant (LAs),DE1 2FS,"54,646.00",Yes
Communities & Local Government,DCLG,09/07/2015,Current (non AEF) Grants to Local Authorities,Neighbourhoods,DERBYSHIRE COUNTYCOUNCIL,,,,232152967,5000298544,,Preventing Homelessness Grant (LAs),DE4 3AG,"421,597.00",Yes
Communities & Local Government,DCLG,09/07/2015,Current (non AEF) Grants to Local Authorities,Neighbourhoods,DURHAM COUNTY COUNCIL,,,,224004882,5000298858,,Preventing Homelessness Grant (LAs),DH1 5UE,"230,987.00",Yes
Communities & Local Government,DCLG,09/07/2015,Current (non AEF) Grants to Local Authorities,Neighbourhoods,FENLAND DC,,,,227476348,5000298185,,Preventing Homelessness Grant (LAs),PE15 8NQ,"69,798.00",Yes
Communities & Local Government,DCLG,09/07/2015,Current (non AEF) Grants to Local Authorities,Neighbourhoods,FOREST OF DEAN DC,,,,211278890,5000298192,,Preventing Homelessness Grant (LAs),GL16 8HG,"350,000.00",Yes
Communities & Local Government,DCLG,09/07/2015,Current (non AEF) Grants to Local Authorities,Neighbourhoods,GEDLING BC,,,,236180337,5000298573,,Preventing Homelessness Grant (LAs),NG5 6LU,"469,499.00",Yes
Communities & Local Government,DCLG,09/07/2015,Current (non AEF) Grants to Local Authorities,Neighbourhoods,GREENWICH LB,,,,,5000298585,,Preventing Homelessness Grant (LAs),SE18 6HQ,"49,744.00",Yes
Communities & Local Government,DCLG,09/07/2015,Current (non AEF) Grants to Local Authorities,Neighbourhoods,HART DC,,,,229723895,5000298598,,Preventing Homelessness Grant (LAs),GU13 8AE,"633,500.00",Yes
Communities & Local Government,DCLG,09/07/2015,Current (non AEF) Grants to Local Authorities,Neighbourhoods,HARTLEPOOL BOROUGH COUNCIL,,,,424291797,5000298602,,Preventing Homelessness Grant (LAs),TS24 8AY,"38,860.00",Yes
Communities & Local Government,DCLG,09/07/2015,Current (non AEF) Grants to Local Authorities,Neighbourhoods,HIGH PEAK BC,,,,239967771,5000298210,,Preventing Homelessness Grant (LAs),SK17 6EL,"88,989.00",Yes
Communities & Local Government,DCLG,09/07/2015,Current (non AEF) Grants to Local Authorities,Neighbourhoods,HULL CITY COUNCIL,,,,217460984,5000298631,,Preventing Homelessness Grant (LAs),HU1 2AA,"47,662.00",Yes
Communities & Local Government,DCLG,09/07/2015,Current (non AEF) Grants to Local Authorities,Neighbourhoods,HUNTINGDONSHIRE DC,,,,235999216,5000298218,,Preventing Homelessness Grant (LAs),PE18 6TN,"67,014.00",Yes
Communities & Local Government,DCLG,09/07/2015,Current (non AEF) Grants to Local Authorities,Neighbourhoods,ISLINGTON LB,,,,225716729,5000298623,,Preventing Homelessness Grant (LAs),N1 1XR,"70,000.00",Yes
Communities & Local Government,DCLG,09/07/2015,Current (non AEF) Grants to Local Authorities,Neighbourhoods,KNOWSLEY MBC,,,,,5000298634,,Preventing Homelessness Grant (LAs),L36 9YZ,"70,000.00",Yes
Communities & Local Government,DCLG,09/07/2015,Current (non AEF) Grants to Local Authorities,Neighbourhoods,LANCASHIRE COUNTY CNCL,,,,233136584,5000298640,,Preventing Homelessness Grant (LAs),PR1 8RD,"526,106.00",Yes
Communities & Local Government,DCLG,09/07/2015,Current (non AEF) Grants to Local Authorities,Neighbourhoods,LIVERPOOL CITY COUNCIL,,,,,5000298651,,Preventing Homelessness Grant (LAs),L2 2DH,"68,938.00",Yes
Communities & Local Government,DCLG,09/07/2015,Current (non AEF) Grants to Local Authorities,Neighbourhoods,LONDON BOROUGH OF BARNET,,,,211049507,5000298459,,Preventing Homelessness Grant (LAs),NN1 1NP,"70,000.00",Yes
Communities & Local Government,DCLG,09/07/2015,Current (non AEF) Grants to Local Authorities,Neighbourhoods,LONDON BOROUGH OF LAMBETH,,,,228216479,5000298637,,Preventing Homelessness Grant (LAs),SW2 1RL,"64,761.00",Yes
Communities & Local Government,DCLG,09/07/2015,Current (non AEF) Grants to Local Authorities,Neighbourhoods,LONDON BOROUGH OF NEWHAM,,,,211381004,5000298675,,Preventing Homelessness Grant (LAs),E16 2QU,"63,923.00",Yes
Communities & Local Government,DCLG,09/07/2015,Current (non AEF) Grants to Local Authorities,Neighbourhoods,LUTON BC,,,,365112155,5000298655,,Preventing Homelessness Grant (LAs),LU1 2BQ,"71,000.00",Yes
Communities & Local Government,DCLG,09/07/2015,Current (non AEF) Grants to Local Authorities,Neighbourhoods,MERTON LB,,,,,5000298661,,Preventing Homelessness Grant (LAs),SM4 5DX,"71,921.00",Yes
Communities & Local Government,DCLG,09/07/2015,Current (non AEF) Grants to Local Authorities,Neighbourhoods,MIDDLESBROUGH BC,,,,,5000298664,,Preventing Homelessness Grant (LAs),TS1 2QQ,"69,904.00",Yes
Communities & Local Government,DCLG,09/07/2015,Current (non AEF) Grants to Local Authorities,Neighbourhoods,MILTON KEYNES BC,,,,,5000298667,,Preventing Homelessness Grant (LAs),MK9 3WJ,"70,000.00",Yes
Communities & Local Government,DCLG,09/07/2015,Current (non AEF) Grants to Local Authorities,Neighbourhoods,NEWCASTLE UPON TYNE DC,,,,239154040,5000298672,,Preventing Homelessness Grant (LAs),NE99 2BN,"70,000.00",Yes
Communities & Local Government,DCLG,09/07/2015,Current (non AEF) Grants to Local Authorities,Neighbourhoods,NORTH DEVON DC,,,,,5000298268,,Preventing Homelessness Grant (LAs),EX31 1EA,"139,986.00",Yes
Communities & Local Government,DCLG,09/07/2015,Current (non AEF) Grants to Local Authorities,Neighbourhoods,NORTH LINCOLNSHIRE DC (HSG),,Public Bodies,,424005502,5000298280,,Preventing Homelessness Grant (LAs),DN16 1AB,"27,550.00",Yes
Communities & Local Government,DCLG,09/07/2015,Current (non AEF) Grants to Local Authorities,Neighbourhoods,NORTH TYNESIDE MBC,,,,,5000298686,,Preventing Homelessness Grant (LAs),NE27 0BY,"50,640.00",Yes
Communities & Local Government,DCLG,09/07/2015,Current (non AEF) Grants to Local Authorities,Neighbourhoods,NORTHAMPTON BOROUGH COUNCIL,,,,228310017,5000298690,,Preventing Homelessness Grant (LAs),NN4 4FF,"303,993.00",Yes
Communities & Local Government,DCLG,09/07/2015,Current (non AEF) Grants to Local Authorities,Neighbourhoods,POOLE BC (HSG),,,,,5000298294,,Preventing Homelessness Grant (LAs),BH15 2RU,"18,000.00",Yes
Communities & Local Government,DCLG,09/07/2015,Current (non AEF) Grants to Local Authorities,Neighbourhoods,SANDWELL MBC,,,,,5000298737,,Preventing Homelessness Grant (LAs),B69 3BS,"68,881.00",Yes
Communities & Local Government,DCLG,09/07/2015,Current (non AEF) Grants to Local Authorities,Neighbourhoods,SOLIHULL MBC,,,,,5000298745,,Preventing Homelessness Grant (LAs),B91 3QR,"65,002.00",Yes
Communities & Local Government,DCLG,09/07/2015,Current (non AEF) Grants to Local Authorities,Neighbourhoods,SOUTH LAKELAND DC,,,,236445466,5000298338,,Preventing Homelessness Grant (LAs),LA49 4DQ,"70,000.00",Yes
Communities & Local Government,DCLG,09/07/2015,Current (non AEF) Grants to Local Authorities,Neighbourhoods,SOUTH NORFOLK DC,,,,232605717,5000298343,,Preventing Homelessness Grant (LAs),NR15 2XE,"46,142.00",Yes
Communities & Local Government,DCLG,09/07/2015,Current (non AEF) Grants to Local Authorities,Neighbourhoods,SOUTH TYNESIDE COUNCIL,,,,345736438,5000298751,,Preventing Homelessness Grant (LAs),NE33 2RL,"68,383.00",Yes
Communities & Local Government,DCLG,09/07/2015,Current (non AEF) Grants to Local Authorities,Neighbourhoods,SOUTHEND ON SEA BC,,,,217067263,5000298756,,Preventing Homelessness Grant (LAs),SS2 6EP,"70,000.00",Yes
Communities & Local Government,DCLG,09/07/2015,Current (non AEF) Grants to Local Authorities,Neighbourhoods,ST EDMUNDSBURY BOROUGH COUNCIL,,,,212503653,5000298359,,Preventing Homelessness Grant (LAs),IP33 3YU,"168,027.00",Yes
Communities & Local Government,DCLG,09/07/2015,Current (non AEF) Grants to Local Authorities,Neighbourhoods,ST HELENS MBC,,,,,5000298762,,Preventing Homelessness Grant (LAs),WA10 1HP,"83,650.00",Yes
Communities & Local Government,DCLG,09/07/2015,Current (non AEF) Grants to Local Authorities,Neighbourhoods,STAFFORD BC,,,,227476934,5000298765,,Preventing Homelessness Grant (LAs),ST16 3AQ,"81,862.00",Yes
Communities & Local Government,DCLG,09/07/2015,Current (non AEF) Grants to Local Authorities,Neighbourhoods,STAFFORDSHIRE MOORLANDS DC,,,,232749775,5000298363,,Preventing Homelessness Grant (LAs),ST13 6HQ,"114,666.00",Yes
Communities & Local Government,DCLG,09/07/2015,Current (non AEF) Grants to Local Authorities,Neighbourhoods,STOCKTON-ON-TEES BC (HSG),,,,,5000298368,,Preventing Homelessness Grant (LAs),TS23 2YS,"50,640.00",Yes
Communities & Local Government,DCLG,09/07/2015,Current (non AEF) Grants to Local Authorities,Neighbourhoods,STRATFORD ON AVON DC,,,,227473881,5000298774,,Preventing Homelessness Grant (LAs),CV37 6HX,"31,909.00",Yes
Communities & Local Government,DCLG,09/07/2015,Current (non AEF) Grants to Local Authorities,Neighbourhoods,STROUD DC (HSG),,,,,5000298373,,Preventing Homelessness Grant (LAs),GL5 4UB,"70,000.00",Yes
Communities & Local Government,DCLG,09/07/2015,Current (non AEF) Grants to Local Authorities,Neighbourhoods,TAUNTON DEANE BC,,,,236185294,5000298384,,Preventing Homelessness Grant (LAs),TA1 1HE,"98,600.00",Yes
Communities & Local Government,DCLG,09/07/2015,Current (non AEF) Grants to Local Authorities,Neighbourhoods,WAVENEY DISTRICT COUNCIL,,Large,,229740980,5000298412,,Preventing Homelessness Grant (LAs),NR32 1HS,"40,142.00",Yes
Communities & Local Government,DCLG,09/07/2015,Current (non AEF) Grants to Local Authorities,Neighbourhoods,WELWYN HATFIELD COUNCIL,,,,210360804,5000298422,,Preventing Homelessness Grant (LAs),AL8 6AE,"65,250.00",Yes
Communities & Local Government,DCLG,09/07/2015,Current (non AEF) Grants to Local Authorities,Neighbourhoods,WEST BERKSHIRE COUNCIL,,,,364809181,5000298810,,Preventing Homelessness Grant (LAs),RG14 2AF,"77,712.00",Yes
Communities & Local Government,DCLG,09/07/2015,Current (non AEF) Grants to Local Authorities,Neighbourhoods,WORCESTER CITY CNCL,,,,227419751,5000298827,,Preventing Homelessness Grant (LAs),WR1 2EZ,"112,000.00",Yes
Communities & Local Government,DCLG,09/07/2015,Current (non AEF) Grants to Local Authorities,Neighbourhoods,WORTHING BC,,,,236429734,5000298832,,Preventing Homelessness Grant (LAs),BN11 1HB,"31,976.00",Yes
Communities & Local Government,DCLG,09/07/2015,Current (non AEF) Grants to Local Authorities,Neighbourhoods,YORK CITY CNCL,,,,,5000298837,,Preventing Homelessness Grant (LAs),YO1 0EG,"108,228.00",Yes
Communities & Local Government,DCLG,09/07/2015,Electricity,Finance & Corporate Services,EDF ENERGY 1 LIMITED,,Large,,230840469,5106214063,Energy,EoE Waterbeach Electricity 2015-16,PL3 5XQ,"2,791.50",
Communities & Local Government,DCLG,09/07/2015,IT - Service Contracts,Neighbourhoods,APTO SOLUTIONS LTD,,Small,,739026040,5106214072,IT Managed / Outsourced Services,Planning Portal 1 APP forms contract,BS8 3BA,"3,784.00",
Communities & Local Government,DCLG,09/07/2015,IT - Software Maintenance,Finance & Corporate Services,METHODS CONSULTING LTD,,Medium,,505275578,5106214067,IT Managed / Outsourced Services,PIMS Application Support 17mths,WC2H 8AD,"24,000.00",
Communities & Local Government,DCLG,09/07/2015,Legal Fees,Neighbourhoods,ASHFORDS LLP,,Large,,,5106213966,Legal,Legal Advice,EX1 3LH,"31,056.11",
Communities & Local Government,DCLG,09/07/2015,Legal Fees,Neighbourhoods,MACLAY MURRAY & SPENS LLP,,Large,,,5106214073,Legal,Legal Advice,G2 1AL,"46,346.12",
Communities & Local Government,DCLG,09/07/2015,Professional services,Finance & Corporate Services,GVA GRIMLEY LTD,,Large,,210158990,5106213971,Business Support,Com 162 Sen Surveyor Est Rationalisation,B1 2JB,"5,940.00",
Communities & Local Government,DCLG,09/07/2015,Professional services,Finance & Corporate Services,GVA GRIMLEY LTD,,Large,,210158990,5106213973,Business Support,Com 161 Sen Surveyor Est Rationalisation,B1 2JB,"3,780.00",
Communities & Local Government,DCLG,09/07/2015,Professional services,Finance & Corporate Services,GVA GRIMLEY LTD,,Large,,210158990,5106213985,Business Support,Com 164 - Treasury Function,B1 2JB,"3,512.10",
Communities & Local Government,DCLG,09/07/2015,Property/Estates Consultancy,Neighbourhoods,DELOITTE MCS LTD,,Large,,213050169,5106214060,Consultancy,Land Valuation of Eastern Quarry,EC4A 4TR,"36,000.00",
Communities & Local Government,DCLG,09/07/2015,Research,Neighbourhoods,INNOVATE AT PRP LTD,,Large,,,5106214054,Research,AD C Review + Literature Search,KT7 0QJ,"12,300.00",
Communities & Local Government,DCLG,09/07/2015,Services provided by other Govt Orgs,Finance & Corporate Services,DEPT FOR EDUCATION,,Public Bodies,,215592186,5106213859,Financial,DCLG Security Vetting 2015-16,CF14 3UW,"4,990.96",Yes
Communities & Local Government,DCLG,09/07/2015,Software Licences,Neighbourhoods,BYTES SOFTWARE SERVICES LTD,,Medium,,225273754,5106214064,Software,mind manger,KT22 7TW,314.35,
Communities & Local Government,DCLG,09/07/2015,Subscriptions,"Strategy, Communications and Private Office",LOCAL GOVERNMENT ASSOCIATION,,Public Bodies,,763817103,5106214061,Subscriptions and Admissions,Attend LGA Conference in Hrrogate,SW1P 3HZ,265.00,
Communities & Local Government,DCLG,09/07/2015,Training,Finance & Corporate Services,INSTITUTE OF INTERNAL AUDITORS,,Small,,292669967,5106214036,Development and Training,P2 Financial Risks & Controls: Revision,SW4 7BX,535.00,
Communities & Local Government,DCLG,09/07/2015,Vehicle hire,"Strategy, Communications and Private Office",GOVERNMENT CAR & DESPATCH AGENCY,,Public Bodies,,,5106214062,Vehicle Hire and Lease,Ministerial Duty Car 1 (LT118) 2015-16,SW8 5AX,"7,044.67",
Communities & Local Government,DCLG,09/07/2015,Water,Finance & Corporate Services,SEVERN TRENT WATER LTD,,Large,,234404465,5106214050,Operation of Water Supplies and Distribution,2015/16 St Philips B ham Annual Water,CV3 9FJ,686.46,
Communities & Local Government,DCLG,09/07/2015,Work In Progress Pre-Cert 40373 Spend,Neighbourhoods,CALDERDALE METROPOLITAN BOROUGH COU,,Large,,,7600013034,,Revenue Grant To Be Paid,HX1 1UN,"83,419.74",Yes
Communities & Local Government,DCLG,09/07/2015,Work In Progress Pre-Cert 40373 Spend,Neighbourhoods,COMMUNITY MEDIA SOLUTIONS LTD,,,,,7600013048,,Revenue Grant To Be Paid,S1 2BX,"26,824.93",Yes
Communities & Local Government,DCLG,09/07/2015,Work In Progress Pre-Cert 40373 Spend,Neighbourhoods,IN COMMUNITIES GROUP LTD,,Large,,,7600013035,,Revenue Grant To Be Paid,BD18 3NT,"11,128.47",Yes
Communities & Local Government,DCLG,09/07/2015,Work In Progress Pre-Cert 40373 Spend,Neighbourhoods,IN COMMUNITIES GROUP LTD,,Large,,,7600013036,,Revenue Grant To Be Paid,BD18 3NT,"44,820.78",Yes
Communities & Local Government,DCLG,09/07/2015,Work In Progress Pre-Cert 40373 Spend,Neighbourhoods,IN COMMUNITIES GROUP LTD,,Large,,,7600013039,,Revenue Grant To Be Paid,BD18 3NT,"8,832.69",Yes
Communities & Local Government,DCLG,09/07/2015,Work In Progress Pre-Cert 40373 Spend,Neighbourhoods,IN COMMUNITIES GROUP LTD,,Large,,,7600013040,,Revenue Grant To Be Paid,BD18 3NT,"25,997.43",Yes
Communities & Local Government,DCLG,09/07/2015,Work In Progress Pre-Cert 40373 Spend,Neighbourhoods,IN COMMUNITIES GROUP LTD,,Large,,,7600013050,,Revenue Grant To Be Paid,BD18 3NT,"4,697.84",Yes
Communities & Local Government,DCLG,09/07/2015,Work In Progress Pre-Cert 40373 Spend,Neighbourhoods,NORTH YORKSHIRE COUNTY COUNCIL,,Large,,,7600013037,,Revenue Grant To Be Paid,DL7 8AL,"35,378.74",Yes
Communities & Local Government,DCLG,09/07/2015,Work In Progress Pre-Cert 40373 Spend,Neighbourhoods,NORTHUM'LAND BUSINESS SERVICES LTD,,,,,7600013044,,Revenue Grant To Be Paid,NE63 8QZ,"157,729.53",Yes
Communities & Local Government,DCLG,09/07/2015,Work In Progress Pre-Cert 40373 Spend,Neighbourhoods,PERA CONSULTING UK LTD,,Medium,,,7600013045,,Revenue Grant To Be Paid,LE13 0PB,"57,714.32",Yes
Communities & Local Government,DCLG,09/07/2015,Work In Progress Pre-Cert 40373 Spend,Neighbourhoods,PRINCES TRUST,,,,,7600013032,,Revenue Grant To Be Paid,NE11 0SR,"36,169.73",Yes
Communities & Local Government,DCLG,09/07/2015,Work In Progress Pre-Cert 40373 Spend,Neighbourhoods,UNIVERSITY OF TEESIDE,,,,,7600013033,,Revenue Grant To Be Paid,TS1 3BA,"13,624.45",Yes
Communities & Local Government,DCLG,09/07/2015,Work In Progress Pre-Cert 40373 Spend,Neighbourhoods,UNIVERSITY OF TEESIDE,,,,,7600013038,,Revenue Grant To Be Paid,TS1 3BA,"22,455.22",Yes
Communities & Local Government,DCLG,09/07/2015,Work In Progress Pre-Cert 40373 Spend,Neighbourhoods,WINNING PITCH LIMITED,,Medium,,,7600013031,,Revenue Grant Clawback Offset,M5 3EJ,"-9,082.22",Yes
Communities & Local Government,DCLG,09/07/2015,Work In Progress Pre-Cert 40373 Spend,Neighbourhoods,WINNING PITCH LIMITED,,Medium,,,7600013031,,Revenue Grant To Be Paid,M5 3EJ,"73,835.46",Yes
Communities & Local Government,DCLG,09/07/2015,Work In Progress Pre-Cert 40467 Spend,Neighbourhoods,BARNSLEY METROPOLITAN BC,,Public Bodies,,,7600013041,,Capital Grant To Be Paid,S70 9OO,"150,754.48",Yes
Communities & Local Government,DCLG,09/07/2015,Work In Progress Pre-Cert 40467 Spend,Neighbourhoods,BARNSLEY METROPOLITAN BC,,Public Bodies,,,7600013042,,Capital Grant Clawback Offset,S70 9OO,"-69,025.52",Yes
Communities & Local Government,DCLG,09/07/2015,Work In Progress Pre-Cert 40467 Spend,Neighbourhoods,BARNSLEY METROPOLITAN BC,,Public Bodies,,,7600013042,,Capital Grant To Be Paid,S70 9OO,"232,165.88",Yes
Communities & Local Government,DCLG,09/07/2015,Work In Progress Pre-Cert 40467 Spend,Neighbourhoods,BARNSLEY METROPOLITAN BC,,Public Bodies,,,7600013046,,Capital Grant Clawback Offset,S70 9OO,"-14,754.54",Yes
Communities & Local Government,DCLG,09/07/2015,Work In Progress Pre-Cert 40467 Spend,Neighbourhoods,BARNSLEY METROPOLITAN BC,,Public Bodies,,,7600013046,,Capital Grant To Be Paid,S70 9OO,"97,277.87",Yes
Communities & Local Government,DCLG,09/07/2015,Work In Progress Pre-Cert 40467 Spend,Neighbourhoods,CTP (WAKEFIELD) LTD,,,,,7600013049,,Capital Grant To Be Paid,M15 4PY,"413,325.49",Yes
Communities & Local Government,DCLG,09/07/2015,Work In Progress Pre-Cert 40467 Spend,Neighbourhoods,ERNEST V WADDINGTON LTD,,Small,,,7600013043,,Capital Grant To Be Paid,S64 8AT,"150,698.01",Yes
Communities & Local Government,DCLG,09/07/2015,Work In Progress Pre-Cert 40467 Spend,Neighbourhoods,MOTORHOG HOLDINGS LTD,,Medium,,,7600013047,,Capital Grant To Be Paid,DN6 7BD,"202,390.07",Yes
Communities & Local Government,DCLG,09/07/2015,Work In Progress Pre-Cert 40467 Spend,Neighbourhoods,NORTH YORKSHIRE COUNTY COUNCIL,,Large,,,7600013037,,Capital Grant To Be Paid,DL7 8AL,"8,407.54",Yes
Communities & Local Government,DCLG,09/07/2015,Work In Progress Pre-Cert 40467 Spend,Neighbourhoods,UNIVERSITY OF TEESIDE,,,,,7600013033,,Capital Grant To Be Paid,TS1 3BA,"91,336.00",Yes
Communities & Local Government,DCLG,09/07/2015,Work In Progress Pre-Cert 40467 Spend,Neighbourhoods,WORKPODS LIMITED,,Medium,,,7600013051,,Capital Grant To Be Paid,LS1 4BJ,"253,942.75",Yes
Communities & Local Government,DCLG,10/07/2015,Agency Staff,Finance & Corporate Services,ALLEN LANE FINANCIAL RECRUITMENT,,Medium,Yes,738603443,5106214079,Contingent Labour,Interim Accountant (Ext 02),,"2,657.26",
Communities & Local Government,DCLG,10/07/2015,Agency Staff,Finance & Corporate Services,ALLEN LANE FINANCIAL RECRUITMENT,,Medium,Yes,738603443,5106214080,Contingent Labour,Interim Accountant (Ext 02),,"1,138.82",
Communities & Local Government,DCLG,10/07/2015,Agency Staff,Finance & Corporate Services,BROOK STREET UK LTD,,Large,,364940028,5106214081,Contingent Labour,Support worker for staff interim measure,PE1 1SY,735.28,
Communities & Local Government,DCLG,10/07/2015,Agency Staff,Finance & Corporate Services,BROOK STREET UK LTD,,Large,,364940028,5106214102,Contingent Labour,Support worker for staff interim measure,PE1 1SY,263.23,
Communities & Local Government,DCLG,10/07/2015,Agency Staff,Localism,CAPITA BUS. SERV. LTD (CON LAB),,Large,,,5106214084,Contingent Labour,extension 1,DL1 9HB,"5,119.87",
Communities & Local Government,DCLG,10/07/2015,Agency Staff,Neighbourhoods,*BROOK STREET BUREAU,,Large,,509700118,5106214098,Contingent Labour,Interim Admin support,AL1 4JB,820.13,
Communities & Local Government,DCLG,10/07/2015,Agency Staff,Neighbourhoods,CAPITA BUS. SERV. LTD (CON LAB),,Large,,,5106214088,Contingent Labour,Interim Manager,DL1 9HB,"10,503.84",
Communities & Local Government,DCLG,10/07/2015,Agency Staff,Neighbourhoods,CAPITA BUS. SERV. LTD (CON LAB),,Large,,,5106214089,Contingent Labour,Interim Manager,DL1 9HB,"2,559.46",
Communities & Local Government,DCLG,10/07/2015,Agency Staff,Neighbourhoods,CAPITA BUS. SERV. LTD (CON LAB),,Large,,,5106214090,Contingent Labour,Interim Manager,DL1 9HB,"7,116.67",
Communities & Local Government,DCLG,10/07/2015,Agency Staff,Neighbourhoods,CAPITA BUS. SERV. LTD (CON LAB),,Large,,,5106214090,Contingent Labour,Interim Manager,DL1 9HB,"2,223.96",
Communities & Local Government,DCLG,10/07/2015,Agency Staff,Neighbourhoods,CAPITA BUS. SERV. LTD (CON LAB),,Large,,,5106214091,Contingent Labour,Interim Manager,DL1 9HB,"5,511.72",
Communities & Local Government,DCLG,10/07/2015,Agency Staff,Neighbourhoods,CAPITA BUS. SERV. LTD (CON LAB),,Large,,,5106214092,Contingent Labour,ERDF: Quality Assurance Officer,DL1 9HB,444.84,
Communities & Local Government,DCLG,10/07/2015,Agency Staff,Neighbourhoods,CAPITA BUS. SERV. LTD (CON LAB),,Large,,,5106214093,Contingent Labour,Interim Manager,DL1 9HB,"1,725.84",
Communities & Local Government,DCLG,10/07/2015,Agency Staff,Neighbourhoods,CAPITA BUS. SERV. LTD (CON LAB),,Large,,,5106214095,Contingent Labour,Interim Manager,DL1 9HB,"2,028.42",
Communities & Local Government,DCLG,10/07/2015,Agency Staff,Neighbourhoods,CAPITA BUS. SERV. LTD (CON LAB),,Large,,,5106214099,Contingent Labour,Interim Manager,DL1 9HB,"1,352.28",
Communities & Local Government,DCLG,10/07/2015,Cap Grants to Local Authorities (DEL),Neighbourhoods,LEWES DC,,Large,,213090082,2100253819,,Coastal Communtieis Fund,BN7 1AB,"1,168,358.00",Yes
Communities & Local Government,DCLG,10/07/2015,Courier Services,Finance & Corporate Services,INTERSERVE (FACILITIES MANAGEMENT),,Large,,364834825,5106214083,Office Solutions,DfECC/0028 Franking Machine Citygate,BS32 4NH,357.02,
Communities & Local Government,DCLG,10/07/2015,Courier Services,Finance & Corporate Services,INTERSERVE (FACILITIES MANAGEMENT),,Large,,364834825,5106214083,Office Solutions,DfECC/0005 Pitney Bowes 5 SPP,BS32 4NH,371.95,
Communities & Local Government,DCLG,10/07/2015,Current Grants to Non Profit Bodies,Localism,GROUNDWORK UK,Yes,,,739193758,2100255802,,Q2 Community Rights Grant,B1 2RR,"250,000.00",Yes
Communities & Local Government,DCLG,10/07/2015,Current Grants to Non Profit Bodies,Localism,GROUNDWORK UK,Yes,,,739193758,2100255802,,Q2 Community Rights Grant,B1 2RR,"2,077,000.00",Yes
Communities & Local Government,DCLG,10/07/2015,Current Grants to Non Profit Bodies,Localism,GROUNDWORK UK,Yes,,,739193758,2100255802,,Q2 Community Rights Grant,B1 2RR,"80,000.00",Yes
Communities & Local Government,DCLG,10/07/2015,Current Grants to Non Profit Bodies,Localism,GROUNDWORK UK,Yes,,,739193758,2100255802,,Q2 Community Rights Grant,B1 2RR,"175,000.00",Yes
Communities & Local Government,DCLG,10/07/2015,Current Grants to Non Profit Bodies,Neighbourhoods,VALUATION OFFICE AGENCY,,Public Bodies,,215253886,2100255798,,2nd quarterly payment to the VOA,W1B 5BU,"610,000.00",Yes
Communities & Local Government,DCLG,10/07/2015,Domestic Services,Finance & Corporate Services,INTERSERVE (FACILITIES MANAGEMENT),,Large,,364834825,5106214083,Building Operation,DfECC/0128 Cleaning Requirements 5SPP,BS32 4NH,"1,798.35",
Communities & Local Government,DCLG,10/07/2015,Facilities Management (ISD use only),Finance & Corporate Services,INTERSERVE (FACILITIES MANAGEMENT),,Large,,364834825,5106214083,Property Occupation,DfECC/0045 IB TUPE Citygate,BS32 4NH,"1,427.16",
Communities & Local Government,DCLG,10/07/2015,Facilities Management (ISD use only),Finance & Corporate Services,INTERSERVE (FACILITIES MANAGEMENT),,Large,,364834825,5106214083,Property Occupation,Fee for Sustainability Manager,BS32 4NH,"1,498.11",
Communities & Local Government,DCLG,10/07/2015,Facilities Management (ISD use only),Finance & Corporate Services,INTERSERVE (FACILITIES MANAGEMENT),,Large,,364834825,5106214083,Property Occupation,DfECC/0104 Project Manager,BS32 4NH,"2,201.88",
Communities & Local Government,DCLG,10/07/2015,Facilities Management (ISD use only),Finance & Corporate Services,INTERSERVE (FACILITIES MANAGEMENT),,Large,,364834825,5106214083,Property Occupation,DfCC/0074 YR2 Contract Inflation TQH,BS32 4NH,251.85,
Communities & Local Government,DCLG,10/07/2015,Facilities Management (ISD use only),Finance & Corporate Services,INTERSERVE (FACILITIES MANAGEMENT),,Large,,364834825,5106214083,Property Occupation,DfECC/0042 Customer Services Manager TQH,BS32 4NH,"1,776.38",
Communities & Local Government,DCLG,10/07/2015,Facilities Management (ISD use only),Finance & Corporate Services,INTERSERVE (FACILITIES MANAGEMENT),,Large,,364834825,5106214083,Property Occupation,DfECC/0058 Auto Enrol Pensions TQH,BS32 4NH,143.24,
Communities & Local Government,DCLG,10/07/2015,Facilities Management (ISD use only),Finance & Corporate Services,INTERSERVE (FACILITIES MANAGEMENT),,Large,,364834825,5106214083,Property Occupation,DfECC/0066 Facilities TQH,BS32 4NH,"30,710.61",
Communities & Local Government,DCLG,10/07/2015,Facilities Management (ISD use only),Finance & Corporate Services,INTERSERVE (FACILITIES MANAGEMENT),,Large,,364834825,5106214083,Property Occupation,DfECC/0097 FHS Structure TQH,BS32 4NH,564.71,
Communities & Local Government,DCLG,10/07/2015,Facilities Management (ISD use only),Finance & Corporate Services,INTERSERVE (FACILITIES MANAGEMENT),,Large,,364834825,5106214083,Property Occupation,DfECC/0108 YR3 Indexation TQH,BS32 4NH,"1,023.27",
Communities & Local Government,DCLG,10/07/2015,Facilities Management (ISD use only),Finance & Corporate Services,INTERSERVE (FACILITIES MANAGEMENT),,Large,,364834825,5106214083,Property Occupation,DfECC/0126 FTL Application TQH,BS32 4NH,864.74,
Communities & Local Government,DCLG,10/07/2015,Facilities Management (ISD use only),Finance & Corporate Services,INTERSERVE (FACILITIES MANAGEMENT),,Large,,364834825,5106214083,Property Occupation,DfECC/0042 Customer Services Manager 2RG,BS32 4NH,"1,776.38",
Communities & Local Government,DCLG,10/07/2015,Facilities Management (ISD use only),Finance & Corporate Services,INTERSERVE (FACILITIES MANAGEMENT),,Large,,364834825,5106214083,Property Occupation,DfECC/0058 Auto Enrol Pensions Rivergate,BS32 4NH,494.46,
Communities & Local Government,DCLG,10/07/2015,Facilities Management (ISD use only),Finance & Corporate Services,INTERSERVE (FACILITIES MANAGEMENT),,Large,,364834825,5106214083,Property Occupation,DfECC/0066 Facilities Rivergate,BS32 4NH,"13,327.80",
Communities & Local Government,DCLG,10/07/2015,Facilities Management (ISD use only),Finance & Corporate Services,INTERSERVE (FACILITIES MANAGEMENT),,Large,,364834825,5106214083,Property Occupation,DfECC/0097 FHS Structure Rivergate,BS32 4NH,257.45,
Communities & Local Government,DCLG,10/07/2015,Facilities Management (ISD use only),Finance & Corporate Services,INTERSERVE (FACILITIES MANAGEMENT),,Large,,364834825,5106214083,Property Occupation,DfECC/0108 YR3 Indexation Rivergate,BS32 4NH,534.30,
Communities & Local Government,DCLG,10/07/2015,Facilities Management (ISD use only),Finance & Corporate Services,INTERSERVE (FACILITIES MANAGEMENT),,Large,,364834825,5106214083,Property Occupation,DfECC/0126 FTL Application Rivergate,BS32 4NH,551.00,
Communities & Local Government,DCLG,10/07/2015,Facilities Management (ISD use only),Finance & Corporate Services,INTERSERVE (FACILITIES MANAGEMENT),,Large,,364834825,5106214083,Property Occupation,DfCC/0074 YR2 Contract Inflatn Citygate,BS32 4NH,12.89,
Communities & Local Government,DCLG,10/07/2015,Facilities Management (ISD use only),Finance & Corporate Services,INTERSERVE (FACILITIES MANAGEMENT),,Large,,364834825,5106214083,Property Occupation,DfECC/0035 Min Wage Impact Citygate,BS32 4NH,25.09,
Communities & Local Government,DCLG,10/07/2015,Facilities Management (ISD use only),Finance & Corporate Services,INTERSERVE (FACILITIES MANAGEMENT),,Large,,364834825,5106214083,Property Occupation,DfECC/0058 Auto Enrol Pensions Citygate,BS32 4NH,105.37,
Communities & Local Government,DCLG,10/07/2015,Facilities Management (ISD use only),Finance & Corporate Services,INTERSERVE (FACILITIES MANAGEMENT),,Large,,364834825,5106214083,Property Occupation,DfECC/0097 FHS Structure Citygate,BS32 4NH,211.28,
Communities & Local Government,DCLG,10/07/2015,Facilities Management (ISD use only),Finance & Corporate Services,INTERSERVE (FACILITIES MANAGEMENT),,Large,,364834825,5106214083,Property Occupation,DfECC/0108 YR3 Indexation Citygate,BS32 4NH,388.27,
Communities & Local Government,DCLG,10/07/2015,Facilities Management (ISD use only),Finance & Corporate Services,INTERSERVE (FACILITIES MANAGEMENT),,Large,,364834825,5106214083,Property Occupation,DfCC/0074 YR2 Contract Inflation 5 SPP,BS32 4NH,17.13,
Communities & Local Government,DCLG,10/07/2015,Facilities Management (ISD use only),Finance & Corporate Services,INTERSERVE (FACILITIES MANAGEMENT),,Large,,364834825,5106214083,Property Occupation,DfECC/0058 Auto Enrol Pensions 5 SPP,BS32 4NH,183.25,
Communities & Local Government,DCLG,10/07/2015,Facilities Management (ISD use only),Finance & Corporate Services,INTERSERVE (FACILITIES MANAGEMENT),,Large,,364834825,5106214083,Property Occupation,DfECC/0106 Reception & MR Staff 5 SPP,BS32 4NH,"5,510.35",
Communities & Local Government,DCLG,10/07/2015,Facilities Management (ISD use only),Finance & Corporate Services,INTERSERVE (FACILITIES MANAGEMENT),,Large,,364834825,5106214083,Property Occupation,DfECC/0108 YR3 Indexation 5SPP,BS32 4NH,734.71,
Communities & Local Government,DCLG,10/07/2015,Facilities Management (ISD use only),Finance & Corporate Services,INTERSERVE (FACILITIES MANAGEMENT),,Large,,364834825,5106214083,Property Occupation,DfCC/0074 YR2 Contract Inflation Hemel,BS32 4NH,4.79,
Communities & Local Government,DCLG,10/07/2015,Facilities Management (ISD use only),Finance & Corporate Services,INTERSERVE (FACILITIES MANAGEMENT),,Large,,364834825,5106214083,Property Occupation,DfECC/0035 Min Wage Impact High Trees,BS32 4NH,10.04,
Communities & Local Government,DCLG,10/07/2015,Facilities Management (ISD use only),Finance & Corporate Services,INTERSERVE (FACILITIES MANAGEMENT),,Large,,364834825,5106214083,Property Occupation,DfECC/0058 Auto Enrol Pensions HighTrees,BS32 4NH,62.40,
Communities & Local Government,DCLG,10/07/2015,Facilities Management (ISD use only),Finance & Corporate Services,INTERSERVE (FACILITIES MANAGEMENT),,Large,,364834825,5106214083,Property Occupation,DfECC/0097 FHS Structure High Trees,BS32 4NH,62.96,
Communities & Local Government,DCLG,10/07/2015,Facilities Management (ISD use only),Finance & Corporate Services,INTERSERVE (FACILITIES MANAGEMENT),,Large,,364834825,5106214083,Property Occupation,DfECC/0108 YR3 Indexation Hemel,BS32 4NH,296.45,
Communities & Local Government,DCLG,10/07/2015,Fixed Maintenance,Finance & Corporate Services,INTERSERVE (FACILITIES MANAGEMENT),,Large,,364834825,5106214083,Property Occupation,DfECC/0011 Semi Comp Main Citygate,BS32 4NH,147.47,
Communities & Local Government,DCLG,10/07/2015,Fixed Maintenance,Finance & Corporate Services,INTERSERVE (FACILITIES MANAGEMENT),,Large,,364834825,5106214083,Property Occupation,DfECC/0011 Semi Comp Main 5SPP,BS32 4NH,444.09,
Communities & Local Government,DCLG,10/07/2015,Fixed Maintenance,Finance & Corporate Services,INTERSERVE (FACILITIES MANAGEMENT),,Large,,364834825,5106214083,Property Occupation,DfECC/0011 Semi Comp Main High Trees,BS32 4NH,200.06,
Communities & Local Government,DCLG,10/07/2015,Grant in Aid to NDPBs (non budget),Neighbourhoods,HOMES & COMMUNITIES AGENCY,,Public Bodies,,215576860,2100256000,,2nd Monthly HCA Grant in Aid Claim - August 2015,NE11 0NA,"179,529,410.00",Yes
Communities & Local Government,DCLG,10/07/2015,Photocopying,Finance & Corporate Services,INTERSERVE (FACILITIES MANAGEMENT),,Large,,364834825,5106214083,Business Support,DfECC/0041 Prov of Repro Equip TQH,BS32 4NH,"4,520.08",
Communities & Local Government,DCLG,10/07/2015,Photocopying,Finance & Corporate Services,INTERSERVE (FACILITIES MANAGEMENT),,Large,,364834825,5106214083,Business Support,DfECC/0041 Prov of Repro Equip Rivergate,BS32 4NH,"4,520.09",
Communities & Local Government,DCLG,10/07/2015,Photocopying,Finance & Corporate Services,INTERSERVE (FACILITIES MANAGEMENT),,Large,,364834825,5106214083,Business Support,DfECC/0097 FHS Structure 5 SPP,BS32 4NH,208.82,
Communities & Local Government,DCLG,10/07/2015,Research,Finance & Corporate Services,OSCAR RESEARCH LTD,,Small,,239105617,5106214059,Research,Local Government Database,GL1 2EP,750.00,
Communities & Local Government,DCLG,10/07/2015,Security,Finance & Corporate Services,INTERSERVE (FACILITIES MANAGEMENT),,Large,,364834825,5106214083,Security,DfECC/0101 Security Guard Sweep TQH,BS32 4NH,4.51,
Communities & Local Government,DCLG,10/07/2015,Security,Finance & Corporate Services,INTERSERVE (FACILITIES MANAGEMENT),,Large,,364834825,5106214083,Security,DfECC/0101 Security Guard Sweep 2 RG,BS32 4NH,54.19,
Communities & Local Government,DCLG,10/07/2015,Security,Finance & Corporate Services,INTERSERVE (FACILITIES MANAGEMENT),,Large,,364834825,5106214083,Security,DfECC/0101 Security Guard Sweep Citygate,BS32 4NH,54.19,
Communities & Local Government,DCLG,10/07/2015,Security,Finance & Corporate Services,INTERSERVE (FACILITIES MANAGEMENT),,Large,,364834825,5106214083,Security,DfECC/0101 Security Guard Sweep 5SPP,BS32 4NH,54.19,
Communities & Local Government,DCLG,10/07/2015,Security,Finance & Corporate Services,INTERSERVE (FACILITIES MANAGEMENT),,Large,,364834825,5106214083,Security,DfECC/0101 Security Guard Sweep Hemel,BS32 4NH,54.19,
Communities & Local Government,DCLG,10/07/2015,Steady State Service Provision,Finance & Corporate Services,ALLPAY LIMITED,,Medium,,738359918,5106214021,Business Process Outsourcing Services,DC/DC Transaction Charges,HR1 3SE,429.60,
Communities & Local Government,DCLG,10/07/2015,Steady State Service Provision,Finance & Corporate Services,ALLPAY LIMITED,,Medium,,738359918,5106214021,Business Process Outsourcing Services,Monthly Management Fee Payments,HR1 3SE,500.00,
Communities & Local Government,DCLG,10/07/2015,Training,Finance & Corporate Services,PROSPECTS EMPLOYMENT SERVICES,,,,216248540,5106214078,Development and Training,Colleague Awareness session - autism,BS34 7BD,750.00,
Communities & Local Government,DCLG,10/07/2015,Waste Disposal and pest control,Finance & Corporate Services,INTERSERVE (FACILITIES MANAGEMENT),,Large,,364834825,5106214083,Waste Management Services,DfECC/0109 Pest Control 5SPP,BS32 4NH,68.95,
Communities & Local Government,DCLG,10/07/2015,Work In Progress Pre-Cert 40373 Spend,Neighbourhoods,CREATIVE ENGLAND LTD,,,,,7600013054,,Revenue Grant To Be Paid,BS1 5SP,"58,395.79",Yes
Communities & Local Government,DCLG,10/07/2015,Work In Progress Pre-Cert 40373 Spend,Neighbourhoods,ORBIS ENERGY,,,,,7600013052,,Revenue Grant To Be Paid,NR14 8LZ,"108,850.66",Yes
Communities & Local Government,DCLG,10/07/2015,Work In Progress Pre-Cert 40373 Spend,Neighbourhoods,OXFORD INNOVATION SERVICES LTD,,Medium,,,7600013055,,Revenue Grant To Be Paid,OX1 1BY,"107,170.19",Yes
Communities & Local Government,DCLG,10/07/2015,Work In Progress Pre-Cert 40467 Spend,Neighbourhoods,BARNSLEY METROPOLITAN BC,,Public Bodies,,,2100256040,,Capital Grant To Be Paid,S70 9OO,"22,025.83",Yes
Communities & Local Government,DCLG,10/07/2015,Work In Progress Pre-Cert 40467 Spend,Neighbourhoods,BARNSLEY METROPOLITAN BC,,Public Bodies,,,2100256041,,Capital Grant To Be Paid,S70 9OO,"1,055.17",Yes
Communities & Local Government,DCLG,10/07/2015,Work In Progress Pre-Cert 40467 Spend,Neighbourhoods,BARNSLEY METROPOLITAN BC,,Public Bodies,,,2300002244,,Recovery of payment,S70 9OO,"-22,025.83",Yes
Communities & Local Government,DCLG,10/07/2015,Work In Progress Pre-Cert 40467 Spend,Neighbourhoods,BARNSLEY METROPOLITAN BC,,Public Bodies,,,2300002282,,Recovery of payment,S70 9OO,"-1,055.17",Yes
Communities & Local Government,DCLG,10/07/2015,Work In Progress Pre-Cert 40467 Spend,Neighbourhoods,RAVENSWORTH PROPERTY DEVELOPMENTS L,,Small,,,7600013056,,Capital Grant To Be Paid,DH1 2RS,"232,487.34",Yes
Communities & Local Government,DCLG,10/07/2015,Work In Progress Pre-Cert 40467 Spend,Neighbourhoods,WHEAL HARMONY LTD,,,,,7600013053,,Capital Grant To Be Paid,TR1 1HT,"7,578.47",Yes
Communities & Local Government,DCLG,13/07/2015,Accommodation - actuals,Finance & Corporate Services,REDFERN TRAVEL LIMITED,,Small,,213089972,2100256034,Business Travel Accommodation,Consolidated Monthly Travel June Hotels,BD1 3AZ,"1,307.60",
Communities & Local Government,DCLG,13/07/2015,Accommodation - actuals,Finance & Corporate Services,REDFERN TRAVEL LIMITED,,Small,,213089972,2100256034,Business Travel Accommodation,Consolidated Monthly Travel June Hotels,BD1 3AZ,-361.57,
Communities & Local Government,DCLG,13/07/2015,Accommodation - actuals,Finance & Corporate Services,REDFERN TRAVEL LIMITED,,Small,,213089972,2100256034,Business Travel Accommodation,Consolidated Monthly Travel June Hotels,BD1 3AZ,673.50,
Communities & Local Government,DCLG,13/07/2015,Accommodation - actuals,Localism,REDFERN TRAVEL LIMITED,,Small,,213089972,2100256034,Business Travel Accommodation,Consolidated Monthly Travel June Hotels,BD1 3AZ,641.95,
Communities & Local Government,DCLG,13/07/2015,Accommodation - actuals,Localism,REDFERN TRAVEL LIMITED,,Small,,213089972,2100256034,Business Travel Accommodation,Consolidated Monthly Travel June Hotels,BD1 3AZ,"2,305.50",
Communities & Local Government,DCLG,13/07/2015,Accommodation - actuals,Localism,REDFERN TRAVEL LIMITED,,Small,,213089972,2100256034,Business Travel Accommodation,Consolidated Monthly Travel June Hotels,BD1 3AZ,258.24,
Communities & Local Government,DCLG,13/07/2015,Accommodation - actuals,Localism,REDFERN TRAVEL LIMITED,,Small,,213089972,2100256034,Business Travel Accommodation,Consolidated Monthly Travel June Hotels,BD1 3AZ,568.38,
Communities & Local Government,DCLG,13/07/2015,Accommodation - actuals,Localism,REDFERN TRAVEL LIMITED,,Small,,213089972,2100256034,Business Travel Accommodation,Consolidated Monthly Travel June Hotels,BD1 3AZ,"1,103.75",
Communities & Local Government,DCLG,13/07/2015,Accommodation - actuals,Neighbourhoods,REDFERN TRAVEL LIMITED,,Small,,213089972,2100256034,Business Travel Accommodation,Consolidated Monthly Travel June Hotels,BD1 3AZ,892.30,
Communities & Local Government,DCLG,13/07/2015,Accommodation - actuals,Neighbourhoods,REDFERN TRAVEL LIMITED,,Small,,213089972,2100256034,Business Travel Accommodation,Consolidated Monthly Travel June Hotels,BD1 3AZ,640.10,
Communities & Local Government,DCLG,13/07/2015,Accommodation - actuals,Neighbourhoods,REDFERN TRAVEL LIMITED,,Small,,213089972,2100256034,Business Travel Accommodation,Consolidated Monthly Travel June Hotels,BD1 3AZ,714.53,
Communities & Local Government,DCLG,13/07/2015,Accommodation - actuals,Neighbourhoods,REDFERN TRAVEL LIMITED,,Small,,213089972,2100256034,Business Travel Accommodation,Consolidated Monthly Travel June Hotels,BD1 3AZ,667.00,
Communities & Local Government,DCLG,13/07/2015,Accommodation - actuals,Neighbourhoods,REDFERN TRAVEL LIMITED,,Small,,213089972,2100256034,Business Travel Accommodation,Consolidated Monthly Travel June Hotels,BD1 3AZ,"1,108.12",
Communities & Local Government,DCLG,13/07/2015,Accommodation - actuals,Neighbourhoods,REDFERN TRAVEL LIMITED,,Small,,213089972,2100256034,Business Travel Accommodation,Consolidated Monthly Travel June Hotels,BD1 3AZ,"2,293.53",
Communities & Local Government,DCLG,13/07/2015,Accommodation - actuals,Troubled Families,REDFERN TRAVEL LIMITED,,Small,,213089972,2100256034,Business Travel Accommodation,Consolidated Monthly Travel June Hotels,BD1 3AZ,"1,107.25",
Communities & Local Government,DCLG,13/07/2015,Air Travel,Finance & Corporate Services,REDFERN TRAVEL LIMITED,,Small,,213089972,2100256034,Air,Consolidated Monthly Travel June Air Tickets,BD1 3AZ,320.86,
Communities & Local Government,DCLG,13/07/2015,Air Travel,Finance & Corporate Services,REDFERN TRAVEL LIMITED,,Small,,213089972,2100256034,Air,Consolidated Monthly Travel June Air Tickets,BD1 3AZ,289.61,
Communities & Local Government,DCLG,13/07/2015,Air Travel,Localism,REDFERN TRAVEL LIMITED,,Small,,213089972,2100256034,Air,Consolidated Monthly Travel June Air Tickets,BD1 3AZ,249.56,
Communities & Local Government,DCLG,13/07/2015,Air Travel,Neighbourhoods,REDFERN TRAVEL LIMITED,,Small,,213089972,2100256034,Air,Consolidated Monthly Travel June Air Tickets,BD1 3AZ,466.73,
Communities & Local Government,DCLG,13/07/2015,Air Travel,Neighbourhoods,REDFERN TRAVEL LIMITED,,Small,,213089972,2100256034,Air,Consolidated Monthly Travel June Air Tickets,BD1 3AZ,"1,302.35",
Communities & Local Government,DCLG,13/07/2015,Air Travel,Neighbourhoods,REDFERN TRAVEL LIMITED,,Small,,213089972,2100256034,Air,Consolidated Monthly Travel June Air Tickets,BD1 3AZ,322.61,
Communities & Local Government,DCLG,13/07/2015,Air Travel,"Strategy, Communications and Private Office",REDFERN TRAVEL LIMITED,,Small,,213089972,2100256034,Air,Consolidated Monthly Travel June Air Tickets,BD1 3AZ,466.32,
Communities & Local Government,DCLG,13/07/2015,BLOCKED ERDF Match Current Subsidy Private Sectr,Neighbourhoods,OXFORD INNOVATION SERVICES LTD,,Medium,,,2100256035,,SW GDT ERDF Match Funding Payment - 203904,OX1 1BY,"156,000.00",
Communities & Local Government,DCLG,13/07/2015,Catering,Finance & Corporate Services,BOUYGUES E&S FM UK LTD (CATERING),,Large,,,2100256038,Business Support,Catering Charges March 2015,SE1 7NQ,79.00,
Communities & Local Government,DCLG,13/07/2015,Catering,Finance & Corporate Services,BOUYGUES E&S FM UK LTD (CATERING),,Large,,,2100256038,Business Support,Mar 2015 Catering,SE1 7NQ,63.00,
Communities & Local Government,DCLG,13/07/2015,Catering,Finance & Corporate Services,BOUYGUES E&S FM UK LTD (CATERING),,Large,,,2100256038,Business Support,Mar 2015 Catering,SE1 7NQ,21.00,
Communities & Local Government,DCLG,13/07/2015,Catering,Finance & Corporate Services,BOUYGUES E&S FM UK LTD (CATERING),,Large,,,2100256039,Business Support,Apr 2015 Catering,SE1 7NQ,1.15,
Communities & Local Government,DCLG,13/07/2015,Catering,Finance & Corporate Services,BOUYGUES E&S FM UK LTD (CATERING),,Large,,,2100256042,Business Support,Catering Charges May 2015,SE1 7NQ,73.50,
Communities & Local Government,DCLG,13/07/2015,Catering,Finance & Corporate Services,BOUYGUES E&S FM UK LTD (CATERING),,Large,,,2100256042,Business Support,May 2015 Catering,SE1 7NQ,48.75,
Communities & Local Government,DCLG,13/07/2015,Catering,Finance & Corporate Services,BOUYGUES E&S FM UK LTD (CATERING),,Large,,,2100256042,Business Support,May 2015 Catering,SE1 7NQ,118.50,
Communities & Local Government,DCLG,13/07/2015,Catering,Localism,BOUYGUES E&S FM UK LTD (CATERING),,Large,,,2100256038,Business Support,Mar 2015 Catering,SE1 7NQ,72.40,
Communities & Local Government,DCLG,13/07/2015,Catering,Localism,BOUYGUES E&S FM UK LTD (CATERING),,Large,,,2100256038,Business Support,Mar 2015 Catering,SE1 7NQ,179.50,
Communities & Local Government,DCLG,13/07/2015,Catering,Localism,BOUYGUES E&S FM UK LTD (CATERING),,Large,,,2100256038,Business Support,Mar 2015 Catering,SE1 7NQ,200.60,
Communities & Local Government,DCLG,13/07/2015,Catering,Localism,BOUYGUES E&S FM UK LTD (CATERING),,Large,,,2100256039,Business Support,Apr 2015 Catering,SE1 7NQ,13.20,
Communities & Local Government,DCLG,13/07/2015,Catering,Localism,BOUYGUES E&S FM UK LTD (CATERING),,Large,,,2100256039,Business Support,Apr 2015 Catering,SE1 7NQ,46.55,
Communities & Local Government,DCLG,13/07/2015,Catering,Localism,BOUYGUES E&S FM UK LTD (CATERING),,Large,,,2100256039,Business Support,Apr 2015 Catering,SE1 7NQ,41.80,
Communities & Local Government,DCLG,13/07/2015,Catering,Neighbourhoods,BOUYGUES E&S FM UK LTD (CATERING),,Large,,,2100256038,Business Support,Right to Build Vanguard workshop meeting,SE1 7NQ,90.20,
Communities & Local Government,DCLG,13/07/2015,Catering,Neighbourhoods,BOUYGUES E&S FM UK LTD (CATERING),,Large,,,2100256038,Business Support,Mar 2015 Catering,SE1 7NQ,10.35,
Communities & Local Government,DCLG,13/07/2015,Catering,Neighbourhoods,BOUYGUES E&S FM UK LTD (CATERING),,Large,,,2100256038,Business Support,Mar 2015 Catering,SE1 7NQ,65.30,
Communities & Local Government,DCLG,13/07/2015,Catering,Neighbourhoods,BOUYGUES E&S FM UK LTD (CATERING),,Large,,,2100256038,Business Support,Mar 2015 Catering,SE1 7NQ,119.90,
Communities & Local Government,DCLG,13/07/2015,Catering,Neighbourhoods,BOUYGUES E&S FM UK LTD (CATERING),,Large,,,2100256038,Business Support,Mar 2015 Catering,SE1 7NQ,52.50,
Communities & Local Government,DCLG,13/07/2015,Catering,Neighbourhoods,BOUYGUES E&S FM UK LTD (CATERING),,Large,,,2100256039,Business Support,Right to Build Vanguard workshop meeting,SE1 7NQ,71.30,
Communities & Local Government,DCLG,13/07/2015,Catering,Neighbourhoods,BOUYGUES E&S FM UK LTD (CATERING),,Large,,,2100256039,Business Support,Apr 2015 Catering,SE1 7NQ,92.25,
Communities & Local Government,DCLG,13/07/2015,Catering,Neighbourhoods,BOUYGUES E&S FM UK LTD (CATERING),,Large,,,2100256039,Business Support,Apr 2015 Catering,SE1 7NQ,112.80,
Communities & Local Government,DCLG,13/07/2015,Catering,Neighbourhoods,BOUYGUES E&S FM UK LTD (CATERING),,Large,,,2100256039,Business Support,Apr 2015 Catering,SE1 7NQ,16.50,
Communities & Local Government,DCLG,13/07/2015,Catering,Neighbourhoods,BOUYGUES E&S FM UK LTD (CATERING),,Large,,,2100256042,Business Support,May 2015 Catering,SE1 7NQ,38.15,
Communities & Local Government,DCLG,13/07/2015,Catering,Neighbourhoods,BOUYGUES E&S FM UK LTD (CATERING),,Large,,,2100256042,Business Support,May 2015 Catering,SE1 7NQ,97.80,
Communities & Local Government,DCLG,13/07/2015,Catering,"Strategy, Communications and Private Office",BOUYGUES E&S FM UK LTD (CATERING),,Large,,,2100256038,Business Support,Mar 2015 Catering,SE1 7NQ,423.00,
Communities & Local Government,DCLG,13/07/2015,Catering,"Strategy, Communications and Private Office",BOUYGUES E&S FM UK LTD (CATERING),,Large,,,2100256039,Business Support,Apr 2015 Catering,SE1 7NQ,67.25,
Communities & Local Government,DCLG,13/07/2015,Catering,Troubled Families,BOUYGUES E&S FM UK LTD (CATERING),,Large,,,2100256038,Business Support,Mar 2015 Catering,SE1 7NQ,105.05,
Communities & Local Government,DCLG,13/07/2015,Catering,Troubled Families,BOUYGUES E&S FM UK LTD (CATERING),,Large,,,2100256039,Business Support,Apr 2015 Catering,SE1 7NQ,33.00,
Communities & Local Government,DCLG,13/07/2015,Catering,Troubled Families,BOUYGUES E&S FM UK LTD (CATERING),,Large,,,2100256042,Business Support,May 2015 Catering,SE1 7NQ,73.95,
Communities & Local Government,DCLG,13/07/2015,Courier Services,Finance & Corporate Services,INTERSERVE (FACILITIES MANAGEMENT),,Large,,364834825,5106214113,Office Solutions,DfECC/0028 Franking Machine Citygate,BS32 4NH,372.02,
Communities & Local Government,DCLG,13/07/2015,Courier Services,Finance & Corporate Services,INTERSERVE (FACILITIES MANAGEMENT),,Large,,364834825,5106214113,Office Solutions,DfECC/0005 Pitney Bowes 5 SPP,BS32 4NH,371.95,
Communities & Local Government,DCLG,13/07/2015,Courier Services,Finance & Corporate Services,SWISS POST SOLUTIONS,,Large,,,5106214105,Office Solutions,Offsite Mail Screening Screening Service,TW10 6TP,"5,976.00",
Communities & Local Government,DCLG,13/07/2015,Current (non AEF) Grants to Local Authorities,Localism,DERBYSHIRE COUNTY COUNCIL,,,,232152967,2300002281,,Recovery of duplicate TCA Payment,DE4 3AH,"-745,000.00",Yes
Communities & Local Government,DCLG,13/07/2015,Domestic Services,Finance & Corporate Services,INTERSERVE (FACILITIES MANAGEMENT),,Large,,364834825,5106214113,Building Operation,DfECC/0116 Addtn Cleaning Req Rivergate,BS32 4NH,755.87,
Communities & Local Government,DCLG,13/07/2015,Domestic Services,Finance & Corporate Services,INTERSERVE (FACILITIES MANAGEMENT),,Large,,364834825,5106214113,Building Operation,DfECC/0128 Cleaning Requirements 5SPP,BS32 4NH,"1,798.35",
Communities & Local Government,DCLG,13/07/2015,Electricity,Finance & Corporate Services,EDF ENERGY 1 LIMITED,,Large,,230840469,5106214114,Energy,EM Castle Don Electricity 2015-16,PL3 5XQ,"2,978.42",
Communities & Local Government,DCLG,13/07/2015,Electricity,Finance & Corporate Services,EDF ENERGY 1 LIMITED,,Large,,230840469,5106214117,Energy,Y&H Wakefield Electricity 2015-16,PL3 5XQ,"3,011.93",
Communities & Local Government,DCLG,13/07/2015,Facilities Management (ISD use only),Finance & Corporate Services,INTERSERVE (FACILITIES MANAGEMENT),,Large,,364834825,5106214113,Property Occupation,DfECC/0045 IB TUPE Citygate,BS32 4NH,"1,427.16",
Communities & Local Government,DCLG,13/07/2015,Facilities Management (ISD use only),Finance & Corporate Services,INTERSERVE (FACILITIES MANAGEMENT),,Large,,364834825,5106214113,Property Occupation,Fee for Sustainability Manager,BS32 4NH,"1,498.11",
Communities & Local Government,DCLG,13/07/2015,Facilities Management (ISD use only),Finance & Corporate Services,INTERSERVE (FACILITIES MANAGEMENT),,Large,,364834825,5106214113,Property Occupation,DfECC/0104 Project Manager,BS32 4NH,"2,201.88",
Communities & Local Government,DCLG,13/07/2015,Facilities Management (ISD use only),Finance & Corporate Services,INTERSERVE (FACILITIES MANAGEMENT),,Large,,364834825,5106214113,Property Occupation,DfCC/0074 YR2 Contract Inflation TQH,BS32 4NH,251.85,
Communities & Local Government,DCLG,13/07/2015,Facilities Management (ISD use only),Finance & Corporate Services,INTERSERVE (FACILITIES MANAGEMENT),,Large,,364834825,5106214113,Property Occupation,DfECC/0042 Customer Services Manager TQH,BS32 4NH,"1,776.38",
Communities & Local Government,DCLG,13/07/2015,Facilities Management (ISD use only),Finance & Corporate Services,INTERSERVE (FACILITIES MANAGEMENT),,Large,,364834825,5106214113,Property Occupation,DfECC/0058 Auto Enrol Pensions TQH,BS32 4NH,143.24,
Communities & Local Government,DCLG,13/07/2015,Facilities Management (ISD use only),Finance & Corporate Services,INTERSERVE (FACILITIES MANAGEMENT),,Large,,364834825,5106214113,Property Occupation,DfECC/0066 Facilities TQH,BS32 4NH,"30,710.61",
Communities & Local Government,DCLG,13/07/2015,Facilities Management (ISD use only),Finance & Corporate Services,INTERSERVE (FACILITIES MANAGEMENT),,Large,,364834825,5106214113,Property Occupation,DfECC/0097 FHS Structure TQH,BS32 4NH,564.71,
Communities & Local Government,DCLG,13/07/2015,Facilities Management (ISD use only),Finance & Corporate Services,INTERSERVE (FACILITIES MANAGEMENT),,Large,,364834825,5106214113,Property Occupation,DfECC/0108 YR3 Indexation TQH,BS32 4NH,"1,022.87",
Communities & Local Government,DCLG,13/07/2015,Facilities Management (ISD use only),Finance & Corporate Services,INTERSERVE (FACILITIES MANAGEMENT),,Large,,364834825,5106214113,Property Occupation,DfECC/0126 FTL Application TQH,BS32 4NH,864.74,
Communities & Local Government,DCLG,13/07/2015,Facilities Management (ISD use only),Finance & Corporate Services,INTERSERVE (FACILITIES MANAGEMENT),,Large,,364834825,5106214113,Property Occupation,DfECC/0042 Customer Services Manager 2RG,BS32 4NH,"1,776.38",
Communities & Local Government,DCLG,13/07/2015,Facilities Management (ISD use only),Finance & Corporate Services,INTERSERVE (FACILITIES MANAGEMENT),,Large,,364834825,5106214113,Property Occupation,DfECC/0058 Auto Enrol Pensions Rivergate,BS32 4NH,494.46,
Communities & Local Government,DCLG,13/07/2015,Facilities Management (ISD use only),Finance & Corporate Services,INTERSERVE (FACILITIES MANAGEMENT),,Large,,364834825,5106214113,Property Occupation,DfECC/0066 Facilities Rivergate,BS32 4NH,"13,327.80",
Communities & Local Government,DCLG,13/07/2015,Facilities Management (ISD use only),Finance & Corporate Services,INTERSERVE (FACILITIES MANAGEMENT),,Large,,364834825,5106214113,Property Occupation,DfECC/0097 FHS Structure Rivergate,BS32 4NH,257.45,
Communities & Local Government,DCLG,13/07/2015,Facilities Management (ISD use only),Finance & Corporate Services,INTERSERVE (FACILITIES MANAGEMENT),,Large,,364834825,5106214113,Property Occupation,DfECC/0108 YR3 Indexation Rivergate,BS32 4NH,534.30,
Communities & Local Government,DCLG,13/07/2015,Facilities Management (ISD use only),Finance & Corporate Services,INTERSERVE (FACILITIES MANAGEMENT),,Large,,364834825,5106214113,Property Occupation,DfECC/0126 FTL Application Rivergate,BS32 4NH,551.00,
Communities & Local Government,DCLG,13/07/2015,Facilities Management (ISD use only),Finance & Corporate Services,INTERSERVE (FACILITIES MANAGEMENT),,Large,,364834825,5106214113,Property Occupation,DfCC/0074 YR2 Contract Inflatn Citygate,BS32 4NH,12.89,
Communities & Local Government,DCLG,13/07/2015,Facilities Management (ISD use only),Finance & Corporate Services,INTERSERVE (FACILITIES MANAGEMENT),,Large,,364834825,5106214113,Property Occupation,DfECC/0035 Min Wage Impact Citygate,BS32 4NH,25.09,
Communities & Local Government,DCLG,13/07/2015,Facilities Management (ISD use only),Finance & Corporate Services,INTERSERVE (FACILITIES MANAGEMENT),,Large,,364834825,5106214113,Property Occupation,DfECC/0058 Auto Enrol Pensions Citygate,BS32 4NH,105.37,
Communities & Local Government,DCLG,13/07/2015,Facilities Management (ISD use only),Finance & Corporate Services,INTERSERVE (FACILITIES MANAGEMENT),,Large,,364834825,5106214113,Property Occupation,DfECC/0097 FHS Structure Citygate,BS32 4NH,211.28,
Communities & Local Government,DCLG,13/07/2015,Facilities Management (ISD use only),Finance & Corporate Services,INTERSERVE (FACILITIES MANAGEMENT),,Large,,364834825,5106214113,Property Occupation,DfECC/0108 YR3 Indexation Citygate,BS32 4NH,388.27,
Communities & Local Government,DCLG,13/07/2015,Facilities Management (ISD use only),Finance & Corporate Services,INTERSERVE (FACILITIES MANAGEMENT),,Large,,364834825,5106214113,Property Occupation,DfCC/0074 YR2 Contract Inflation 5 SPP,BS32 4NH,17.13,
Communities & Local Government,DCLG,13/07/2015,Facilities Management (ISD use only),Finance & Corporate Services,INTERSERVE (FACILITIES MANAGEMENT),,Large,,364834825,5106214113,Property Occupation,DfECC/0058 Auto Enrol Pensions 5 SPP,BS32 4NH,183.25,
Communities & Local Government,DCLG,13/07/2015,Facilities Management (ISD use only),Finance & Corporate Services,INTERSERVE (FACILITIES MANAGEMENT),,Large,,364834825,5106214113,Property Occupation,DfECC/0106 Reception & MR Staff 5 SPP,BS32 4NH,"5,510.35",
Communities & Local Government,DCLG,13/07/2015,Facilities Management (ISD use only),Finance & Corporate Services,INTERSERVE (FACILITIES MANAGEMENT),,Large,,364834825,5106214113,Property Occupation,DfECC/0108 YR3 Indexation 5SPP,BS32 4NH,734.71,
Communities & Local Government,DCLG,13/07/2015,Facilities Management (ISD use only),Finance & Corporate Services,INTERSERVE (FACILITIES MANAGEMENT),,Large,,364834825,5106214113,Property Occupation,DfCC/0074 YR2 Contract Inflation Hemel,BS32 4NH,4.79,
Communities & Local Government,DCLG,13/07/2015,Facilities Management (ISD use only),Finance & Corporate Services,INTERSERVE (FACILITIES MANAGEMENT),,Large,,364834825,5106214113,Property Occupation,DfECC/0035 Min Wage Impact High Trees,BS32 4NH,10.04,
Communities & Local Government,DCLG,13/07/2015,Facilities Management (ISD use only),Finance & Corporate Services,INTERSERVE (FACILITIES MANAGEMENT),,Large,,364834825,5106214113,Property Occupation,DfECC/0058 Auto Enrol Pensions HighTrees,BS32 4NH,62.40,
Communities & Local Government,DCLG,13/07/2015,Facilities Management (ISD use only),Finance & Corporate Services,INTERSERVE (FACILITIES MANAGEMENT),,Large,,364834825,5106214113,Property Occupation,DfECC/0097 FHS Structure High Trees,BS32 4NH,62.95,
Communities & Local Government,DCLG,13/07/2015,Facilities Management (ISD use only),Finance & Corporate Services,INTERSERVE (FACILITIES MANAGEMENT),,Large,,364834825,5106214113,Property Occupation,DfECC/0108 YR3 Indexation Hemel,BS32 4NH,296.45,
Communities & Local Government,DCLG,13/07/2015,Fixed Maintenance,Finance & Corporate Services,INTERSERVE (FACILITIES MANAGEMENT),,Large,,364834825,5106214113,Property Occupation,DfECC/0011 Semi Comp Main Citygate,BS32 4NH,132.47,
Communities & Local Government,DCLG,13/07/2015,Fixed Maintenance,Finance & Corporate Services,INTERSERVE (FACILITIES MANAGEMENT),,Large,,364834825,5106214113,Property Occupation,DfECC/0011 Semi Comp Main 5SPP,BS32 4NH,444.09,
Communities & Local Government,DCLG,13/07/2015,Fixed Maintenance,Finance & Corporate Services,INTERSERVE (FACILITIES MANAGEMENT),,Large,,364834825,5106214113,Property Occupation,DfECC/0011 Semi Comp Main High Trees,BS32 4NH,200.06,
Communities & Local Government,DCLG,13/07/2015,Legal Fees,Localism,BEVAN BRITTAN LLP,,Large,,,5106214109,Legal,Legal Advice,BS2 0HQ,376.20,
Communities & Local Government,DCLG,13/07/2015,Legal Fees,Neighbourhoods,ASHFORDS LLP,,Large,,,5106214120,Legal,Legal Advice,EX1 3LH,863.68,
Communities & Local Government,DCLG,13/07/2015,Legal Fees,Neighbourhoods,ASHFORDS LLP,,Large,,,5106214120,Legal,Legal Advice,EX1 3LH,"2,322.32",
Communities & Local Government,DCLG,13/07/2015,Photocopying,Finance & Corporate Services,INTERSERVE (FACILITIES MANAGEMENT),,Large,,364834825,5106214113,Business Support,DfECC/0041 Prov of Repro Equip TQH,BS32 4NH,"4,520.08",
Communities & Local Government,DCLG,13/07/2015,Photocopying,Finance & Corporate Services,INTERSERVE (FACILITIES MANAGEMENT),,Large,,364834825,5106214113,Business Support,DfECC/0041 Prov of Repro Equip Rivergate,BS32 4NH,"4,520.09",
Communities & Local Government,DCLG,13/07/2015,Photocopying,Finance & Corporate Services,INTERSERVE (FACILITIES MANAGEMENT),,Large,,364834825,5106214113,Business Support,DfECC/0097 FHS Structure 5 SPP,BS32 4NH,208.82,
Communities & Local Government,DCLG,13/07/2015,"Rail, Underground and Eurostar",Finance & Corporate Services,REDFERN TRAVEL LIMITED,,Small,,213089972,2100256034,Rail,Consolidated Monthly Travel June Rail,BD1 3AZ,"1,676.57",
Communities & Local Government,DCLG,13/07/2015,"Rail, Underground and Eurostar",Finance & Corporate Services,REDFERN TRAVEL LIMITED,,Small,,213089972,2100256034,Rail,Consolidated Monthly Travel June Rail,BD1 3AZ,762.34,
Communities & Local Government,DCLG,13/07/2015,"Rail, Underground and Eurostar",Finance & Corporate Services,REDFERN TRAVEL LIMITED,,Small,,213089972,2100256034,Rail,Consolidated Monthly Travel June Rail,BD1 3AZ,336.85,
Communities & Local Government,DCLG,13/07/2015,"Rail, Underground and Eurostar",Finance & Corporate Services,REDFERN TRAVEL LIMITED,,Small,,213089972,2100256034,Rail,Consolidated Monthly Travel June Rail,BD1 3AZ,444.92,
Communities & Local Government,DCLG,13/07/2015,"Rail, Underground and Eurostar",Finance & Corporate Services,REDFERN TRAVEL LIMITED,,Small,,213089972,2100256034,Rail,Consolidated Monthly Travel June Rail,BD1 3AZ,"1,188.74",
Communities & Local Government,DCLG,13/07/2015,"Rail, Underground and Eurostar",Finance & Corporate Services,REDFERN TRAVEL LIMITED,,Small,,213089972,2100256034,Rail,Consolidated Monthly Travel June Rail,BD1 3AZ,"5,039.84",
Communities & Local Government,DCLG,13/07/2015,"Rail, Underground and Eurostar",Finance & Corporate Services,REDFERN TRAVEL LIMITED,,Small,,213089972,2100256034,Rail,Consolidated Monthly Travel June Rail,BD1 3AZ,"1,191.70",
Communities & Local Government,DCLG,13/07/2015,"Rail, Underground and Eurostar",Finance & Corporate Services,REDFERN TRAVEL LIMITED,,Small,,213089972,2100256034,Rail,Consolidated Monthly Travel June Rail,BD1 3AZ,"1,647.26",
Communities & Local Government,DCLG,13/07/2015,"Rail, Underground and Eurostar",Finance & Corporate Services,REDFERN TRAVEL LIMITED,,Small,,213089972,2100256034,Rail,Consolidated Monthly Travel June Rail,BD1 3AZ,342.16,
Communities & Local Government,DCLG,13/07/2015,"Rail, Underground and Eurostar",Finance & Corporate Services,REDFERN TRAVEL LIMITED,,Small,,213089972,2100256034,Rail,Consolidated Monthly Travel June Rail,BD1 3AZ,351.61,
Communities & Local Government,DCLG,13/07/2015,"Rail, Underground and Eurostar",Finance & Corporate Services,REDFERN TRAVEL LIMITED,,Small,,213089972,2100256034,Rail,Consolidated Monthly Travel June Rail,BD1 3AZ,"1,274.60",
Communities & Local Government,DCLG,13/07/2015,"Rail, Underground and Eurostar",Localism,REDFERN TRAVEL LIMITED,,Small,,213089972,2100256034,Rail,Consolidated Monthly Travel June Rail,BD1 3AZ,"1,033.00",
Communities & Local Government,DCLG,13/07/2015,"Rail, Underground and Eurostar",Localism,REDFERN TRAVEL LIMITED,,Small,,213089972,2100256034,Rail,Consolidated Monthly Travel June Rail,BD1 3AZ,780.69,
Communities & Local Government,DCLG,13/07/2015,"Rail, Underground and Eurostar",Localism,REDFERN TRAVEL LIMITED,,Small,,213089972,2100256034,Rail,Consolidated Monthly Travel June Rail,BD1 3AZ,290.85,
Communities & Local Government,DCLG,13/07/2015,"Rail, Underground and Eurostar",Localism,REDFERN TRAVEL LIMITED,,Small,,213089972,2100256034,Rail,Consolidated Monthly Travel June Rail,BD1 3AZ,350.06,
Communities & Local Government,DCLG,13/07/2015,"Rail, Underground and Eurostar",Localism,REDFERN TRAVEL LIMITED,,Small,,213089972,2100256034,Rail,Consolidated Monthly Travel June Rail,BD1 3AZ,"1,359.83",
Communities & Local Government,DCLG,13/07/2015,"Rail, Underground and Eurostar",Localism,REDFERN TRAVEL LIMITED,,Small,,213089972,2100256034,Rail,Consolidated Monthly Travel June Rail,BD1 3AZ,365.29,
Communities & Local Government,DCLG,13/07/2015,"Rail, Underground and Eurostar",Localism,REDFERN TRAVEL LIMITED,,Small,,213089972,2100256034,Rail,Consolidated Monthly Travel June Rail,BD1 3AZ,336.53,
Communities & Local Government,DCLG,13/07/2015,"Rail, Underground and Eurostar",Localism,REDFERN TRAVEL LIMITED,,Small,,213089972,2100256034,Rail,Consolidated Monthly Travel June Rail,BD1 3AZ,400.40,
Communities & Local Government,DCLG,13/07/2015,"Rail, Underground and Eurostar",Localism,REDFERN TRAVEL LIMITED,,Small,,213089972,2100256034,Rail,Consolidated Monthly Travel June Rail,BD1 3AZ,"1,959.93",
Communities & Local Government,DCLG,13/07/2015,"Rail, Underground and Eurostar",Localism,REDFERN TRAVEL LIMITED,,Small,,213089972,2100256034,Rail,Consolidated Monthly Travel June Rail,BD1 3AZ,259.39,
Communities & Local Government,DCLG,13/07/2015,"Rail, Underground and Eurostar",Localism,REDFERN TRAVEL LIMITED,,Small,,213089972,2100256034,Rail,Consolidated Monthly Travel June Rail,BD1 3AZ,"1,160.06",
Communities & Local Government,DCLG,13/07/2015,"Rail, Underground and Eurostar",Localism,REDFERN TRAVEL LIMITED,,Small,,213089972,2100256034,Rail,Consolidated Monthly Travel June Rail,BD1 3AZ,"1,537.88",
Communities & Local Government,DCLG,13/07/2015,"Rail, Underground and Eurostar",Localism,REDFERN TRAVEL LIMITED,,Small,,213089972,2100256034,Rail,Consolidated Monthly Travel June Rail,BD1 3AZ,"2,781.99",
Communities & Local Government,DCLG,13/07/2015,"Rail, Underground and Eurostar",Localism,REDFERN TRAVEL LIMITED,,Small,,213089972,2100256034,Rail,Consolidated Monthly Travel June Rail,BD1 3AZ,"2,051.56",
Communities & Local Government,DCLG,13/07/2015,"Rail, Underground and Eurostar",Localism,REDFERN TRAVEL LIMITED,,Small,,213089972,2100256034,Rail,Consolidated Monthly Travel June Rail,BD1 3AZ,"1,224.87",
Communities & Local Government,DCLG,13/07/2015,"Rail, Underground and Eurostar",Localism,REDFERN TRAVEL LIMITED,,Small,,213089972,2100256034,Rail,Consolidated Monthly Travel June Rail,BD1 3AZ,"1,062.85",
Communities & Local Government,DCLG,13/07/2015,"Rail, Underground and Eurostar",Localism,REDFERN TRAVEL LIMITED,,Small,,213089972,2100256034,Rail,Consolidated Monthly Travel June Rail,BD1 3AZ,309.92,
Communities & Local Government,DCLG,13/07/2015,"Rail, Underground and Eurostar",Localism,REDFERN TRAVEL LIMITED,,Small,,213089972,2100256034,Rail,Consolidated Monthly Travel June Rail,BD1 3AZ,537.26,
Communities & Local Government,DCLG,13/07/2015,"Rail, Underground and Eurostar",Localism,REDFERN TRAVEL LIMITED,,Small,,213089972,2100256034,Rail,Consolidated Monthly Travel June Rail,BD1 3AZ,309.57,
Communities & Local Government,DCLG,13/07/2015,"Rail, Underground and Eurostar",Localism,REDFERN TRAVEL LIMITED,,Small,,213089972,2100256034,Rail,Consolidated Monthly Travel June Rail,BD1 3AZ,828.86,
Communities & Local Government,DCLG,13/07/2015,"Rail, Underground and Eurostar",Localism,REDFERN TRAVEL LIMITED,,Small,,213089972,2100256034,Rail,Consolidated Monthly Travel June Rail,BD1 3AZ,"6,422.73",
Communities & Local Government,DCLG,13/07/2015,"Rail, Underground and Eurostar",Neighbourhoods,REDFERN TRAVEL LIMITED,,Small,,213089972,2100256034,Rail,Consolidated Monthly Travel June Rail,BD1 3AZ,270.00,
Communities & Local Government,DCLG,13/07/2015,"Rail, Underground and Eurostar",Neighbourhoods,REDFERN TRAVEL LIMITED,,Small,,213089972,2100256034,Rail,Consolidated Monthly Travel June Rail,BD1 3AZ,"1,977.32",
Communities & Local Government,DCLG,13/07/2015,"Rail, Underground and Eurostar",Neighbourhoods,REDFERN TRAVEL LIMITED,,Small,,213089972,2100256034,Rail,Consolidated Monthly Travel June Rail,BD1 3AZ,"5,099.47",
Communities & Local Government,DCLG,13/07/2015,"Rail, Underground and Eurostar",Neighbourhoods,REDFERN TRAVEL LIMITED,,Small,,213089972,2100256034,Rail,Consolidated Monthly Travel June Rail,BD1 3AZ,265.97,
Communities & Local Government,DCLG,13/07/2015,"Rail, Underground and Eurostar",Neighbourhoods,REDFERN TRAVEL LIMITED,,Small,,213089972,2100256034,Rail,Consolidated Monthly Travel June Rail,BD1 3AZ,260.29,
Communities & Local Government,DCLG,13/07/2015,"Rail, Underground and Eurostar",Neighbourhoods,REDFERN TRAVEL LIMITED,,Small,,213089972,2100256034,Rail,Consolidated Monthly Travel June Rail,BD1 3AZ,915.06,
Communities & Local Government,DCLG,13/07/2015,"Rail, Underground and Eurostar",Neighbourhoods,REDFERN TRAVEL LIMITED,,Small,,213089972,2100256034,Rail,Consolidated Monthly Travel June Rail,BD1 3AZ,758.29,
Communities & Local Government,DCLG,13/07/2015,"Rail, Underground and Eurostar",Neighbourhoods,REDFERN TRAVEL LIMITED,,Small,,213089972,2100256034,Rail,Consolidated Monthly Travel June Rail,BD1 3AZ,507.58,
Communities & Local Government,DCLG,13/07/2015,"Rail, Underground and Eurostar",Neighbourhoods,REDFERN TRAVEL LIMITED,,Small,,213089972,2100256034,Rail,Consolidated Monthly Travel June Rail,BD1 3AZ,"5,230.81",
Communities & Local Government,DCLG,13/07/2015,"Rail, Underground and Eurostar",Neighbourhoods,REDFERN TRAVEL LIMITED,,Small,,213089972,2100256034,Rail,Consolidated Monthly Travel June Rail,BD1 3AZ,"3,408.76",
Communities & Local Government,DCLG,13/07/2015,"Rail, Underground and Eurostar",Neighbourhoods,REDFERN TRAVEL LIMITED,,Small,,213089972,2100256034,Rail,Consolidated Monthly Travel June Rail,BD1 3AZ,"4,695.34",
Communities & Local Government,DCLG,13/07/2015,"Rail, Underground and Eurostar",Neighbourhoods,REDFERN TRAVEL LIMITED,,Small,,213089972,2100256034,Rail,Consolidated Monthly Travel June Rail,BD1 3AZ,"3,372.15",
Communities & Local Government,DCLG,13/07/2015,"Rail, Underground and Eurostar",Neighbourhoods,REDFERN TRAVEL LIMITED,,Small,,213089972,2100256034,Rail,Consolidated Monthly Travel June Rail,BD1 3AZ,641.52,
Communities & Local Government,DCLG,13/07/2015,"Rail, Underground and Eurostar",Neighbourhoods,REDFERN TRAVEL LIMITED,,Small,,213089972,2100256034,Rail,Consolidated Monthly Travel June Rail,BD1 3AZ,"2,389.22",
Communities & Local Government,DCLG,13/07/2015,"Rail, Underground and Eurostar",Neighbourhoods,REDFERN TRAVEL LIMITED,,Small,,213089972,2100256034,Rail,Consolidated Monthly Travel June Rail,BD1 3AZ,"1,617.55",
Communities & Local Government,DCLG,13/07/2015,"Rail, Underground and Eurostar",Neighbourhoods,REDFERN TRAVEL LIMITED,,Small,,213089972,2100256034,Rail,Consolidated Monthly Travel June Rail,BD1 3AZ,683.04,
Communities & Local Government,DCLG,13/07/2015,"Rail, Underground and Eurostar",Neighbourhoods,REDFERN TRAVEL LIMITED,,Small,,213089972,2100256034,Rail,Consolidated Monthly Travel June Rail,BD1 3AZ,809.62,
Communities & Local Government,DCLG,13/07/2015,"Rail, Underground and Eurostar",Neighbourhoods,REDFERN TRAVEL LIMITED,,Small,,213089972,2100256034,Rail,Consolidated Monthly Travel June Rail,BD1 3AZ,"2,217.03",
Communities & Local Government,DCLG,13/07/2015,"Rail, Underground and Eurostar",Neighbourhoods,REDFERN TRAVEL LIMITED,,Small,,213089972,2100256034,Rail,Consolidated Monthly Travel June Rail,BD1 3AZ,"4,237.43",
Communities & Local Government,DCLG,13/07/2015,"Rail, Underground and Eurostar",Neighbourhoods,REDFERN TRAVEL LIMITED,,Small,,213089972,2100256034,Rail,Consolidated Monthly Travel June Rail,BD1 3AZ,"4,630.13",
Communities & Local Government,DCLG,13/07/2015,"Rail, Underground and Eurostar",Neighbourhoods,REDFERN TRAVEL LIMITED,,Small,,213089972,2100256034,Rail,Consolidated Monthly Travel June Rail,BD1 3AZ,"1,893.92",
Communities & Local Government,DCLG,13/07/2015,"Rail, Underground and Eurostar",Neighbourhoods,REDFERN TRAVEL LIMITED,,Small,,213089972,2100256034,Rail,Consolidated Monthly Travel June Rail,BD1 3AZ,"3,296.15",
Communities & Local Government,DCLG,13/07/2015,"Rail, Underground and Eurostar","Strategy, Communications and Private Office",REDFERN TRAVEL LIMITED,,Small,,213089972,2100256034,Rail,Consolidated Monthly Travel June Rail,BD1 3AZ,"1,117.87",
Communities & Local Government,DCLG,13/07/2015,"Rail, Underground and Eurostar","Strategy, Communications and Private Office",REDFERN TRAVEL LIMITED,,Small,,213089972,2100256034,Rail,Consolidated Monthly Travel June Rail,BD1 3AZ,331.52,
Communities & Local Government,DCLG,13/07/2015,"Rail, Underground and Eurostar","Strategy, Communications and Private Office",REDFERN TRAVEL LIMITED,,Small,,213089972,2100256034,Rail,Consolidated Monthly Travel June Rail,BD1 3AZ,351.90,
Communities & Local Government,DCLG,13/07/2015,"Rail, Underground and Eurostar","Strategy, Communications and Private Office",REDFERN TRAVEL LIMITED,,Small,,213089972,2100256034,Rail,Consolidated Monthly Travel June Rail,BD1 3AZ,380.41,
Communities & Local Government,DCLG,13/07/2015,"Rail, Underground and Eurostar","Strategy, Communications and Private Office",REDFERN TRAVEL LIMITED,,Small,,213089972,2100256034,Rail,Consolidated Monthly Travel June Rail,BD1 3AZ,386.17,
Communities & Local Government,DCLG,13/07/2015,"Rail, Underground and Eurostar","Strategy, Communications and Private Office",REDFERN TRAVEL LIMITED,,Small,,213089972,2100256034,Rail,Consolidated Monthly Travel June Rail,BD1 3AZ,274.30,
Communities & Local Government,DCLG,13/07/2015,"Rail, Underground and Eurostar","Strategy, Communications and Private Office",REDFERN TRAVEL LIMITED,,Small,,213089972,2100256034,Rail,Consolidated Monthly Travel June Rail,BD1 3AZ,"1,245.49",
Communities & Local Government,DCLG,13/07/2015,"Rail, Underground and Eurostar",Troubled Families,REDFERN TRAVEL LIMITED,,Small,,213089972,2100256034,Rail,Consolidated Monthly Travel June Rail,BD1 3AZ,"5,356.66",
Communities & Local Government,DCLG,13/07/2015,Services provided by other Govt Orgs,Finance & Corporate Services,CABINET OFFICE,,Public Bodies,,349606306,2100256037,Financial,Legal Advice,CF14 3UW,"72,117.00",Yes
Communities & Local Government,DCLG,13/07/2015,Services provided by other Govt Orgs,Finance & Corporate Services,H M TREASURY,,Public Bodies,,233590996,5106214085,Financial,DCLG Charges 1 Horse Guards (XDIAS)14-15,NR7 0HS,"47,111.30",Yes
Communities & Local Government,DCLG,13/07/2015,Steady State Service Provision,Finance & Corporate Services,VODAFONE UK(FSSD USE ONLY),,Large,,397467572,5106214125,Business Process Outsourcing Services,FY 14/15 GSI/GCF Service Charges,RG14 5FF,"26,540.35",
Communities & Local Government,DCLG,13/07/2015,Steady State Service Provision,Finance & Corporate Services,VODAFONE UK(FSSD USE ONLY),,Large,,397467572,5106214128,Business Process Outsourcing Services,FY 14/15 GSI/GCF Service Charges,RG14 5FF,"96,475.85",
Communities & Local Government,DCLG,13/07/2015,Training,Finance & Corporate Services,PURPLE GRIFFON LTD,,Small,,732918375,5106214110,Development and Training,BRM training - 27-29 july,LA9 4BH,595.00,
Communities & Local Government,DCLG,13/07/2015,Training,Finance & Corporate Services,PURPLE GRIFFON LTD,,Small,,732918375,5106214110,Development and Training,BRM training -27-29 july,LA9 4BH,595.00,
Communities & Local Government,DCLG,13/07/2015,Variable Maintenance < 15k,Finance & Corporate Services,INTERSERVE (FACILITIES MANAGEMENT),,Large,,364834825,5106214115,Property Occupation,Global Variable Costs 2015-16,BS32 4NH,"2,016.00",
Communities & Local Government,DCLG,13/07/2015,Variable Maintenance < 15k,Finance & Corporate Services,INTERSERVE (FACILITIES MANAGEMENT),,Large,,364834825,5106214115,Property Occupation,TQH Variable Maintenance 2015-16,BS32 4NH,"3,557.86",
Communities & Local Government,DCLG,13/07/2015,Variable Maintenance < 15k,Finance & Corporate Services,INTERSERVE (FACILITIES MANAGEMENT),,Large,,364834825,5106214115,Property Occupation,Rivergate Pass Through 2015-16,BS32 4NH,"1,087.43",
Communities & Local Government,DCLG,13/07/2015,Variable Maintenance < 15k,Finance & Corporate Services,INTERSERVE (FACILITIES MANAGEMENT),,Large,,364834825,5106214115,Property Occupation,Citygate Variable Maintenance 2015-16,BS32 4NH,350.24,
Communities & Local Government,DCLG,13/07/2015,Variable Maintenance < 15k,Finance & Corporate Services,INTERSERVE (FACILITIES MANAGEMENT),,Large,,364834825,5106214115,Property Occupation,5 SPP Variable Maintenance 2015-16,BS32 4NH,"2,083.91",
Communities & Local Government,DCLG,13/07/2015,Work In Progress Pre-Cert 40373 Spend,Neighbourhoods,BASSETLAW DISTRICT COUNCIL,,Large,,,7600013057,,Revenue Grant To Be Paid,S81 2AH,"24,941.61",Yes
Communities & Local Government,DCLG,13/07/2015,Work In Progress Pre-Cert 40373 Spend,Neighbourhoods,EXPERIENCE NOTTINGHAMSHIRE LTD,,Small,,,7600013061,,Revenue Grant Clawback Offset,NG1 1JU,-469.85,Yes
Communities & Local Government,DCLG,13/07/2015,Work In Progress Pre-Cert 40373 Spend,Neighbourhoods,EXPERIENCE NOTTINGHAMSHIRE LTD,,Small,,,7600013061,,Revenue Grant To Be Paid,NG1 1JU,"88,758.55",Yes
Communities & Local Government,DCLG,13/07/2015,Work In Progress Pre-Cert 40373 Spend,Neighbourhoods,MIGHTY CREATIVES,,Small,,,7600013059,,Revenue Grant To Be Paid,LE1 1RE,"18,145.13",Yes
Communities & Local Government,DCLG,13/07/2015,Work In Progress Pre-Cert 40373 Spend,Neighbourhoods,MIGHTY CREATIVES,,Small,,,7600013060,,Revenue Grant To Be Paid,LE1 1RE,"8,457.31",Yes
Communities & Local Government,DCLG,13/07/2015,Work In Progress Pre-Cert 40373 Spend,Neighbourhoods,SKILLS FOR ENTERPRISE LTD,,Small,,,7600013058,,Revenue Grant To Be Paid,LE1 1QA,"1,249.93",Yes
Communities & Local Government,DCLG,14/07/2015,Conferences and Meeting Facilities,Localism,CENTRAL HALL WESTMINSTER LTD,,Small,,238100221,5106214075,Business Travel Accommodation,Venue Hire - Neighbourhood Planning Summ,SW1H 9NH,406.80,
Communities & Local Government,DCLG,14/07/2015,Grant in Aid to NDPBs (non budget),Neighbourhoods,LEASEHOLD ADVISORY SERVICE,,Small,,378000152,2100256066,,Grant in aid claim for Quarter 2 (July-Sept 2015),WT1 7BN,"257,141.00",Yes
Communities & Local Government,DCLG,14/07/2015,IT - Service Contracts,Neighbourhoods,I B M UK LTD,,Large,,210151718,5106214144,IT Managed / Outsourced Services,Hosting & AMS Support,PO6 3AE,"139,086.00",
Communities & Local Government,DCLG,14/07/2015,IT - Service Contracts,Neighbourhoods,I B M UK LTD,,Large,,210151718,5106214146,IT Managed / Outsourced Services,Hosting & AMS Support,PO6 3AE,"162,099.00",
Communities & Local Government,DCLG,14/07/2015,IT - Service Contracts,Neighbourhoods,LOCKHEED MARTIN BUSINESS TECH SOLUT,,Large,,399909910,5106214104,IT Managed / Outsourced Services,IT Services,PA4 9LH,"18,135.00",
Communities & Local Government,DCLG,14/07/2015,IT - Software Maintenance,Finance & Corporate Services,LOCKHEED MARTIN BUSINESS TECH SOLUT,,Large,,399909910,5106214103,IT Managed / Outsourced Services,MCIS/TESA support services FY15/16,PA4 9LH,"48,108.00",
Communities & Local Government,DCLG,14/07/2015,IT Consultancy,Finance & Corporate Services,INFO-ASSURE LTD,,Small,,,5106214019,Consultancy,Capped Expenses for line 020,GU14 0LX,48.24,
Communities & Local Government,DCLG,14/07/2015,IT Consultancy,Finance & Corporate Services,INFO-ASSURE LTD,,Small,,,5106214019,Consultancy,MCIS/RMADS/ITHC CLAS Resource,GU14 0LX,"4,378.50",
Communities & Local Government,DCLG,14/07/2015,Licence Fees/Levies,Localism,CENTRAL HALL WESTMINSTER LTD,,Small,,238100221,5106214075,Communication Services,Audio Visual Equipment for Summit,SW1H 9NH,"1,543.20",
Communities & Local Government,DCLG,14/07/2015,Physical Storage,Finance & Corporate Services,TNT UK LIMITED,,Large,,,5106214135,Warehousing and Storage,Offsite Records Storage FYR 15/16,BL10 9GR,876.93,
Communities & Local Government,DCLG,14/07/2015,Physical Storage,Finance & Corporate Services,TNT UK LIMITED,,Large,,,5106214136,Warehousing and Storage,Offsite Records Storage FYR 15/16,BL10 9GR,288.41,
Communities & Local Government,DCLG,14/07/2015,Physical Storage,Finance & Corporate Services,TNT UK LIMITED,,Large,,,5106214140,Warehousing and Storage,Offsite Records Storage FYR 15/16,BL10 9GR,"22,977.80",
Communities & Local Government,DCLG,14/07/2015,Training,Finance & Corporate Services,INSTITUTE OF INTERNAL AUDITORS,,Small,,292669967,5106214149,Development and Training,M4 Advanced Internal Auditing Seminar,SW4 7BX,300.00,
Communities & Local Government,DCLG,14/07/2015,Training,Finance & Corporate Services,INSTITUTE OF INTERNAL AUDITORS,,Small,,292669967,5106214150,Development and Training,M4 Advanced Internal Auditing Case Study,SW4 7BX,300.00,
Communities & Local Government,DCLG,14/07/2015,Variable Maintenance < 15k,Finance & Corporate Services,INTERSERVE (FACILITIES MANAGEMENT),,Large,,364834825,5106214131,Property Occupation,TQH Variable Maintenance 2015-16,BS32 4NH,419.17,
Communities & Local Government,DCLG,14/07/2015,Variable Maintenance < 15k,Finance & Corporate Services,INTERSERVE (FACILITIES MANAGEMENT),,Large,,364834825,5106214131,Property Occupation,Rivergate Variable Maintenance 2015-16,BS32 4NH,"1,743.53",
Communities & Local Government,DCLG,14/07/2015,Variable Maintenance < 15k,Finance & Corporate Services,INTERSERVE (FACILITIES MANAGEMENT),,Large,,364834825,5106214131,Property Occupation,Citygate Variable Maintenance 2015-16,BS32 4NH,136.10,
Communities & Local Government,DCLG,14/07/2015,Variable Maintenance < 15k,Finance & Corporate Services,INTERSERVE (FACILITIES MANAGEMENT),,Large,,364834825,5106214131,Property Occupation,5 SPP Variable Maintenance 2015-16,BS32 4NH,"4,631.04",
Communities & Local Government,DCLG,14/07/2015,Work In Progress Pre-Cert 40373 Spend,Neighbourhoods,APEX LEICESTER PROJECT LTD,,Small,,,7600013062,,Revenue Grant Clawback Offset,LE1 1FB,"-4,595.04",Yes
Communities & Local Government,DCLG,14/07/2015,Work In Progress Pre-Cert 40373 Spend,Neighbourhoods,APEX LEICESTER PROJECT LTD,,Small,,,7600013062,,Revenue Grant To Be Paid,LE1 1FB,"26,140.39",Yes
Communities & Local Government,DCLG,14/07/2015,Work In Progress Pre-Cert 40373 Spend,Neighbourhoods,CHESTERFIELD BOROUGH COUNCIL,,Large,,,7600013066,,Revenue Grant To Be Paid,S40 1LP,"9,090.12",Yes
Communities & Local Government,DCLG,14/07/2015,Work In Progress Pre-Cert 40373 Spend,Neighbourhoods,LEICESTER UNIVERSITY,,Large,,,7600013065,,Revenue Grant To Be Paid,LE1 7RH,"41,777.11",Yes
Communities & Local Government,DCLG,14/07/2015,Work In Progress Pre-Cert 40373 Spend,Neighbourhoods,MARKETING DERBY,,Micro,,,7600013064,,Revenue Grant To Be Paid,DE24 8QR,"25,879.28",Yes
Communities & Local Government,DCLG,14/07/2015,Work In Progress Pre-Cert 40467 Spend,Neighbourhoods,BLACKPOOL COUNCIL,,,,,2300002153,,Recovery of payment,FY1 1AD,"-3,178.48",Yes
Communities & Local Government,DCLG,14/07/2015,Work In Progress Pre-Cert 40467 Spend,Neighbourhoods,NOTTINGHAM CITY COUNCIL,,Large,,,7600013063,,Capital Grant To Be Paid,NG2 3NG,"157,571.46",Yes
Communities & Local Government,DCLG,15/07/2015,Accommodation Service Charges,Finance & Corporate Services,GVA GRIMLEY LTD,,Large,,210158990,5106214112,Business Support,T/F Citygate Insurance 2015,B1 2JB,"27,749.81",
Communities & Local Government,DCLG,15/07/2015,Capital Grant to LA Replace Loan Nonbud,Neighbourhoods,HALTON BOROUGH COUNCIL,,Large,,,2100256002,,Regional Growth Fund Q1 2015-16,WA8 7QF,"500,000.00",Yes
Communities & Local Government,DCLG,15/07/2015,Capital Grant to LA Replace Loan Nonbud,Neighbourhoods,NORTH EAST COMBINED AUTHORITY,,,,,2100256001,,Regional Growth Fund Q1 2015-16,NE27 0BY,"1,675,469.00",Yes
Communities & Local Government,DCLG,15/07/2015,Courier Services,Finance & Corporate Services,CITY SPRINT,,,,,5106210405,Office Solutions,Same Day Courier Services - Year 1,RH1 1SH,419.04,
Communities & Local Government,DCLG,15/07/2015,Current (non AEF) Grants to Local Authorities,Localism,ADUR DC,,,,227472891,5000300604,,Doubling of Small Business Rates Relief,BN11 1HB,"21,291.00",Yes
Communities & Local Government,DCLG,15/07/2015,Current (non AEF) Grants to Local Authorities,Localism,ADUR DC,,,,227472891,5000300605,,Retail Relief,BN11 1HB,"9,308.00",Yes
Communities & Local Government,DCLG,15/07/2015,Current (non AEF) Grants to Local Authorities,Localism,ADUR DC,,,,227472891,5000300606,,Business Rates 2% Inflation Cap,BN11 1HB,"2,193.00",Yes
Communities & Local Government,DCLG,15/07/2015,Current (non AEF) Grants to Local Authorities,Localism,ADUR DC,,,,227472891,5000301129,,Council Tax Flood Relief Grant,BN11 1HB,316.00,Yes
Communities & Local Government,DCLG,15/07/2015,Current (non AEF) Grants to Local Authorities,Localism,ADUR DC,,,,227472891,5000301130,,Council Tax Freeze,BN11 1HB,"6,322.00",Yes
Communities & Local Government,DCLG,15/07/2015,Current (non AEF) Grants to Local Authorities,Localism,ALLERDALE BOROUGH COUNCIL,,,,218146780,5000300607,,Business Rates 2% Inflation Cap,CA14 3YJ,"4,942.00",Yes
Communities & Local Government,DCLG,15/07/2015,Current (non AEF) Grants to Local Authorities,Localism,ALLERDALE BOROUGH COUNCIL,,,,218146780,5000300608,,Doubling of Small Business Rates Relief,CA14 3YJ,"55,769.00",Yes
Communities & Local Government,DCLG,15/07/2015,Current (non AEF) Grants to Local Authorities,Localism,ALLERDALE BOROUGH COUNCIL,,,,218146780,5000300609,,Reoccupation Relief,CA14 3YJ,887.00,Yes
Communities & Local Government,DCLG,15/07/2015,Current (non AEF) Grants to Local Authorities,Localism,ALLERDALE BOROUGH COUNCIL,,,,218146780,5000300610,,Retail Relief,CA14 3YJ,"23,541.00",Yes
Communities & Local Government,DCLG,15/07/2015,Current (non AEF) Grants to Local Authorities,Localism,ALLERDALE BOROUGH COUNCIL,,,,218146780,5000300611,,Small Business Rates Relief on Second Properties,CA14 3YJ,339.00,Yes
Communities & Local Government,DCLG,15/07/2015,Current (non AEF) Grants to Local Authorities,Localism,AMBER VALLEY BC,,,,,5000300612,,Reoccupation Relief,DE5 3BT,405.00,Yes
Communities & Local Government,DCLG,15/07/2015,Current (non AEF) Grants to Local Authorities,Localism,AMBER VALLEY BC,,,,,5000300613,,Small Business Rates Relief on Second Properties,DE5 3BT,339.00,Yes
Communities & Local Government,DCLG,15/07/2015,Current (non AEF) Grants to Local Authorities,Localism,AMBER VALLEY BC,,,,,5000300614,,Business Rates 2% Inflation Cap,DE5 3BT,"3,421.00",Yes
Communities & Local Government,DCLG,15/07/2015,Current (non AEF) Grants to Local Authorities,Localism,AMBER VALLEY BC,,,,,5000300615,,Doubling of Small Business Rates Relief,DE5 3BT,"44,313.00",Yes
Communities & Local Government,DCLG,15/07/2015,Current (non AEF) Grants to Local Authorities,Localism,AMBER VALLEY BC,,,,,5000300616,,Retail Relief,DE5 3BT,"23,503.00",Yes
Communities & Local Government,DCLG,15/07/2015,Current (non AEF) Grants to Local Authorities,Localism,AMBER VALLEY BC,,,,,5000301131,,Council Tax Freeze,DE5 3BT,"6,406.00",Yes
Communities & Local Government,DCLG,15/07/2015,Current (non AEF) Grants to Local Authorities,Localism,ARUN DC,,,,211217668,5000298990,,Business Rates 2% Inflation Cap,BN17 5LF,"5,864.00",Yes
Communities & Local Government,DCLG,15/07/2015,Current (non AEF) Grants to Local Authorities,Localism,ARUN DC,,,,211217668,5000298991,,Doubling of Small Business Rates Relief,BN17 5LF,"54,203.00",Yes
Communities & Local Government,DCLG,15/07/2015,Current (non AEF) Grants to Local Authorities,Localism,ARUN DC,,,,211217668,5000298993,,Retail Relief,BN17 5LF,"35,878.00",Yes
Communities & Local Government,DCLG,15/07/2015,Current (non AEF) Grants to Local Authorities,Localism,ARUN DC,,,,211217668,5000298994,,Small Business Rates Relief on Second Properties,BN17 5LF,340.00,Yes
Communities & Local Government,DCLG,15/07/2015,Current (non AEF) Grants to Local Authorities,Localism,ARUN DC,,,,211217668,5000298995,,Reoccupation Relief,BN17 5LF,271.00,Yes
Communities & Local Government,DCLG,15/07/2015,Current (non AEF) Grants to Local Authorities,Localism,ARUN DC,,,,211217668,5000300994,,Council Tax Freeze,BN17 5LF,"10,351.00",Yes
Communities & Local Government,DCLG,15/07/2015,Current (non AEF) Grants to Local Authorities,Localism,ASHFIELD DC,,,,235415296,5000300617,,Business Rates 2% Inflation Cap,NG17 8DA,"5,443.00",Yes
Communities & Local Government,DCLG,15/07/2015,Current (non AEF) Grants to Local Authorities,Localism,ASHFIELD DC,,,,235415296,5000300618,,Empty New Build Relief,NG17 8DA,"1,184.00",Yes
Communities & Local Government,DCLG,15/07/2015,Current (non AEF) Grants to Local Authorities,Localism,ASHFIELD DC,,,,235415296,5000300619,,Reoccupation Relief,NG17 8DA,507.00,Yes
Communities & Local Government,DCLG,15/07/2015,Current (non AEF) Grants to Local Authorities,Localism,ASHFIELD DC,,,,235415296,5000300620,,Retail Relief,NG17 8DA,"6,763.00",Yes
Communities & Local Government,DCLG,15/07/2015,Current (non AEF) Grants to Local Authorities,Localism,ASHFIELD DC,,,,235415296,5000300622,,Doubling of Small Business Rates Relief,NG17 8DA,"30,981.00",Yes
Communities & Local Government,DCLG,15/07/2015,Current (non AEF) Grants to Local Authorities,Localism,ASHFIELD DC,,,,235415296,5000301132,,Council Tax Freeze,NG17 8DA,"6,387.00",Yes
Communities & Local Government,DCLG,15/07/2015,Current (non AEF) Grants to Local Authorities,Localism,ASHFORD BC,,,,229467071,5000298997,,Retail Relief,TN23 1PL,"26,378.00",Yes
Communities & Local Government,DCLG,15/07/2015,Current (non AEF) Grants to Local Authorities,Localism,ASHFORD BC,,,,229467071,5000298998,,Reoccupation Relief,TN23 1PL,846.00,Yes
Communities & Local Government,DCLG,15/07/2015,Current (non AEF) Grants to Local Authorities,Localism,ASHFORD BC,,,,229467071,5000298999,,Small Business Rates Relief on Second Properties,TN23 1PL,299.00,Yes
Communities & Local Government,DCLG,15/07/2015,Current (non AEF) Grants to Local Authorities,Localism,ASHFORD BC,,,,229467071,5000299000,,Doubling of Small Business Rates Relief,TN23 1PL,"42,520.00",Yes
Communities & Local Government,DCLG,15/07/2015,Current (non AEF) Grants to Local Authorities,Localism,ASHFORD BC,,,,229467071,5000299001,,Business Rates 2% Inflation Cap,TN23 1PL,"3,787.00",Yes
Communities & Local Government,DCLG,15/07/2015,Current (non AEF) Grants to Local Authorities,Localism,ASHFORD BC,,,,229467071,5000300995,,Council Tax Freeze,TN23 1PL,"6,882.00",Yes
Communities & Local Government,DCLG,15/07/2015,Current (non AEF) Grants to Local Authorities,Localism,AVON FIRE AUTHORITY,,Large,,424872570,5000300281,,Business Rates 2% Inflation Cap,BS1 6EU,"12,052.00",Yes
Communities & Local Government,DCLG,15/07/2015,Current (non AEF) Grants to Local Authorities,Localism,AVON FIRE AUTHORITY,,Large,,424872570,5000300287,,Reoccupation Relief,BS1 6EU,"1,116.00",Yes
Communities & Local Government,DCLG,15/07/2015,Current (non AEF) Grants to Local Authorities,Localism,AVON FIRE AUTHORITY,,Large,,424872570,5000300290,,Retail Relief,BS1 6EU,"2,793.00",Yes
Communities & Local Government,DCLG,15/07/2015,Current (non AEF) Grants to Local Authorities,Localism,AVON FIRE AUTHORITY,,Large,,424872570,5000300296,,Doubling of Small Business Rates Relief,BS1 6EU,"7,156.00",Yes
Communities & Local Government,DCLG,15/07/2015,Current (non AEF) Grants to Local Authorities,Localism,AYLESBURY VALE DC(HSG),,,,396710709,5000299002,,Empty New Build Relief,HP19 8FF,"2,816.00",Yes
Communities & Local Government,DCLG,15/07/2015,Current (non AEF) Grants to Local Authorities,Localism,AYLESBURY VALE DC(HSG),,,,396710709,5000299004,,Retail Relief,HP19 8FF,"27,766.00",Yes
